Organisation,Organisation Code,Unique Ref No,Effective Date,Directorate where expenditure incurred,Suggested Supplier Name (inc. possible redactions) to be published,Payment Date,Net Amount,Purpose of Spend,Procurement Classification (Higher Level),Procurement Classification (Lower Level),CAPITAL / REVENUE
Walsall Council,http://opendatacommunities.org/id/metropolitan-district-council/walsall ,WC146-1,31.01.2023,"ECONOMY, ENVIRONMENT & COMMUNITIES",11KBW,12/01/2023,"2,925.00",6440-School Only Payments - Catering,THIRD PARTY PAYMENTS,INDEPENDENT UNIT WITHIN COUNCIL,REVENUE
Walsall Council,http://opendatacommunities.org/id/metropolitan-district-council/walsall ,WC146-2,31.01.2023,RESOURCES AND TRANSFORMATION,11KBW,10/01/2023,"2,005.00",6610-School Only Payments - Catering,THIRD PARTY PAYMENTS,INDEPENDENT UNIT WITHIN COUNCIL,REVENUE
Walsall Council,http://opendatacommunities.org/id/metropolitan-district-council/walsall ,WC146-3,31.01.2023,RESOURCES AND TRANSFORMATION,11KBW,06/01/2023,"2,600.00",6610-External Legal Fees,SUPPLIES & SERVICES,SERVICES,REVENUE
Walsall Council,http://opendatacommunities.org/id/metropolitan-district-council/walsall ,WC146-4,31.01.2023,CHILDRENS,247 CARS (WILLENHALL) LIMITED,30/01/2023,"1,327.50",6241-Hire of Vehicle with Driver,TRANSPORT,DIRECT TRANSPORT COSTS,REVENUE
Walsall Council,http://opendatacommunities.org/id/metropolitan-district-council/walsall ,WC146-5,31.01.2023,CHILDRENS,247 CARS (WILLENHALL) LIMITED,30/01/2023,832.50,6241-Hire of Vehicle with Driver,TRANSPORT,DIRECT TRANSPORT COSTS,REVENUE
Walsall Council,http://opendatacommunities.org/id/metropolitan-district-council/walsall ,WC146-6,31.01.2023,CHILDRENS,247 CARS (WILLENHALL) LIMITED,30/01/2023,"1,224.00",6241-Hire of Vehicle with Driver,TRANSPORT,DIRECT TRANSPORT COSTS,REVENUE
Walsall Council,http://opendatacommunities.org/id/metropolitan-district-council/walsall ,WC146-7,31.01.2023,CHILDRENS,247 CARS (WILLENHALL) LIMITED,30/01/2023,598.50,6241-Hire of Vehicle with Driver,TRANSPORT,DIRECT TRANSPORT COSTS,REVENUE
Walsall Council,http://opendatacommunities.org/id/metropolitan-district-council/walsall ,WC146-8,31.01.2023,CHILDRENS,247 CARS (WILLENHALL) LIMITED,30/01/2023,856.00,6241-Hire of Vehicle with Driver,TRANSPORT,DIRECT TRANSPORT COSTS,REVENUE
Walsall Council,http://opendatacommunities.org/id/metropolitan-district-council/walsall ,WC146-9,31.01.2023,CHILDRENS,247 CARS (WILLENHALL) LIMITED,30/01/2023,"-1,200.00",6241-Hire of Vehicle with Driver,TRANSPORT,DIRECT TRANSPORT COSTS,REVENUE
Walsall Council,http://opendatacommunities.org/id/metropolitan-district-council/walsall ,WC146-10,31.01.2023,CHILDRENS,247 CARS (WILLENHALL) LIMITED,30/01/2023,"1,022.40",6241-Hire of Vehicle with Driver,TRANSPORT,DIRECT TRANSPORT COSTS,REVENUE
Walsall Council,http://opendatacommunities.org/id/metropolitan-district-council/walsall ,WC146-11,31.01.2023,CHILDRENS,247 CARS (WILLENHALL) LIMITED,30/01/2023,"1,022.40",6241-Hire of Vehicle with Driver,TRANSPORT,DIRECT TRANSPORT COSTS,REVENUE
Walsall Council,http://opendatacommunities.org/id/metropolitan-district-council/walsall ,WC146-12,31.01.2023,CHILDRENS,247 CARS (WILLENHALL) LIMITED,30/01/2023,760.50,6241-Hire of Vehicle with Driver,TRANSPORT,DIRECT TRANSPORT COSTS,REVENUE
Walsall Council,http://opendatacommunities.org/id/metropolitan-district-council/walsall ,WC146-13,31.01.2023,CHILDRENS,247 CARS (WILLENHALL) LIMITED,30/01/2023,"1,022.40",6241-Hire of Vehicle with Driver,TRANSPORT,DIRECT TRANSPORT COSTS,REVENUE
Walsall Council,http://opendatacommunities.org/id/metropolitan-district-council/walsall ,WC146-14,31.01.2023,CHILDRENS,247 CARS (WILLENHALL) LIMITED,30/01/2023,"1,022.40",6241-Hire of Vehicle with Driver,TRANSPORT,DIRECT TRANSPORT COSTS,REVENUE
Walsall Council,http://opendatacommunities.org/id/metropolitan-district-council/walsall ,WC146-15,31.01.2023,CHILDRENS,247 CARS (WILLENHALL) LIMITED,30/01/2023,620.00,6241-Hire of Vehicle with Driver,TRANSPORT,DIRECT TRANSPORT COSTS,REVENUE
Walsall Council,http://opendatacommunities.org/id/metropolitan-district-council/walsall ,WC146-16,31.01.2023,CHILDRENS,247 CARS (WILLENHALL) LIMITED,30/01/2023,"1,149.30",6241-Hire of Vehicle with Driver,TRANSPORT,DIRECT TRANSPORT COSTS,REVENUE
Walsall Council,http://opendatacommunities.org/id/metropolitan-district-council/walsall ,WC146-17,31.01.2023,CHILDRENS,247 CARS (WILLENHALL) LIMITED,30/01/2023,720.00,6241-Hire of Vehicle with Driver,TRANSPORT,DIRECT TRANSPORT COSTS,REVENUE
Walsall Council,http://opendatacommunities.org/id/metropolitan-district-council/walsall ,WC146-18,31.01.2023,CHILDRENS,247 CARS (WILLENHALL) LIMITED,30/01/2023,832.50,6241-Hire of Vehicle with Driver,TRANSPORT,DIRECT TRANSPORT COSTS,REVENUE
Walsall Council,http://opendatacommunities.org/id/metropolitan-district-council/walsall ,WC146-19,31.01.2023,CHILDRENS,247 CARS (WILLENHALL) LIMITED,30/01/2023,832.50,6241-Hire of Vehicle with Driver,TRANSPORT,DIRECT TRANSPORT COSTS,REVENUE
Walsall Council,http://opendatacommunities.org/id/metropolitan-district-council/walsall ,WC146-20,31.01.2023,CHILDRENS,247 CARS (WILLENHALL) LIMITED,30/01/2023,832.50,6241-Hire of Vehicle with Driver,TRANSPORT,DIRECT TRANSPORT COSTS,REVENUE
Walsall Council,http://opendatacommunities.org/id/metropolitan-district-council/walsall ,WC146-21,31.01.2023,CHILDRENS,247 CARS (WILLENHALL) LIMITED,30/01/2023,832.50,6241-Hire of Vehicle with Driver,TRANSPORT,DIRECT TRANSPORT COSTS,REVENUE
Walsall Council,http://opendatacommunities.org/id/metropolitan-district-council/walsall ,WC146-22,31.01.2023,CHILDRENS,247 CARS (WILLENHALL) LIMITED,30/01/2023,"1,755.00",6241-Hire of Vehicle with Driver,TRANSPORT,DIRECT TRANSPORT COSTS,REVENUE
Walsall Council,http://opendatacommunities.org/id/metropolitan-district-council/walsall ,WC146-23,31.01.2023,CHILDRENS,247 CARS (WILLENHALL) LIMITED,30/01/2023,"1,232.54",6241-Hire of Vehicle with Driver,TRANSPORT,DIRECT TRANSPORT COSTS,REVENUE
Walsall Council,http://opendatacommunities.org/id/metropolitan-district-council/walsall ,WC146-24,31.01.2023,CHILDRENS,247 CARS (WILLENHALL) LIMITED,30/01/2023,809.46,6241-Hire of Vehicle with Driver,TRANSPORT,DIRECT TRANSPORT COSTS,REVENUE
Walsall Council,http://opendatacommunities.org/id/metropolitan-district-council/walsall ,WC146-25,31.01.2023,CHILDRENS,247 CARS (WILLENHALL) LIMITED,30/01/2023,568.00,6241-Hire of Vehicle with Driver,TRANSPORT,DIRECT TRANSPORT COSTS,REVENUE
Walsall Council,http://opendatacommunities.org/id/metropolitan-district-council/walsall ,WC146-26,31.01.2023,CHILDRENS,247 CARS (WILLENHALL) LIMITED,30/01/2023,657.72,6241-Hire of Vehicle with Driver,TRANSPORT,DIRECT TRANSPORT COSTS,REVENUE
Walsall Council,http://opendatacommunities.org/id/metropolitan-district-council/walsall ,WC146-27,31.01.2023,CHILDRENS,247 CARS (WILLENHALL) LIMITED,30/01/2023,"1,138.50",6241-Hire of Vehicle with Driver,TRANSPORT,DIRECT TRANSPORT COSTS,REVENUE
Walsall Council,http://opendatacommunities.org/id/metropolitan-district-council/walsall ,WC146-28,31.01.2023,CHILDRENS,247 CARS (WILLENHALL) LIMITED,30/01/2023,"1,022.40",6241-Hire of Vehicle with Driver,TRANSPORT,DIRECT TRANSPORT COSTS,REVENUE
Walsall Council,http://opendatacommunities.org/id/metropolitan-district-council/walsall ,WC146-29,31.01.2023,CHILDRENS,247 CARS (WILLENHALL) LIMITED,30/01/2023,671.22,6241-Hire of Vehicle with Driver,TRANSPORT,DIRECT TRANSPORT COSTS,REVENUE
Walsall Council,http://opendatacommunities.org/id/metropolitan-district-council/walsall ,WC146-30,31.01.2023,CHILDRENS,247 CARS (WILLENHALL) LIMITED,30/01/2023,"1,080.27",6241-Hire of Vehicle with Driver,TRANSPORT,DIRECT TRANSPORT COSTS,REVENUE
Walsall Council,http://opendatacommunities.org/id/metropolitan-district-council/walsall ,WC146-31,31.01.2023,CHILDRENS,247 CARS (WILLENHALL) LIMITED,30/01/2023,493.92,6241-Hire of Vehicle with Driver,TRANSPORT,DIRECT TRANSPORT COSTS,REVENUE
Walsall Council,http://opendatacommunities.org/id/metropolitan-district-council/walsall ,WC146-32,31.01.2023,CHILDRENS,39 ESSEX STREET LLP PFA,17/01/2023,500.00,6220-External Legal Fees,SUPPLIES & SERVICES,SERVICES,REVENUE
Walsall Council,http://opendatacommunities.org/id/metropolitan-district-council/walsall ,WC146-33,31.01.2023,CHILDRENS,3PB BARRISTERS,18/01/2023,"2,150.00",6220-External Legal Fees,SUPPLIES & SERVICES,SERVICES,REVENUE
Walsall Council,http://opendatacommunities.org/id/metropolitan-district-council/walsall ,WC146-34,31.01.2023,RESOURCES AND TRANSFORMATION,4 SIGHT EYECARE CENTRE 002,27/01/2023,-700.00,6625-Eye Tests,DIRECT EMPLOYEES,EMPLOYEE ALLOWANCES & EXPENSES,REVENUE
Walsall Council,http://opendatacommunities.org/id/metropolitan-district-council/walsall ,WC146-35,31.01.2023,RESOURCES AND TRANSFORMATION,4 SIGHT EYECARE CENTRE 002,27/01/2023,-412.50,6625-Eye Tests,DIRECT EMPLOYEES,EMPLOYEE ALLOWANCES & EXPENSES,REVENUE
Walsall Council,http://opendatacommunities.org/id/metropolitan-district-council/walsall ,WC146-36,31.01.2023,RESOURCES AND TRANSFORMATION,4 SIGHT EYECARE CENTRE 002,27/01/2023,-255.00,6625-Eye Tests,DIRECT EMPLOYEES,EMPLOYEE ALLOWANCES & EXPENSES,REVENUE
Walsall Council,http://opendatacommunities.org/id/metropolitan-district-council/walsall ,WC146-37,31.01.2023,RESOURCES AND TRANSFORMATION,4 SIGHT EYECARE CENTRE 002,27/01/2023,255.00,6625-Eye Tests,DIRECT EMPLOYEES,EMPLOYEE ALLOWANCES & EXPENSES,REVENUE
Walsall Council,http://opendatacommunities.org/id/metropolitan-district-council/walsall ,WC146-38,31.01.2023,RESOURCES AND TRANSFORMATION,4 SIGHT EYECARE CENTRE 002,27/01/2023,412.50,6625-Eye Tests,DIRECT EMPLOYEES,EMPLOYEE ALLOWANCES & EXPENSES,REVENUE
Walsall Council,http://opendatacommunities.org/id/metropolitan-district-council/walsall ,WC146-39,31.01.2023,RESOURCES AND TRANSFORMATION,4 SIGHT EYECARE CENTRE 002,27/01/2023,700.00,6625-Eye Tests,DIRECT EMPLOYEES,EMPLOYEE ALLOWANCES & EXPENSES,REVENUE
Walsall Council,http://opendatacommunities.org/id/metropolitan-district-council/walsall ,WC146-40,31.01.2023,ADULT SOCIAL CARE,5 CARE SERVICES LTD,03/01/2023,"-2,828.00",6541-Domiciliary Care,THIRD PARTY PAYMENTS,PRIVATE CONTRACTOR,REVENUE
Walsall Council,http://opendatacommunities.org/id/metropolitan-district-council/walsall ,WC146-41,31.01.2023,ADULT SOCIAL CARE,5 CARE SERVICES LTD,03/01/2023,614.08,6541-Domiciliary Care,THIRD PARTY PAYMENTS,PRIVATE CONTRACTOR,REVENUE
Walsall Council,http://opendatacommunities.org/id/metropolitan-district-council/walsall ,WC146-42,31.01.2023,ADULT SOCIAL CARE,5 CARE SERVICES LTD,03/01/2023,678.72,6541-Domiciliary Care,THIRD PARTY PAYMENTS,PRIVATE CONTRACTOR,REVENUE
Walsall Council,http://opendatacommunities.org/id/metropolitan-district-council/walsall ,WC146-43,31.01.2023,ADULT SOCIAL CARE,5 CARE SERVICES LTD,03/01/2023,294.92,6541-Domiciliary Care,THIRD PARTY PAYMENTS,PRIVATE CONTRACTOR,REVENUE
Walsall Council,http://opendatacommunities.org/id/metropolitan-district-council/walsall ,WC146-44,31.01.2023,ADULT SOCIAL CARE,5 CARE SERVICES LTD,03/01/2023,659.89,6541-Domiciliary Care,THIRD PARTY PAYMENTS,PRIVATE CONTRACTOR,REVENUE
Walsall Council,http://opendatacommunities.org/id/metropolitan-district-council/walsall ,WC146-45,31.01.2023,ADULT SOCIAL CARE,5 CARE SERVICES LTD,03/01/2023,735.28,6541-Domiciliary Care,THIRD PARTY PAYMENTS,PRIVATE CONTRACTOR,REVENUE
Walsall Council,http://opendatacommunities.org/id/metropolitan-district-council/walsall ,WC146-46,31.01.2023,ADULT SOCIAL CARE,5 CARE SERVICES LTD,03/01/2023,254.52,6541-Domiciliary Care,THIRD PARTY PAYMENTS,PRIVATE CONTRACTOR,REVENUE
Walsall Council,http://opendatacommunities.org/id/metropolitan-district-council/walsall ,WC146-47,31.01.2023,ADULT SOCIAL CARE,5 CARE SERVICES LTD,03/01/2023,536.02,6541-Domiciliary Care,THIRD PARTY PAYMENTS,PRIVATE CONTRACTOR,REVENUE
Walsall Council,http://opendatacommunities.org/id/metropolitan-district-council/walsall ,WC146-48,31.01.2023,ADULT SOCIAL CARE,5 CARE SERVICES LTD,03/01/2023,597.92,6541-Domiciliary Care,THIRD PARTY PAYMENTS,PRIVATE CONTRACTOR,REVENUE
Walsall Council,http://opendatacommunities.org/id/metropolitan-district-council/walsall ,WC146-49,31.01.2023,ADULT SOCIAL CARE,5 CARE SERVICES LTD,03/01/2023,"1,244.32",6541-Domiciliary Care,THIRD PARTY PAYMENTS,PRIVATE CONTRACTOR,REVENUE
Walsall Council,http://opendatacommunities.org/id/metropolitan-district-council/walsall ,WC146-50,31.01.2023,ADULT SOCIAL CARE,5 CARE SERVICES LTD,03/01/2023,-290.88,6541-Domiciliary Care,THIRD PARTY PAYMENTS,PRIVATE CONTRACTOR,REVENUE
Walsall Council,http://opendatacommunities.org/id/metropolitan-district-council/walsall ,WC146-51,31.01.2023,ADULT SOCIAL CARE,5 CARE SERVICES LTD,03/01/2023,254.52,6541-Domiciliary Care,THIRD PARTY PAYMENTS,PRIVATE CONTRACTOR,REVENUE
Walsall Council,http://opendatacommunities.org/id/metropolitan-district-council/walsall ,WC146-52,31.01.2023,ADULT SOCIAL CARE,5 CARE SERVICES LTD,03/01/2023,775.68,6541-Domiciliary Care,THIRD PARTY PAYMENTS,PRIVATE CONTRACTOR,REVENUE
Walsall Council,http://opendatacommunities.org/id/metropolitan-district-council/walsall ,WC146-53,31.01.2023,ADULT SOCIAL CARE,5 CARE SERVICES LTD,03/01/2023,339.36,6541-Domiciliary Care,THIRD PARTY PAYMENTS,PRIVATE CONTRACTOR,REVENUE
Walsall Council,http://opendatacommunities.org/id/metropolitan-district-council/walsall ,WC146-54,31.01.2023,ADULT SOCIAL CARE,5 CARE SERVICES LTD,03/01/2023,509.04,6541-Domiciliary Care,THIRD PARTY PAYMENTS,PRIVATE CONTRACTOR,REVENUE
Walsall Council,http://opendatacommunities.org/id/metropolitan-district-council/walsall ,WC146-55,31.01.2023,ADULT SOCIAL CARE,5 CARE SERVICES LTD,03/01/2023,"-1,402.02",6541-Domiciliary Care,THIRD PARTY PAYMENTS,PRIVATE CONTRACTOR,REVENUE
Walsall Council,http://opendatacommunities.org/id/metropolitan-district-council/walsall ,WC146-56,31.01.2023,ADULT SOCIAL CARE,5 CARE SERVICES LTD,03/01/2023,-387.84,6541-Domiciliary Care,THIRD PARTY PAYMENTS,PRIVATE CONTRACTOR,REVENUE
Walsall Council,http://opendatacommunities.org/id/metropolitan-district-council/walsall ,WC146-57,31.01.2023,ADULT SOCIAL CARE,5 CARE SERVICES LTD,03/01/2023,-638.32,6541-Domiciliary Care,THIRD PARTY PAYMENTS,PRIVATE CONTRACTOR,REVENUE
Walsall Council,http://opendatacommunities.org/id/metropolitan-district-council/walsall ,WC146-58,31.01.2023,ADULT SOCIAL CARE,5 CARE SERVICES LTD,03/01/2023,263.97,6541-Domiciliary Care,THIRD PARTY PAYMENTS,PRIVATE CONTRACTOR,REVENUE
Walsall Council,http://opendatacommunities.org/id/metropolitan-district-council/walsall ,WC146-59,31.01.2023,ADULT SOCIAL CARE,5 CARE SERVICES LTD,03/01/2023,678.72,6541-Domiciliary Care,THIRD PARTY PAYMENTS,PRIVATE CONTRACTOR,REVENUE
Walsall Council,http://opendatacommunities.org/id/metropolitan-district-council/walsall ,WC146-60,31.01.2023,ADULT SOCIAL CARE,5 CARE SERVICES LTD,03/01/2023,385.18,6541-Domiciliary Care,THIRD PARTY PAYMENTS,PRIVATE CONTRACTOR,REVENUE
Walsall Council,http://opendatacommunities.org/id/metropolitan-district-council/walsall ,WC146-61,31.01.2023,ADULT SOCIAL CARE,5 CARE SERVICES LTD,03/01/2023,565.60,6541-Domiciliary Care,THIRD PARTY PAYMENTS,PRIVATE CONTRACTOR,REVENUE
Walsall Council,http://opendatacommunities.org/id/metropolitan-district-council/walsall ,WC146-62,31.01.2023,ADULT SOCIAL CARE,5 CARE SERVICES LTD,03/01/2023,904.96,6541-Domiciliary Care,THIRD PARTY PAYMENTS,PRIVATE CONTRACTOR,REVENUE
Walsall Council,http://opendatacommunities.org/id/metropolitan-district-council/walsall ,WC146-63,31.01.2023,ADULT SOCIAL CARE,5 CARE SERVICES LTD,03/01/2023,"1,637.71",6541-Domiciliary Care,THIRD PARTY PAYMENTS,PRIVATE CONTRACTOR,REVENUE
Walsall Council,http://opendatacommunities.org/id/metropolitan-district-council/walsall ,WC146-64,31.01.2023,ADULT SOCIAL CARE,5 CARE SERVICES LTD,03/01/2023,"1,515.00",6541-Domiciliary Care,THIRD PARTY PAYMENTS,PRIVATE CONTRACTOR,REVENUE
Walsall Council,http://opendatacommunities.org/id/metropolitan-district-council/walsall ,WC146-65,31.01.2023,ADULT SOCIAL CARE,5 CARE SERVICES LTD,03/01/2023,565.60,6541-Domiciliary Care,THIRD PARTY PAYMENTS,PRIVATE CONTRACTOR,REVENUE
Walsall Council,http://opendatacommunities.org/id/metropolitan-district-council/walsall ,WC146-66,31.01.2023,ADULT SOCIAL CARE,5 CARE SERVICES LTD,03/01/2023,-452.48,6541-Domiciliary Care,THIRD PARTY PAYMENTS,PRIVATE CONTRACTOR,REVENUE
Walsall Council,http://opendatacommunities.org/id/metropolitan-district-council/walsall ,WC146-67,31.01.2023,ADULT SOCIAL CARE,5 CARE SERVICES LTD,03/01/2023,"-1,260.48",6541-Domiciliary Care,THIRD PARTY PAYMENTS,PRIVATE CONTRACTOR,REVENUE
Walsall Council,http://opendatacommunities.org/id/metropolitan-district-council/walsall ,WC146-68,31.01.2023,ADULT SOCIAL CARE,5 CARE SERVICES LTD,03/01/2023,452.48,6541-Domiciliary Care,THIRD PARTY PAYMENTS,PRIVATE CONTRACTOR,REVENUE
Walsall Council,http://opendatacommunities.org/id/metropolitan-district-council/walsall ,WC146-69,31.01.2023,ADULT SOCIAL CARE,5 CARE SERVICES LTD,03/01/2023,323.20,6541-Domiciliary Care,THIRD PARTY PAYMENTS,PRIVATE CONTRACTOR,REVENUE
Walsall Council,http://opendatacommunities.org/id/metropolitan-district-council/walsall ,WC146-70,31.01.2023,ADULT SOCIAL CARE,5 CARE SERVICES LTD,03/01/2023,"-1,793.76",6541-Domiciliary Care,THIRD PARTY PAYMENTS,PRIVATE CONTRACTOR,REVENUE
Walsall Council,http://opendatacommunities.org/id/metropolitan-district-council/walsall ,WC146-71,31.01.2023,ADULT SOCIAL CARE,5 CARE SERVICES LTD,03/01/2023,509.04,6541-Domiciliary Care,THIRD PARTY PAYMENTS,PRIVATE CONTRACTOR,REVENUE
Walsall Council,http://opendatacommunities.org/id/metropolitan-district-council/walsall ,WC146-72,31.01.2023,ADULT SOCIAL CARE,5 CARE SERVICES LTD,03/01/2023,339.36,6541-Domiciliary Care,THIRD PARTY PAYMENTS,PRIVATE CONTRACTOR,REVENUE
Walsall Council,http://opendatacommunities.org/id/metropolitan-district-council/walsall ,WC146-73,31.01.2023,ADULT SOCIAL CARE,5 CARE SERVICES LTD,03/01/2023,"2,739.12",6541-Domiciliary Care,THIRD PARTY PAYMENTS,PRIVATE CONTRACTOR,REVENUE
Walsall Council,http://opendatacommunities.org/id/metropolitan-district-council/walsall ,WC146-74,31.01.2023,ADULT SOCIAL CARE,5 CARE SERVICES LTD,03/01/2023,258.56,6541-Domiciliary Care,THIRD PARTY PAYMENTS,PRIVATE CONTRACTOR,REVENUE
Walsall Council,http://opendatacommunities.org/id/metropolitan-district-council/walsall ,WC146-75,31.01.2023,ADULT SOCIAL CARE,5 CARE SERVICES LTD,03/01/2023,509.04,6541-Domiciliary Care,THIRD PARTY PAYMENTS,PRIVATE CONTRACTOR,REVENUE
Walsall Council,http://opendatacommunities.org/id/metropolitan-district-council/walsall ,WC146-76,31.01.2023,ADULT SOCIAL CARE,5 CARE SERVICES LTD,03/01/2023,765.00,6541-Domiciliary Care,THIRD PARTY PAYMENTS,PRIVATE CONTRACTOR,REVENUE
Walsall Council,http://opendatacommunities.org/id/metropolitan-district-council/walsall ,WC146-77,31.01.2023,ADULT SOCIAL CARE,5 CARE SERVICES LTD,03/01/2023,-714.10,6541-Domiciliary Care,THIRD PARTY PAYMENTS,PRIVATE CONTRACTOR,REVENUE
Walsall Council,http://opendatacommunities.org/id/metropolitan-district-council/walsall ,WC146-78,31.01.2023,ADULT SOCIAL CARE,5 CARE SERVICES LTD,03/01/2023,339.36,6541-Domiciliary Care,THIRD PARTY PAYMENTS,PRIVATE CONTRACTOR,REVENUE
Walsall Council,http://opendatacommunities.org/id/metropolitan-district-council/walsall ,WC146-79,31.01.2023,ADULT SOCIAL CARE,5 CARE SERVICES LTD,03/01/2023,"-2,230.08",6541-Domiciliary Care,THIRD PARTY PAYMENTS,PRIVATE CONTRACTOR,REVENUE
Walsall Council,http://opendatacommunities.org/id/metropolitan-district-council/walsall ,WC146-80,31.01.2023,ADULT SOCIAL CARE,5 CARE SERVICES LTD,03/01/2023,298.96,6541-Domiciliary Care,THIRD PARTY PAYMENTS,PRIVATE CONTRACTOR,REVENUE
Walsall Council,http://opendatacommunities.org/id/metropolitan-district-council/walsall ,WC146-81,31.01.2023,ADULT SOCIAL CARE,5 CARE SERVICES LTD,03/01/2023,509.04,6541-Domiciliary Care,THIRD PARTY PAYMENTS,PRIVATE CONTRACTOR,REVENUE
Walsall Council,http://opendatacommunities.org/id/metropolitan-district-council/walsall ,WC146-82,31.01.2023,ADULT SOCIAL CARE,5 CARE SERVICES LTD,03/01/2023,-387.84,6541-Domiciliary Care,THIRD PARTY PAYMENTS,PRIVATE CONTRACTOR,REVENUE
Walsall Council,http://opendatacommunities.org/id/metropolitan-district-council/walsall ,WC146-83,31.01.2023,ADULT SOCIAL CARE,5 CARE SERVICES LTD,03/01/2023,509.04,6541-Domiciliary Care,THIRD PARTY PAYMENTS,PRIVATE CONTRACTOR,REVENUE
Walsall Council,http://opendatacommunities.org/id/metropolitan-district-council/walsall ,WC146-84,31.01.2023,ADULT SOCIAL CARE,5 CARE SERVICES LTD,03/01/2023,254.52,6541-Domiciliary Care,THIRD PARTY PAYMENTS,PRIVATE CONTRACTOR,REVENUE
Walsall Council,http://opendatacommunities.org/id/metropolitan-district-council/walsall ,WC146-85,31.01.2023,ADULT SOCIAL CARE,5 CARE SERVICES LTD,03/01/2023,"2,246.24",6541-Domiciliary Care,THIRD PARTY PAYMENTS,PRIVATE CONTRACTOR,REVENUE
Walsall Council,http://opendatacommunities.org/id/metropolitan-district-council/walsall ,WC146-86,31.01.2023,ADULT SOCIAL CARE,5 CARE SERVICES LTD,03/01/2023,"1,123.12",6541-Domiciliary Care,THIRD PARTY PAYMENTS,PRIVATE CONTRACTOR,REVENUE
Walsall Council,http://opendatacommunities.org/id/metropolitan-district-council/walsall ,WC146-87,31.01.2023,ADULT SOCIAL CARE,5 CARE SERVICES LTD,03/01/2023,"3,393.60",6541-Domiciliary Care,THIRD PARTY PAYMENTS,PRIVATE CONTRACTOR,REVENUE
Walsall Council,http://opendatacommunities.org/id/metropolitan-district-council/walsall ,WC146-88,31.01.2023,ADULT SOCIAL CARE,5 CARE SERVICES LTD,03/01/2023,"1,276.64",6541-Domiciliary Care,THIRD PARTY PAYMENTS,PRIVATE CONTRACTOR,REVENUE
Walsall Council,http://opendatacommunities.org/id/metropolitan-district-council/walsall ,WC146-89,31.01.2023,ADULT SOCIAL CARE,5 CARE SERVICES LTD,03/01/2023,492.88,6541-Domiciliary Care,THIRD PARTY PAYMENTS,PRIVATE CONTRACTOR,REVENUE
Walsall Council,http://opendatacommunities.org/id/metropolitan-district-council/walsall ,WC146-90,31.01.2023,ADULT SOCIAL CARE,5 CARE SERVICES LTD,03/01/2023,492.88,6541-Domiciliary Care,THIRD PARTY PAYMENTS,PRIVATE CONTRACTOR,REVENUE
Walsall Council,http://opendatacommunities.org/id/metropolitan-district-council/walsall ,WC146-91,31.01.2023,ADULT SOCIAL CARE,5 CARE SERVICES LTD,03/01/2023,323.20,6541-Domiciliary Care,THIRD PARTY PAYMENTS,PRIVATE CONTRACTOR,REVENUE
Walsall Council,http://opendatacommunities.org/id/metropolitan-district-council/walsall ,WC146-92,31.01.2023,ADULT SOCIAL CARE,5 CARE SERVICES LTD,03/01/2023,339.36,6541-Domiciliary Care,THIRD PARTY PAYMENTS,PRIVATE CONTRACTOR,REVENUE
Walsall Council,http://opendatacommunities.org/id/metropolitan-district-council/walsall ,WC146-93,31.01.2023,ADULT SOCIAL CARE,5 CARE SERVICES LTD,03/01/2023,509.04,6541-Domiciliary Care,THIRD PARTY PAYMENTS,PRIVATE CONTRACTOR,REVENUE
Walsall Council,http://opendatacommunities.org/id/metropolitan-district-council/walsall ,WC146-94,31.01.2023,ADULT SOCIAL CARE,5 CARE SERVICES LTD,03/01/2023,904.96,6541-Domiciliary Care,THIRD PARTY PAYMENTS,PRIVATE CONTRACTOR,REVENUE
Walsall Council,http://opendatacommunities.org/id/metropolitan-district-council/walsall ,WC146-95,31.01.2023,ADULT SOCIAL CARE,5 CARE SERVICES LTD,03/01/2023,254.52,6541-Domiciliary Care,THIRD PARTY PAYMENTS,PRIVATE CONTRACTOR,REVENUE
Walsall Council,http://opendatacommunities.org/id/metropolitan-district-council/walsall ,WC146-96,31.01.2023,ADULT SOCIAL CARE,5 CARE SERVICES LTD,03/01/2023,339.36,6541-Domiciliary Care,THIRD PARTY PAYMENTS,PRIVATE CONTRACTOR,REVENUE
Walsall Council,http://opendatacommunities.org/id/metropolitan-district-council/walsall ,WC146-97,31.01.2023,ADULT SOCIAL CARE,5 CARE SERVICES LTD,03/01/2023,258.56,6541-Domiciliary Care,THIRD PARTY PAYMENTS,PRIVATE CONTRACTOR,REVENUE
Walsall Council,http://opendatacommunities.org/id/metropolitan-district-council/walsall ,WC146-98,31.01.2023,ADULT SOCIAL CARE,5 CARE SERVICES LTD,03/01/2023,509.04,6541-Domiciliary Care,THIRD PARTY PAYMENTS,PRIVATE CONTRACTOR,REVENUE
Walsall Council,http://opendatacommunities.org/id/metropolitan-district-council/walsall ,WC146-99,31.01.2023,ADULT SOCIAL CARE,5 CARE SERVICES LTD,03/01/2023,509.04,6541-Domiciliary Care,THIRD PARTY PAYMENTS,PRIVATE CONTRACTOR,REVENUE
Walsall Council,http://opendatacommunities.org/id/metropolitan-district-council/walsall ,WC146-100,31.01.2023,ADULT SOCIAL CARE,5 CARE SERVICES LTD,03/01/2023,509.04,6541-Domiciliary Care,THIRD PARTY PAYMENTS,PRIVATE CONTRACTOR,REVENUE
Walsall Council,http://opendatacommunities.org/id/metropolitan-district-council/walsall ,WC146-101,31.01.2023,ADULT SOCIAL CARE,5 CARE SERVICES LTD,03/01/2023,254.52,6541-Domiciliary Care,THIRD PARTY PAYMENTS,PRIVATE CONTRACTOR,REVENUE
Walsall Council,http://opendatacommunities.org/id/metropolitan-district-council/walsall ,WC146-102,31.01.2023,ADULT SOCIAL CARE,5 CARE SERVICES LTD,03/01/2023,765.00,6541-Domiciliary Care,THIRD PARTY PAYMENTS,PRIVATE CONTRACTOR,REVENUE
Walsall Council,http://opendatacommunities.org/id/metropolitan-district-council/walsall ,WC146-103,31.01.2023,ADULT SOCIAL CARE,5 CARE SERVICES LTD,03/01/2023,694.88,6541-Domiciliary Care,THIRD PARTY PAYMENTS,PRIVATE CONTRACTOR,REVENUE
Walsall Council,http://opendatacommunities.org/id/metropolitan-district-council/walsall ,WC146-104,31.01.2023,ADULT SOCIAL CARE,5 CARE SERVICES LTD,03/01/2023,678.72,6541-Domiciliary Care,THIRD PARTY PAYMENTS,PRIVATE CONTRACTOR,REVENUE
Walsall Council,http://opendatacommunities.org/id/metropolitan-district-council/walsall ,WC146-105,31.01.2023,ADULT SOCIAL CARE,5 CARE SERVICES LTD,03/01/2023,294.92,6541-Domiciliary Care,THIRD PARTY PAYMENTS,PRIVATE CONTRACTOR,REVENUE
Walsall Council,http://opendatacommunities.org/id/metropolitan-district-council/walsall ,WC146-106,31.01.2023,ADULT SOCIAL CARE,5 CARE SERVICES LTD,03/01/2023,659.89,6541-Domiciliary Care,THIRD PARTY PAYMENTS,PRIVATE CONTRACTOR,REVENUE
Walsall Council,http://opendatacommunities.org/id/metropolitan-district-council/walsall ,WC146-107,31.01.2023,ADULT SOCIAL CARE,5 CARE SERVICES LTD,03/01/2023,339.36,6541-Domiciliary Care,THIRD PARTY PAYMENTS,PRIVATE CONTRACTOR,REVENUE
Walsall Council,http://opendatacommunities.org/id/metropolitan-district-council/walsall ,WC146-108,31.01.2023,ADULT SOCIAL CARE,5 CARE SERVICES LTD,03/01/2023,606.00,6541-Domiciliary Care,THIRD PARTY PAYMENTS,PRIVATE CONTRACTOR,REVENUE
Walsall Council,http://opendatacommunities.org/id/metropolitan-district-council/walsall ,WC146-109,31.01.2023,ADULT SOCIAL CARE,5 CARE SERVICES LTD,03/01/2023,452.48,6541-Domiciliary Care,THIRD PARTY PAYMENTS,PRIVATE CONTRACTOR,REVENUE
Walsall Council,http://opendatacommunities.org/id/metropolitan-district-council/walsall ,WC146-110,31.01.2023,ADULT SOCIAL CARE,5 CARE SERVICES LTD,03/01/2023,565.60,6541-Domiciliary Care,THIRD PARTY PAYMENTS,PRIVATE CONTRACTOR,REVENUE
Walsall Council,http://opendatacommunities.org/id/metropolitan-district-council/walsall ,WC146-111,31.01.2023,ADULT SOCIAL CARE,5 CARE SERVICES LTD,03/01/2023,254.52,6541-Domiciliary Care,THIRD PARTY PAYMENTS,PRIVATE CONTRACTOR,REVENUE
Walsall Council,http://opendatacommunities.org/id/metropolitan-district-council/walsall ,WC146-112,31.01.2023,ADULT SOCIAL CARE,5 CARE SERVICES LTD,03/01/2023,735.28,6541-Domiciliary Care,THIRD PARTY PAYMENTS,PRIVATE CONTRACTOR,REVENUE
Walsall Council,http://opendatacommunities.org/id/metropolitan-district-council/walsall ,WC146-113,31.01.2023,ADULT SOCIAL CARE,5 CARE SERVICES LTD,03/01/2023,254.52,6541-Domiciliary Care,THIRD PARTY PAYMENTS,PRIVATE CONTRACTOR,REVENUE
Walsall Council,http://opendatacommunities.org/id/metropolitan-district-council/walsall ,WC146-114,31.01.2023,ADULT SOCIAL CARE,5 CARE SERVICES LTD,03/01/2023,536.02,6541-Domiciliary Care,THIRD PARTY PAYMENTS,PRIVATE CONTRACTOR,REVENUE
Walsall Council,http://opendatacommunities.org/id/metropolitan-district-council/walsall ,WC146-115,31.01.2023,ADULT SOCIAL CARE,5 CARE SERVICES LTD,03/01/2023,597.92,6541-Domiciliary Care,THIRD PARTY PAYMENTS,PRIVATE CONTRACTOR,REVENUE
Walsall Council,http://opendatacommunities.org/id/metropolitan-district-council/walsall ,WC146-116,31.01.2023,ADULT SOCIAL CARE,5 CARE SERVICES LTD,03/01/2023,"1,244.32",6541-Domiciliary Care,THIRD PARTY PAYMENTS,PRIVATE CONTRACTOR,REVENUE
Walsall Council,http://opendatacommunities.org/id/metropolitan-district-council/walsall ,WC146-117,31.01.2023,ADULT SOCIAL CARE,5 CARE SERVICES LTD,03/01/2023,263.97,6541-Domiciliary Care,THIRD PARTY PAYMENTS,PRIVATE CONTRACTOR,REVENUE
Walsall Council,http://opendatacommunities.org/id/metropolitan-district-council/walsall ,WC146-118,31.01.2023,ADULT SOCIAL CARE,5 CARE SERVICES LTD,03/01/2023,678.72,6541-Domiciliary Care,THIRD PARTY PAYMENTS,PRIVATE CONTRACTOR,REVENUE
Walsall Council,http://opendatacommunities.org/id/metropolitan-district-council/walsall ,WC146-119,31.01.2023,ADULT SOCIAL CARE,5 CARE SERVICES LTD,03/01/2023,584.50,6541-Domiciliary Care,THIRD PARTY PAYMENTS,PRIVATE CONTRACTOR,REVENUE
Walsall Council,http://opendatacommunities.org/id/metropolitan-district-council/walsall ,WC146-120,31.01.2023,ADULT SOCIAL CARE,5 CARE SERVICES LTD,03/01/2023,290.88,6541-Domiciliary Care,THIRD PARTY PAYMENTS,PRIVATE CONTRACTOR,REVENUE
Walsall Council,http://opendatacommunities.org/id/metropolitan-district-council/walsall ,WC146-121,31.01.2023,ADULT SOCIAL CARE,5 CARE SERVICES LTD,03/01/2023,254.52,6541-Domiciliary Care,THIRD PARTY PAYMENTS,PRIVATE CONTRACTOR,REVENUE
Walsall Council,http://opendatacommunities.org/id/metropolitan-district-council/walsall ,WC146-122,31.01.2023,ADULT SOCIAL CARE,5 CARE SERVICES LTD,03/01/2023,565.60,6541-Domiciliary Care,THIRD PARTY PAYMENTS,PRIVATE CONTRACTOR,REVENUE
Walsall Council,http://opendatacommunities.org/id/metropolitan-district-council/walsall ,WC146-123,31.01.2023,ADULT SOCIAL CARE,5 CARE SERVICES LTD,03/01/2023,452.48,6541-Domiciliary Care,THIRD PARTY PAYMENTS,PRIVATE CONTRACTOR,REVENUE
Walsall Council,http://opendatacommunities.org/id/metropolitan-district-council/walsall ,WC146-124,31.01.2023,ADULT SOCIAL CARE,5 CARE SERVICES LTD,03/01/2023,509.04,6541-Domiciliary Care,THIRD PARTY PAYMENTS,PRIVATE CONTRACTOR,REVENUE
Walsall Council,http://opendatacommunities.org/id/metropolitan-district-council/walsall ,WC146-125,31.01.2023,ADULT SOCIAL CARE,5 CARE SERVICES LTD,03/01/2023,254.52,6541-Domiciliary Care,THIRD PARTY PAYMENTS,PRIVATE CONTRACTOR,REVENUE
Walsall Council,http://opendatacommunities.org/id/metropolitan-district-council/walsall ,WC146-126,31.01.2023,ADULT SOCIAL CARE,5 CARE SERVICES LTD,03/01/2023,509.04,6541-Domiciliary Care,THIRD PARTY PAYMENTS,PRIVATE CONTRACTOR,REVENUE
Walsall Council,http://opendatacommunities.org/id/metropolitan-district-council/walsall ,WC146-127,31.01.2023,ADULT SOCIAL CARE,5 CARE SERVICES LTD,11/01/2023,395.92,6554-Professional Services-Priv Contractor & Other Agencies,THIRD PARTY PAYMENTS,PRIVATE CONTRACTOR,REVENUE
Walsall Council,http://opendatacommunities.org/id/metropolitan-district-council/walsall ,WC146-128,31.01.2023,ADULT SOCIAL CARE,5 CARE SERVICES LTD,11/01/2023,961.52,6554-Professional Services-Priv Contractor & Other Agencies,THIRD PARTY PAYMENTS,PRIVATE CONTRACTOR,REVENUE
Walsall Council,http://opendatacommunities.org/id/metropolitan-district-council/walsall ,WC146-129,31.01.2023,ADULT SOCIAL CARE,5 CARE SERVICES LTD,11/01/2023,"3,050.20",6554-Professional Services-Priv Contractor & Other Agencies,THIRD PARTY PAYMENTS,PRIVATE CONTRACTOR,REVENUE
Walsall Council,http://opendatacommunities.org/id/metropolitan-district-council/walsall ,WC146-130,31.01.2023,ADULT SOCIAL CARE,5 CARE SERVICES LTD,11/01/2023,"1,276.64",6554-Professional Services-Priv Contractor & Other Agencies,THIRD PARTY PAYMENTS,PRIVATE CONTRACTOR,REVENUE
Walsall Council,http://opendatacommunities.org/id/metropolitan-district-council/walsall ,WC146-131,31.01.2023,ADULT SOCIAL CARE,5 CARE SERVICES LTD,11/01/2023,395.92,6554-Professional Services-Priv Contractor & Other Agencies,THIRD PARTY PAYMENTS,PRIVATE CONTRACTOR,REVENUE
Walsall Council,http://opendatacommunities.org/id/metropolitan-district-council/walsall ,WC146-132,31.01.2023,ADULT SOCIAL CARE,5 CARE SERVICES LTD,11/01/2023,654.48,6554-Professional Services-Priv Contractor & Other Agencies,THIRD PARTY PAYMENTS,PRIVATE CONTRACTOR,REVENUE
Walsall Council,http://opendatacommunities.org/id/metropolitan-district-council/walsall ,WC146-133,31.01.2023,ADULT SOCIAL CARE,5 CARE SERVICES LTD,11/01/2023,904.96,6554-Professional Services-Priv Contractor & Other Agencies,THIRD PARTY PAYMENTS,PRIVATE CONTRACTOR,REVENUE
Walsall Council,http://opendatacommunities.org/id/metropolitan-district-council/walsall ,WC146-134,31.01.2023,ADULT SOCIAL CARE,5 CARE SERVICES LTD,11/01/2023,343.40,6554-Professional Services-Priv Contractor & Other Agencies,THIRD PARTY PAYMENTS,PRIVATE CONTRACTOR,REVENUE
Walsall Council,http://opendatacommunities.org/id/metropolitan-district-council/walsall ,WC146-135,31.01.2023,ADULT SOCIAL CARE,5 CARE SERVICES LTD,11/01/2023,678.72,6554-Professional Services-Priv Contractor & Other Agencies,THIRD PARTY PAYMENTS,PRIVATE CONTRACTOR,REVENUE
Walsall Council,http://opendatacommunities.org/id/metropolitan-district-council/walsall ,WC146-136,31.01.2023,ADULT SOCIAL CARE,5 CARE SERVICES LTD,11/01/2023,371.68,6554-Professional Services-Priv Contractor & Other Agencies,THIRD PARTY PAYMENTS,PRIVATE CONTRACTOR,REVENUE
Walsall Council,http://opendatacommunities.org/id/metropolitan-district-council/walsall ,WC146-137,31.01.2023,ADULT SOCIAL CARE,5 CARE SERVICES LTD,11/01/2023,"2,537.12",6554-Professional Services-Priv Contractor & Other Agencies,THIRD PARTY PAYMENTS,PRIVATE CONTRACTOR,REVENUE
Walsall Council,http://opendatacommunities.org/id/metropolitan-district-council/walsall ,WC146-138,31.01.2023,ADULT SOCIAL CARE,5 CARE SERVICES LTD,11/01/2023,852.44,6554-Professional Services-Priv Contractor & Other Agencies,THIRD PARTY PAYMENTS,PRIVATE CONTRACTOR,REVENUE
Walsall Council,http://opendatacommunities.org/id/metropolitan-district-council/walsall ,WC146-139,31.01.2023,ADULT SOCIAL CARE,5 CARE SERVICES LTD,11/01/2023,258.56,6554-Professional Services-Priv Contractor & Other Agencies,THIRD PARTY PAYMENTS,PRIVATE CONTRACTOR,REVENUE
Walsall Council,http://opendatacommunities.org/id/metropolitan-district-council/walsall ,WC146-140,31.01.2023,ADULT SOCIAL CARE,5 CARE SERVICES LTD,11/01/2023,517.12,6554-Professional Services-Priv Contractor & Other Agencies,THIRD PARTY PAYMENTS,PRIVATE CONTRACTOR,REVENUE
Walsall Council,http://opendatacommunities.org/id/metropolitan-district-council/walsall ,WC146-141,31.01.2023,ADULT SOCIAL CARE,5 CARE SERVICES LTD,11/01/2023,258.56,6554-Professional Services-Priv Contractor & Other Agencies,THIRD PARTY PAYMENTS,PRIVATE CONTRACTOR,REVENUE
Walsall Council,http://opendatacommunities.org/id/metropolitan-district-council/walsall ,WC146-142,31.01.2023,ADULT SOCIAL CARE,5 CARE SERVICES LTD,11/01/2023,258.56,6554-Professional Services-Priv Contractor & Other Agencies,THIRD PARTY PAYMENTS,PRIVATE CONTRACTOR,REVENUE
Walsall Council,http://opendatacommunities.org/id/metropolitan-district-council/walsall ,WC146-143,31.01.2023,ADULT SOCIAL CARE,5 CARE SERVICES LTD,11/01/2023,"1,163.52",6554-Professional Services-Priv Contractor & Other Agencies,THIRD PARTY PAYMENTS,PRIVATE CONTRACTOR,REVENUE
Walsall Council,http://opendatacommunities.org/id/metropolitan-district-council/walsall ,WC146-144,31.01.2023,ADULT SOCIAL CARE,5 CARE SERVICES LTD,11/01/2023,"2,036.16",6554-Professional Services-Priv Contractor & Other Agencies,THIRD PARTY PAYMENTS,PRIVATE CONTRACTOR,REVENUE
Walsall Council,http://opendatacommunities.org/id/metropolitan-district-council/walsall ,WC146-145,31.01.2023,ADULT SOCIAL CARE,5 CARE SERVICES LTD,11/01/2023,266.64,6554-Professional Services-Priv Contractor & Other Agencies,THIRD PARTY PAYMENTS,PRIVATE CONTRACTOR,REVENUE
Walsall Council,http://opendatacommunities.org/id/metropolitan-district-council/walsall ,WC146-146,31.01.2023,ADULT SOCIAL CARE,5 CARE SERVICES LTD,11/01/2023,"1,734.88",6554-Professional Services-Priv Contractor & Other Agencies,THIRD PARTY PAYMENTS,PRIVATE CONTRACTOR,REVENUE
Walsall Council,http://opendatacommunities.org/id/metropolitan-district-council/walsall ,WC146-147,31.01.2023,ADULT SOCIAL CARE,5 CARE SERVICES LTD,11/01/2023,424.20,6554-Professional Services-Priv Contractor & Other Agencies,THIRD PARTY PAYMENTS,PRIVATE CONTRACTOR,REVENUE
Walsall Council,http://opendatacommunities.org/id/metropolitan-district-council/walsall ,WC146-148,31.01.2023,ADULT SOCIAL CARE,5 CARE SERVICES LTD,11/01/2023,"1,220.08",6554-Professional Services-Priv Contractor & Other Agencies,THIRD PARTY PAYMENTS,PRIVATE CONTRACTOR,REVENUE
Walsall Council,http://opendatacommunities.org/id/metropolitan-district-council/walsall ,WC146-149,31.01.2023,ADULT SOCIAL CARE,5 CARE SERVICES LTD,11/01/2023,565.60,6554-Professional Services-Priv Contractor & Other Agencies,THIRD PARTY PAYMENTS,PRIVATE CONTRACTOR,REVENUE
Walsall Council,http://opendatacommunities.org/id/metropolitan-district-council/walsall ,WC146-150,31.01.2023,ADULT SOCIAL CARE,5 CARE SERVICES LTD,11/01/2023,"1,579.64",6554-Professional Services-Priv Contractor & Other Agencies,THIRD PARTY PAYMENTS,PRIVATE CONTRACTOR,REVENUE
Walsall Council,http://opendatacommunities.org/id/metropolitan-district-council/walsall ,WC146-151,31.01.2023,ADULT SOCIAL CARE,5 CARE SERVICES LTD,11/01/2023,"1,018.08",6554-Professional Services-Priv Contractor & Other Agencies,THIRD PARTY PAYMENTS,PRIVATE CONTRACTOR,REVENUE
Walsall Council,http://opendatacommunities.org/id/metropolitan-district-council/walsall ,WC146-152,31.01.2023,ADULT SOCIAL CARE,5 CARE SERVICES LTD,11/01/2023,387.84,6554-Professional Services-Priv Contractor & Other Agencies,THIRD PARTY PAYMENTS,PRIVATE CONTRACTOR,REVENUE
Walsall Council,http://opendatacommunities.org/id/metropolitan-district-council/walsall ,WC146-153,31.01.2023,ADULT SOCIAL CARE,5 CARE SERVICES LTD,11/01/2023,"1,470.56",6554-Professional Services-Priv Contractor & Other Agencies,THIRD PARTY PAYMENTS,PRIVATE CONTRACTOR,REVENUE
Walsall Council,http://opendatacommunities.org/id/metropolitan-district-council/walsall ,WC146-154,31.01.2023,ADULT SOCIAL CARE,5 CARE SERVICES LTD,11/01/2023,395.92,6554-Professional Services-Priv Contractor & Other Agencies,THIRD PARTY PAYMENTS,PRIVATE CONTRACTOR,REVENUE
Walsall Council,http://opendatacommunities.org/id/metropolitan-district-council/walsall ,WC146-155,31.01.2023,ADULT SOCIAL CARE,5 CARE SERVICES LTD,11/01/2023,"2,036.16",6554-Professional Services-Priv Contractor & Other Agencies,THIRD PARTY PAYMENTS,PRIVATE CONTRACTOR,REVENUE
Walsall Council,http://opendatacommunities.org/id/metropolitan-district-council/walsall ,WC146-156,31.01.2023,ADULT SOCIAL CARE,5 CARE SERVICES LTD,11/01/2023,323.20,6554-Professional Services-Priv Contractor & Other Agencies,THIRD PARTY PAYMENTS,PRIVATE CONTRACTOR,REVENUE
Walsall Council,http://opendatacommunities.org/id/metropolitan-district-council/walsall ,WC146-157,31.01.2023,ADULT SOCIAL CARE,5 CARE SERVICES LTD,11/01/2023,517.12,6554-Professional Services-Priv Contractor & Other Agencies,THIRD PARTY PAYMENTS,PRIVATE CONTRACTOR,REVENUE
Walsall Council,http://opendatacommunities.org/id/metropolitan-district-council/walsall ,WC146-158,31.01.2023,ADULT SOCIAL CARE,5 CARE SERVICES LTD,11/01/2023,323.20,6554-Professional Services-Priv Contractor & Other Agencies,THIRD PARTY PAYMENTS,PRIVATE CONTRACTOR,REVENUE
Walsall Council,http://opendatacommunities.org/id/metropolitan-district-council/walsall ,WC146-159,31.01.2023,ADULT SOCIAL CARE,5 CARE SERVICES LTD,11/01/2023,"2,327.04",6554-Professional Services-Priv Contractor & Other Agencies,THIRD PARTY PAYMENTS,PRIVATE CONTRACTOR,REVENUE
Walsall Council,http://opendatacommunities.org/id/metropolitan-district-council/walsall ,WC146-160,31.01.2023,ADULT SOCIAL CARE,5 CARE SERVICES LTD,11/01/2023,"1,939.20",6554-Professional Services-Priv Contractor & Other Agencies,THIRD PARTY PAYMENTS,PRIVATE CONTRACTOR,REVENUE
Walsall Council,http://opendatacommunities.org/id/metropolitan-district-council/walsall ,WC146-161,31.01.2023,ADULT SOCIAL CARE,5 CARE SERVICES LTD,11/01/2023,"1,575.60",6554-Professional Services-Priv Contractor & Other Agencies,THIRD PARTY PAYMENTS,PRIVATE CONTRACTOR,REVENUE
Walsall Council,http://opendatacommunities.org/id/metropolitan-district-council/walsall ,WC146-162,31.01.2023,ADULT SOCIAL CARE,5 CARE SERVICES LTD,11/01/2023,509.04,6554-Professional Services-Priv Contractor & Other Agencies,THIRD PARTY PAYMENTS,PRIVATE CONTRACTOR,REVENUE
Walsall Council,http://opendatacommunities.org/id/metropolitan-district-council/walsall ,WC146-163,31.01.2023,ADULT SOCIAL CARE,5 CARE SERVICES LTD,11/01/2023,387.84,6554-Professional Services-Priv Contractor & Other Agencies,THIRD PARTY PAYMENTS,PRIVATE CONTRACTOR,REVENUE
Walsall Council,http://opendatacommunities.org/id/metropolitan-district-council/walsall ,WC146-164,31.01.2023,ADULT SOCIAL CARE,5 CARE SERVICES LTD,11/01/2023,"1,260.48",6554-Professional Services-Priv Contractor & Other Agencies,THIRD PARTY PAYMENTS,PRIVATE CONTRACTOR,REVENUE
Walsall Council,http://opendatacommunities.org/id/metropolitan-district-council/walsall ,WC146-165,31.01.2023,ADULT SOCIAL CARE,5 CARE SERVICES LTD,11/01/2023,775.68,6554-Professional Services-Priv Contractor & Other Agencies,THIRD PARTY PAYMENTS,PRIVATE CONTRACTOR,REVENUE
Walsall Council,http://opendatacommunities.org/id/metropolitan-district-council/walsall ,WC146-166,31.01.2023,ADULT SOCIAL CARE,5 CARE SERVICES LTD,16/01/2023,694.88,6541-Domiciliary Care,THIRD PARTY PAYMENTS,PRIVATE CONTRACTOR,REVENUE
Walsall Council,http://opendatacommunities.org/id/metropolitan-district-council/walsall ,WC146-167,31.01.2023,ADULT SOCIAL CARE,5 CARE SERVICES LTD,16/01/2023,452.48,6541-Domiciliary Care,THIRD PARTY PAYMENTS,PRIVATE CONTRACTOR,REVENUE
Walsall Council,http://opendatacommunities.org/id/metropolitan-district-council/walsall ,WC146-168,31.01.2023,ADULT SOCIAL CARE,5 CARE SERVICES LTD,16/01/2023,509.04,6541-Domiciliary Care,THIRD PARTY PAYMENTS,PRIVATE CONTRACTOR,REVENUE
Walsall Council,http://opendatacommunities.org/id/metropolitan-district-council/walsall ,WC146-169,31.01.2023,ADULT SOCIAL CARE,5 CARE SERVICES LTD,16/01/2023,735.28,6541-Domiciliary Care,THIRD PARTY PAYMENTS,PRIVATE CONTRACTOR,REVENUE
Walsall Council,http://opendatacommunities.org/id/metropolitan-district-council/walsall ,WC146-170,31.01.2023,ADULT SOCIAL CARE,5 CARE SERVICES LTD,16/01/2023,254.52,6541-Domiciliary Care,THIRD PARTY PAYMENTS,PRIVATE CONTRACTOR,REVENUE
Walsall Council,http://opendatacommunities.org/id/metropolitan-district-council/walsall ,WC146-171,31.01.2023,ADULT SOCIAL CARE,5 CARE SERVICES LTD,16/01/2023,678.72,6541-Domiciliary Care,THIRD PARTY PAYMENTS,PRIVATE CONTRACTOR,REVENUE
Walsall Council,http://opendatacommunities.org/id/metropolitan-district-council/walsall ,WC146-172,31.01.2023,ADULT SOCIAL CARE,5 CARE SERVICES LTD,16/01/2023,294.92,6541-Domiciliary Care,THIRD PARTY PAYMENTS,PRIVATE CONTRACTOR,REVENUE
Walsall Council,http://opendatacommunities.org/id/metropolitan-district-council/walsall ,WC146-173,31.01.2023,ADULT SOCIAL CARE,5 CARE SERVICES LTD,16/01/2023,659.89,6541-Domiciliary Care,THIRD PARTY PAYMENTS,PRIVATE CONTRACTOR,REVENUE
Walsall Council,http://opendatacommunities.org/id/metropolitan-district-council/walsall ,WC146-174,31.01.2023,ADULT SOCIAL CARE,5 CARE SERVICES LTD,16/01/2023,904.96,6541-Domiciliary Care,THIRD PARTY PAYMENTS,PRIVATE CONTRACTOR,REVENUE
Walsall Council,http://opendatacommunities.org/id/metropolitan-district-council/walsall ,WC146-175,31.01.2023,ADULT SOCIAL CARE,5 CARE SERVICES LTD,16/01/2023,536.02,6541-Domiciliary Care,THIRD PARTY PAYMENTS,PRIVATE CONTRACTOR,REVENUE
Walsall Council,http://opendatacommunities.org/id/metropolitan-district-council/walsall ,WC146-176,31.01.2023,ADULT SOCIAL CARE,5 CARE SERVICES LTD,16/01/2023,597.92,6541-Domiciliary Care,THIRD PARTY PAYMENTS,PRIVATE CONTRACTOR,REVENUE
Walsall Council,http://opendatacommunities.org/id/metropolitan-district-council/walsall ,WC146-177,31.01.2023,ADULT SOCIAL CARE,5 CARE SERVICES LTD,16/01/2023,"1,244.32",6541-Domiciliary Care,THIRD PARTY PAYMENTS,PRIVATE CONTRACTOR,REVENUE
Walsall Council,http://opendatacommunities.org/id/metropolitan-district-council/walsall ,WC146-178,31.01.2023,ADULT SOCIAL CARE,5 CARE SERVICES LTD,16/01/2023,254.52,6541-Domiciliary Care,THIRD PARTY PAYMENTS,PRIVATE CONTRACTOR,REVENUE
Walsall Council,http://opendatacommunities.org/id/metropolitan-district-council/walsall ,WC146-179,31.01.2023,ADULT SOCIAL CARE,5 CARE SERVICES LTD,16/01/2023,581.76,6541-Domiciliary Care,THIRD PARTY PAYMENTS,PRIVATE CONTRACTOR,REVENUE
Walsall Council,http://opendatacommunities.org/id/metropolitan-district-council/walsall ,WC146-180,31.01.2023,ADULT SOCIAL CARE,5 CARE SERVICES LTD,16/01/2023,565.60,6541-Domiciliary Care,THIRD PARTY PAYMENTS,PRIVATE CONTRACTOR,REVENUE
Walsall Council,http://opendatacommunities.org/id/metropolitan-district-council/walsall ,WC146-181,31.01.2023,ADULT SOCIAL CARE,5 CARE SERVICES LTD,16/01/2023,"-1,919.00",6541-Domiciliary Care,THIRD PARTY PAYMENTS,PRIVATE CONTRACTOR,REVENUE
Walsall Council,http://opendatacommunities.org/id/metropolitan-district-council/walsall ,WC146-182,31.01.2023,ADULT SOCIAL CARE,5 CARE SERVICES LTD,16/01/2023,509.04,6541-Domiciliary Care,THIRD PARTY PAYMENTS,PRIVATE CONTRACTOR,REVENUE
Walsall Council,http://opendatacommunities.org/id/metropolitan-district-council/walsall ,WC146-183,31.01.2023,ADULT SOCIAL CARE,5 CARE SERVICES LTD,16/01/2023,509.04,6541-Domiciliary Care,THIRD PARTY PAYMENTS,PRIVATE CONTRACTOR,REVENUE
Walsall Council,http://opendatacommunities.org/id/metropolitan-district-council/walsall ,WC146-184,31.01.2023,ADULT SOCIAL CARE,5 CARE SERVICES LTD,16/01/2023,"3,086.56",6541-Domiciliary Care,THIRD PARTY PAYMENTS,PRIVATE CONTRACTOR,REVENUE
Walsall Council,http://opendatacommunities.org/id/metropolitan-district-council/walsall ,WC146-185,31.01.2023,ADULT SOCIAL CARE,5 CARE SERVICES LTD,16/01/2023,-662.56,6541-Domiciliary Care,THIRD PARTY PAYMENTS,PRIVATE CONTRACTOR,REVENUE
Walsall Council,http://opendatacommunities.org/id/metropolitan-district-council/walsall ,WC146-186,31.01.2023,ADULT SOCIAL CARE,5 CARE SERVICES LTD,16/01/2023,678.72,6541-Domiciliary Care,THIRD PARTY PAYMENTS,PRIVATE CONTRACTOR,REVENUE
Walsall Council,http://opendatacommunities.org/id/metropolitan-district-council/walsall ,WC146-187,31.01.2023,ADULT SOCIAL CARE,5 CARE SERVICES LTD,16/01/2023,250.50,6541-Domiciliary Care,THIRD PARTY PAYMENTS,PRIVATE CONTRACTOR,REVENUE
Walsall Council,http://opendatacommunities.org/id/metropolitan-district-council/walsall ,WC146-188,31.01.2023,ADULT SOCIAL CARE,5 CARE SERVICES LTD,16/01/2023,290.88,6541-Domiciliary Care,THIRD PARTY PAYMENTS,PRIVATE CONTRACTOR,REVENUE
Walsall Council,http://opendatacommunities.org/id/metropolitan-district-council/walsall ,WC146-189,31.01.2023,ADULT SOCIAL CARE,5 CARE SERVICES LTD,16/01/2023,258.56,6541-Domiciliary Care,THIRD PARTY PAYMENTS,PRIVATE CONTRACTOR,REVENUE
Walsall Council,http://opendatacommunities.org/id/metropolitan-district-council/walsall ,WC146-190,31.01.2023,ADULT SOCIAL CARE,5 CARE SERVICES LTD,16/01/2023,371.68,6541-Domiciliary Care,THIRD PARTY PAYMENTS,PRIVATE CONTRACTOR,REVENUE
Walsall Council,http://opendatacommunities.org/id/metropolitan-district-council/walsall ,WC146-191,31.01.2023,ADULT SOCIAL CARE,5 CARE SERVICES LTD,16/01/2023,509.04,6541-Domiciliary Care,THIRD PARTY PAYMENTS,PRIVATE CONTRACTOR,REVENUE
Walsall Council,http://opendatacommunities.org/id/metropolitan-district-council/walsall ,WC146-192,31.01.2023,ADULT SOCIAL CARE,5 CARE SERVICES LTD,16/01/2023,509.04,6541-Domiciliary Care,THIRD PARTY PAYMENTS,PRIVATE CONTRACTOR,REVENUE
Walsall Council,http://opendatacommunities.org/id/metropolitan-district-council/walsall ,WC146-193,31.01.2023,ADULT SOCIAL CARE,5 CARE SERVICES LTD,16/01/2023,"-1,272.60",6541-Domiciliary Care,THIRD PARTY PAYMENTS,PRIVATE CONTRACTOR,REVENUE
Walsall Council,http://opendatacommunities.org/id/metropolitan-district-council/walsall ,WC146-194,31.01.2023,ADULT SOCIAL CARE,5 CARE SERVICES LTD,16/01/2023,254.52,6541-Domiciliary Care,THIRD PARTY PAYMENTS,PRIVATE CONTRACTOR,REVENUE
Walsall Council,http://opendatacommunities.org/id/metropolitan-district-council/walsall ,WC146-195,31.01.2023,ADULT SOCIAL CARE,5 CARE SERVICES LTD,16/01/2023,420.18,6541-Domiciliary Care,THIRD PARTY PAYMENTS,PRIVATE CONTRACTOR,REVENUE
Walsall Council,http://opendatacommunities.org/id/metropolitan-district-council/walsall ,WC146-196,31.01.2023,ADULT SOCIAL CARE,5 CARE SERVICES LTD,16/01/2023,"1,527.12",6541-Domiciliary Care,THIRD PARTY PAYMENTS,PRIVATE CONTRACTOR,REVENUE
Walsall Council,http://opendatacommunities.org/id/metropolitan-district-council/walsall ,WC146-197,31.01.2023,ADULT SOCIAL CARE,5 CARE SERVICES LTD,16/01/2023,509.04,6541-Domiciliary Care,THIRD PARTY PAYMENTS,PRIVATE CONTRACTOR,REVENUE
Walsall Council,http://opendatacommunities.org/id/metropolitan-district-council/walsall ,WC146-198,31.01.2023,ADULT SOCIAL CARE,5 CARE SERVICES LTD,16/01/2023,765.00,6541-Domiciliary Care,THIRD PARTY PAYMENTS,PRIVATE CONTRACTOR,REVENUE
Walsall Council,http://opendatacommunities.org/id/metropolitan-district-council/walsall ,WC146-199,31.01.2023,ADULT SOCIAL CARE,5 CARE SERVICES LTD,16/01/2023,339.36,6541-Domiciliary Care,THIRD PARTY PAYMENTS,PRIVATE CONTRACTOR,REVENUE
Walsall Council,http://opendatacommunities.org/id/metropolitan-district-council/walsall ,WC146-200,31.01.2023,ADULT SOCIAL CARE,5 CARE SERVICES LTD,16/01/2023,606.00,6541-Domiciliary Care,THIRD PARTY PAYMENTS,PRIVATE CONTRACTOR,REVENUE
Walsall Council,http://opendatacommunities.org/id/metropolitan-district-council/walsall ,WC146-201,31.01.2023,ADULT SOCIAL CARE,5 CARE SERVICES LTD,16/01/2023,452.48,6541-Domiciliary Care,THIRD PARTY PAYMENTS,PRIVATE CONTRACTOR,REVENUE
Walsall Council,http://opendatacommunities.org/id/metropolitan-district-council/walsall ,WC146-202,31.01.2023,ADULT SOCIAL CARE,5 CARE SERVICES LTD,16/01/2023,565.60,6541-Domiciliary Care,THIRD PARTY PAYMENTS,PRIVATE CONTRACTOR,REVENUE
Walsall Council,http://opendatacommunities.org/id/metropolitan-district-council/walsall ,WC146-203,31.01.2023,ADULT SOCIAL CARE,5 CARE SERVICES LTD,16/01/2023,254.52,6541-Domiciliary Care,THIRD PARTY PAYMENTS,PRIVATE CONTRACTOR,REVENUE
Walsall Council,http://opendatacommunities.org/id/metropolitan-district-council/walsall ,WC146-204,31.01.2023,ADULT SOCIAL CARE,5 CARE SERVICES LTD,16/01/2023,323.20,6541-Domiciliary Care,THIRD PARTY PAYMENTS,PRIVATE CONTRACTOR,REVENUE
Walsall Council,http://opendatacommunities.org/id/metropolitan-district-council/walsall ,WC146-205,31.01.2023,ADULT SOCIAL CARE,5 CARE SERVICES LTD,16/01/2023,678.72,6541-Domiciliary Care,THIRD PARTY PAYMENTS,PRIVATE CONTRACTOR,REVENUE
Walsall Council,http://opendatacommunities.org/id/metropolitan-district-council/walsall ,WC146-206,31.01.2023,ADULT SOCIAL CARE,5 CARE SERVICES LTD,16/01/2023,294.92,6541-Domiciliary Care,THIRD PARTY PAYMENTS,PRIVATE CONTRACTOR,REVENUE
Walsall Council,http://opendatacommunities.org/id/metropolitan-district-council/walsall ,WC146-207,31.01.2023,ADULT SOCIAL CARE,5 CARE SERVICES LTD,16/01/2023,659.89,6541-Domiciliary Care,THIRD PARTY PAYMENTS,PRIVATE CONTRACTOR,REVENUE
Walsall Council,http://opendatacommunities.org/id/metropolitan-district-council/walsall ,WC146-208,31.01.2023,ADULT SOCIAL CARE,5 CARE SERVICES LTD,16/01/2023,323.20,6541-Domiciliary Care,THIRD PARTY PAYMENTS,PRIVATE CONTRACTOR,REVENUE
Walsall Council,http://opendatacommunities.org/id/metropolitan-district-council/walsall ,WC146-209,31.01.2023,ADULT SOCIAL CARE,5 CARE SERVICES LTD,16/01/2023,339.36,6541-Domiciliary Care,THIRD PARTY PAYMENTS,PRIVATE CONTRACTOR,REVENUE
Walsall Council,http://opendatacommunities.org/id/metropolitan-district-council/walsall ,WC146-210,31.01.2023,ADULT SOCIAL CARE,5 CARE SERVICES LTD,16/01/2023,509.04,6541-Domiciliary Care,THIRD PARTY PAYMENTS,PRIVATE CONTRACTOR,REVENUE
Walsall Council,http://opendatacommunities.org/id/metropolitan-district-council/walsall ,WC146-211,31.01.2023,ADULT SOCIAL CARE,5 CARE SERVICES LTD,16/01/2023,565.60,6541-Domiciliary Care,THIRD PARTY PAYMENTS,PRIVATE CONTRACTOR,REVENUE
Walsall Council,http://opendatacommunities.org/id/metropolitan-district-council/walsall ,WC146-212,31.01.2023,ADULT SOCIAL CARE,5 CARE SERVICES LTD,16/01/2023,904.96,6541-Domiciliary Care,THIRD PARTY PAYMENTS,PRIVATE CONTRACTOR,REVENUE
Walsall Council,http://opendatacommunities.org/id/metropolitan-district-council/walsall ,WC146-213,31.01.2023,ADULT SOCIAL CARE,5 CARE SERVICES LTD,16/01/2023,339.36,6541-Domiciliary Care,THIRD PARTY PAYMENTS,PRIVATE CONTRACTOR,REVENUE
Walsall Council,http://opendatacommunities.org/id/metropolitan-district-council/walsall ,WC146-214,31.01.2023,ADULT SOCIAL CARE,5 CARE SERVICES LTD,16/01/2023,452.48,6541-Domiciliary Care,THIRD PARTY PAYMENTS,PRIVATE CONTRACTOR,REVENUE
Walsall Council,http://opendatacommunities.org/id/metropolitan-district-council/walsall ,WC146-215,31.01.2023,ADULT SOCIAL CARE,5 CARE SERVICES LTD,16/01/2023,509.04,6541-Domiciliary Care,THIRD PARTY PAYMENTS,PRIVATE CONTRACTOR,REVENUE
Walsall Council,http://opendatacommunities.org/id/metropolitan-district-council/walsall ,WC146-216,31.01.2023,ADULT SOCIAL CARE,5 CARE SERVICES LTD,16/01/2023,254.52,6541-Domiciliary Care,THIRD PARTY PAYMENTS,PRIVATE CONTRACTOR,REVENUE
Walsall Council,http://opendatacommunities.org/id/metropolitan-district-council/walsall ,WC146-217,31.01.2023,ADULT SOCIAL CARE,5 CARE SERVICES LTD,16/01/2023,509.04,6541-Domiciliary Care,THIRD PARTY PAYMENTS,PRIVATE CONTRACTOR,REVENUE
Walsall Council,http://opendatacommunities.org/id/metropolitan-district-council/walsall ,WC146-218,31.01.2023,ADULT SOCIAL CARE,5 CARE SERVICES LTD,16/01/2023,254.52,6541-Domiciliary Care,THIRD PARTY PAYMENTS,PRIVATE CONTRACTOR,REVENUE
Walsall Council,http://opendatacommunities.org/id/metropolitan-district-council/walsall ,WC146-219,31.01.2023,ADULT SOCIAL CARE,5 CARE SERVICES LTD,16/01/2023,694.88,6541-Domiciliary Care,THIRD PARTY PAYMENTS,PRIVATE CONTRACTOR,REVENUE
Walsall Council,http://opendatacommunities.org/id/metropolitan-district-council/walsall ,WC146-220,31.01.2023,ADULT SOCIAL CARE,5 CARE SERVICES LTD,16/01/2023,509.04,6541-Domiciliary Care,THIRD PARTY PAYMENTS,PRIVATE CONTRACTOR,REVENUE
Walsall Council,http://opendatacommunities.org/id/metropolitan-district-council/walsall ,WC146-221,31.01.2023,ADULT SOCIAL CARE,5 CARE SERVICES LTD,16/01/2023,509.04,6541-Domiciliary Care,THIRD PARTY PAYMENTS,PRIVATE CONTRACTOR,REVENUE
Walsall Council,http://opendatacommunities.org/id/metropolitan-district-council/walsall ,WC146-222,31.01.2023,ADULT SOCIAL CARE,5 CARE SERVICES LTD,16/01/2023,254.52,6541-Domiciliary Care,THIRD PARTY PAYMENTS,PRIVATE CONTRACTOR,REVENUE
Walsall Council,http://opendatacommunities.org/id/metropolitan-district-council/walsall ,WC146-223,31.01.2023,ADULT SOCIAL CARE,5 CARE SERVICES LTD,16/01/2023,735.28,6541-Domiciliary Care,THIRD PARTY PAYMENTS,PRIVATE CONTRACTOR,REVENUE
Walsall Council,http://opendatacommunities.org/id/metropolitan-district-council/walsall ,WC146-224,31.01.2023,ADULT SOCIAL CARE,5 CARE SERVICES LTD,16/01/2023,254.52,6541-Domiciliary Care,THIRD PARTY PAYMENTS,PRIVATE CONTRACTOR,REVENUE
Walsall Council,http://opendatacommunities.org/id/metropolitan-district-council/walsall ,WC146-225,31.01.2023,ADULT SOCIAL CARE,5 CARE SERVICES LTD,16/01/2023,536.02,6541-Domiciliary Care,THIRD PARTY PAYMENTS,PRIVATE CONTRACTOR,REVENUE
Walsall Council,http://opendatacommunities.org/id/metropolitan-district-council/walsall ,WC146-226,31.01.2023,ADULT SOCIAL CARE,5 CARE SERVICES LTD,16/01/2023,662.56,6541-Domiciliary Care,THIRD PARTY PAYMENTS,PRIVATE CONTRACTOR,REVENUE
Walsall Council,http://opendatacommunities.org/id/metropolitan-district-council/walsall ,WC146-227,31.01.2023,ADULT SOCIAL CARE,5 CARE SERVICES LTD,16/01/2023,"1,244.32",6541-Domiciliary Care,THIRD PARTY PAYMENTS,PRIVATE CONTRACTOR,REVENUE
Walsall Council,http://opendatacommunities.org/id/metropolitan-district-council/walsall ,WC146-228,31.01.2023,ADULT SOCIAL CARE,5 CARE SERVICES LTD,16/01/2023,254.52,6541-Domiciliary Care,THIRD PARTY PAYMENTS,PRIVATE CONTRACTOR,REVENUE
Walsall Council,http://opendatacommunities.org/id/metropolitan-district-council/walsall ,WC146-229,31.01.2023,ADULT SOCIAL CARE,5 CARE SERVICES LTD,16/01/2023,581.76,6541-Domiciliary Care,THIRD PARTY PAYMENTS,PRIVATE CONTRACTOR,REVENUE
Walsall Council,http://opendatacommunities.org/id/metropolitan-district-council/walsall ,WC146-230,31.01.2023,ADULT SOCIAL CARE,5 CARE SERVICES LTD,16/01/2023,678.72,6541-Domiciliary Care,THIRD PARTY PAYMENTS,PRIVATE CONTRACTOR,REVENUE
Walsall Council,http://opendatacommunities.org/id/metropolitan-district-council/walsall ,WC146-231,31.01.2023,ADULT SOCIAL CARE,5 CARE SERVICES LTD,16/01/2023,290.88,6541-Domiciliary Care,THIRD PARTY PAYMENTS,PRIVATE CONTRACTOR,REVENUE
Walsall Council,http://opendatacommunities.org/id/metropolitan-district-council/walsall ,WC146-232,31.01.2023,ADULT SOCIAL CARE,5 CARE SERVICES LTD,16/01/2023,254.52,6541-Domiciliary Care,THIRD PARTY PAYMENTS,PRIVATE CONTRACTOR,REVENUE
Walsall Council,http://opendatacommunities.org/id/metropolitan-district-council/walsall ,WC146-233,31.01.2023,ADULT SOCIAL CARE,5 CARE SERVICES LTD,16/01/2023,584.50,6541-Domiciliary Care,THIRD PARTY PAYMENTS,PRIVATE CONTRACTOR,REVENUE
Walsall Council,http://opendatacommunities.org/id/metropolitan-district-council/walsall ,WC146-234,31.01.2023,ADULT SOCIAL CARE,5 CARE SERVICES LTD,16/01/2023,258.56,6541-Domiciliary Care,THIRD PARTY PAYMENTS,PRIVATE CONTRACTOR,REVENUE
Walsall Council,http://opendatacommunities.org/id/metropolitan-district-council/walsall ,WC146-235,31.01.2023,ADULT SOCIAL CARE,5 CARE SERVICES LTD,16/01/2023,509.04,6541-Domiciliary Care,THIRD PARTY PAYMENTS,PRIVATE CONTRACTOR,REVENUE
Walsall Council,http://opendatacommunities.org/id/metropolitan-district-council/walsall ,WC146-236,31.01.2023,ADULT SOCIAL CARE,5 CARE SERVICES LTD,16/01/2023,765.00,6541-Domiciliary Care,THIRD PARTY PAYMENTS,PRIVATE CONTRACTOR,REVENUE
Walsall Council,http://opendatacommunities.org/id/metropolitan-district-council/walsall ,WC146-237,31.01.2023,ADULT SOCIAL CARE,5 CARE SERVICES LTD,16/01/2023,339.36,6541-Domiciliary Care,THIRD PARTY PAYMENTS,PRIVATE CONTRACTOR,REVENUE
Walsall Council,http://opendatacommunities.org/id/metropolitan-district-council/walsall ,WC146-238,31.01.2023,ADULT SOCIAL CARE,5 CARE SERVICES LTD,16/01/2023,606.00,6541-Domiciliary Care,THIRD PARTY PAYMENTS,PRIVATE CONTRACTOR,REVENUE
Walsall Council,http://opendatacommunities.org/id/metropolitan-district-council/walsall ,WC146-239,31.01.2023,ADULT SOCIAL CARE,5 CARE SERVICES LTD,16/01/2023,452.48,6541-Domiciliary Care,THIRD PARTY PAYMENTS,PRIVATE CONTRACTOR,REVENUE
Walsall Council,http://opendatacommunities.org/id/metropolitan-district-council/walsall ,WC146-240,31.01.2023,ADULT SOCIAL CARE,5 CARE SERVICES LTD,16/01/2023,565.60,6541-Domiciliary Care,THIRD PARTY PAYMENTS,PRIVATE CONTRACTOR,REVENUE
Walsall Council,http://opendatacommunities.org/id/metropolitan-district-council/walsall ,WC146-241,31.01.2023,ADULT SOCIAL CARE,5 CARE SERVICES LTD,16/01/2023,254.52,6541-Domiciliary Care,THIRD PARTY PAYMENTS,PRIVATE CONTRACTOR,REVENUE
Walsall Council,http://opendatacommunities.org/id/metropolitan-district-council/walsall ,WC146-242,31.01.2023,ADULT SOCIAL CARE,5 CARE SERVICES LTD,16/01/2023,452.48,6541-Domiciliary Care,THIRD PARTY PAYMENTS,PRIVATE CONTRACTOR,REVENUE
Walsall Council,http://opendatacommunities.org/id/metropolitan-district-council/walsall ,WC146-243,31.01.2023,ADULT SOCIAL CARE,5 CARE SERVICES LTD,31/01/2023,678.72,6541-Domiciliary Care,THIRD PARTY PAYMENTS,PRIVATE CONTRACTOR,REVENUE
Walsall Council,http://opendatacommunities.org/id/metropolitan-district-council/walsall ,WC146-244,31.01.2023,ADULT SOCIAL CARE,5 CARE SERVICES LTD,31/01/2023,294.92,6541-Domiciliary Care,THIRD PARTY PAYMENTS,PRIVATE CONTRACTOR,REVENUE
Walsall Council,http://opendatacommunities.org/id/metropolitan-district-council/walsall ,WC146-245,31.01.2023,ADULT SOCIAL CARE,5 CARE SERVICES LTD,31/01/2023,659.89,6541-Domiciliary Care,THIRD PARTY PAYMENTS,PRIVATE CONTRACTOR,REVENUE
Walsall Council,http://opendatacommunities.org/id/metropolitan-district-council/walsall ,WC146-246,31.01.2023,ADULT SOCIAL CARE,5 CARE SERVICES LTD,31/01/2023,254.52,6541-Domiciliary Care,THIRD PARTY PAYMENTS,PRIVATE CONTRACTOR,REVENUE
Walsall Council,http://opendatacommunities.org/id/metropolitan-district-council/walsall ,WC146-247,31.01.2023,ADULT SOCIAL CARE,5 CARE SERVICES LTD,31/01/2023,581.76,6541-Domiciliary Care,THIRD PARTY PAYMENTS,PRIVATE CONTRACTOR,REVENUE
Walsall Council,http://opendatacommunities.org/id/metropolitan-district-council/walsall ,WC146-248,31.01.2023,ADULT SOCIAL CARE,5 CARE SERVICES LTD,31/01/2023,694.88,6541-Domiciliary Care,THIRD PARTY PAYMENTS,PRIVATE CONTRACTOR,REVENUE
Walsall Council,http://opendatacommunities.org/id/metropolitan-district-council/walsall ,WC146-249,31.01.2023,ADULT SOCIAL CARE,5 CARE SERVICES LTD,31/01/2023,258.56,6541-Domiciliary Care,THIRD PARTY PAYMENTS,PRIVATE CONTRACTOR,REVENUE
Walsall Council,http://opendatacommunities.org/id/metropolitan-district-council/walsall ,WC146-250,31.01.2023,ADULT SOCIAL CARE,5 CARE SERVICES LTD,31/01/2023,509.04,6541-Domiciliary Care,THIRD PARTY PAYMENTS,PRIVATE CONTRACTOR,REVENUE
Walsall Council,http://opendatacommunities.org/id/metropolitan-district-council/walsall ,WC146-251,31.01.2023,ADULT SOCIAL CARE,5 CARE SERVICES LTD,31/01/2023,735.28,6541-Domiciliary Care,THIRD PARTY PAYMENTS,PRIVATE CONTRACTOR,REVENUE
Walsall Council,http://opendatacommunities.org/id/metropolitan-district-council/walsall ,WC146-252,31.01.2023,ADULT SOCIAL CARE,5 CARE SERVICES LTD,31/01/2023,254.52,6541-Domiciliary Care,THIRD PARTY PAYMENTS,PRIVATE CONTRACTOR,REVENUE
Walsall Council,http://opendatacommunities.org/id/metropolitan-district-council/walsall ,WC146-253,31.01.2023,ADULT SOCIAL CARE,5 CARE SERVICES LTD,31/01/2023,565.60,6541-Domiciliary Care,THIRD PARTY PAYMENTS,PRIVATE CONTRACTOR,REVENUE
Walsall Council,http://opendatacommunities.org/id/metropolitan-district-council/walsall ,WC146-254,31.01.2023,ADULT SOCIAL CARE,5 CARE SERVICES LTD,31/01/2023,765.00,6541-Domiciliary Care,THIRD PARTY PAYMENTS,PRIVATE CONTRACTOR,REVENUE
Walsall Council,http://opendatacommunities.org/id/metropolitan-district-council/walsall ,WC146-255,31.01.2023,ADULT SOCIAL CARE,5 CARE SERVICES LTD,31/01/2023,323.20,6541-Domiciliary Care,THIRD PARTY PAYMENTS,PRIVATE CONTRACTOR,REVENUE
Walsall Council,http://opendatacommunities.org/id/metropolitan-district-council/walsall ,WC146-256,31.01.2023,ADULT SOCIAL CARE,5 CARE SERVICES LTD,31/01/2023,339.36,6541-Domiciliary Care,THIRD PARTY PAYMENTS,PRIVATE CONTRACTOR,REVENUE
Walsall Council,http://opendatacommunities.org/id/metropolitan-district-council/walsall ,WC146-257,31.01.2023,ADULT SOCIAL CARE,5 CARE SERVICES LTD,31/01/2023,509.04,6541-Domiciliary Care,THIRD PARTY PAYMENTS,PRIVATE CONTRACTOR,REVENUE
Walsall Council,http://opendatacommunities.org/id/metropolitan-district-council/walsall ,WC146-258,31.01.2023,ADULT SOCIAL CARE,5 CARE SERVICES LTD,31/01/2023,339.36,6541-Domiciliary Care,THIRD PARTY PAYMENTS,PRIVATE CONTRACTOR,REVENUE
Walsall Council,http://opendatacommunities.org/id/metropolitan-district-council/walsall ,WC146-259,31.01.2023,ADULT SOCIAL CARE,5 CARE SERVICES LTD,31/01/2023,"-1,422.08",6541-Domiciliary Care,THIRD PARTY PAYMENTS,PRIVATE CONTRACTOR,REVENUE
Walsall Council,http://opendatacommunities.org/id/metropolitan-district-council/walsall ,WC146-260,31.01.2023,ADULT SOCIAL CARE,5 CARE SERVICES LTD,31/01/2023,536.02,6541-Domiciliary Care,THIRD PARTY PAYMENTS,PRIVATE CONTRACTOR,REVENUE
Walsall Council,http://opendatacommunities.org/id/metropolitan-district-council/walsall ,WC146-261,31.01.2023,ADULT SOCIAL CARE,5 CARE SERVICES LTD,31/01/2023,597.92,6541-Domiciliary Care,THIRD PARTY PAYMENTS,PRIVATE CONTRACTOR,REVENUE
Walsall Council,http://opendatacommunities.org/id/metropolitan-district-council/walsall ,WC146-262,31.01.2023,ADULT SOCIAL CARE,5 CARE SERVICES LTD,31/01/2023,"1,244.32",6541-Domiciliary Care,THIRD PARTY PAYMENTS,PRIVATE CONTRACTOR,REVENUE
Walsall Council,http://opendatacommunities.org/id/metropolitan-district-council/walsall ,WC146-263,31.01.2023,ADULT SOCIAL CARE,5 CARE SERVICES LTD,31/01/2023,606.00,6541-Domiciliary Care,THIRD PARTY PAYMENTS,PRIVATE CONTRACTOR,REVENUE
Walsall Council,http://opendatacommunities.org/id/metropolitan-district-council/walsall ,WC146-264,31.01.2023,ADULT SOCIAL CARE,5 CARE SERVICES LTD,31/01/2023,452.48,6541-Domiciliary Care,THIRD PARTY PAYMENTS,PRIVATE CONTRACTOR,REVENUE
Walsall Council,http://opendatacommunities.org/id/metropolitan-district-council/walsall ,WC146-265,31.01.2023,ADULT SOCIAL CARE,5 CARE SERVICES LTD,31/01/2023,565.60,6541-Domiciliary Care,THIRD PARTY PAYMENTS,PRIVATE CONTRACTOR,REVENUE
Walsall Council,http://opendatacommunities.org/id/metropolitan-district-council/walsall ,WC146-266,31.01.2023,ADULT SOCIAL CARE,5 CARE SERVICES LTD,31/01/2023,452.48,6541-Domiciliary Care,THIRD PARTY PAYMENTS,PRIVATE CONTRACTOR,REVENUE
Walsall Council,http://opendatacommunities.org/id/metropolitan-district-council/walsall ,WC146-267,31.01.2023,ADULT SOCIAL CARE,5 CARE SERVICES LTD,31/01/2023,678.72,6541-Domiciliary Care,THIRD PARTY PAYMENTS,PRIVATE CONTRACTOR,REVENUE
Walsall Council,http://opendatacommunities.org/id/metropolitan-district-council/walsall ,WC146-268,31.01.2023,ADULT SOCIAL CARE,5 CARE SERVICES LTD,31/01/2023,323.20,6541-Domiciliary Care,THIRD PARTY PAYMENTS,PRIVATE CONTRACTOR,REVENUE
Walsall Council,http://opendatacommunities.org/id/metropolitan-district-council/walsall ,WC146-269,31.01.2023,ADULT SOCIAL CARE,5 CARE SERVICES LTD,31/01/2023,254.52,6541-Domiciliary Care,THIRD PARTY PAYMENTS,PRIVATE CONTRACTOR,REVENUE
Walsall Council,http://opendatacommunities.org/id/metropolitan-district-council/walsall ,WC146-270,31.01.2023,ADULT SOCIAL CARE,5 CARE SERVICES LTD,31/01/2023,904.96,6541-Domiciliary Care,THIRD PARTY PAYMENTS,PRIVATE CONTRACTOR,REVENUE
Walsall Council,http://opendatacommunities.org/id/metropolitan-district-council/walsall ,WC146-271,31.01.2023,ADULT SOCIAL CARE,5 CARE SERVICES LTD,31/01/2023,584.50,6541-Domiciliary Care,THIRD PARTY PAYMENTS,PRIVATE CONTRACTOR,REVENUE
Walsall Council,http://opendatacommunities.org/id/metropolitan-district-council/walsall ,WC146-272,31.01.2023,ADULT SOCIAL CARE,5 CARE SERVICES LTD,31/01/2023,395.92,6541-Domiciliary Care,THIRD PARTY PAYMENTS,PRIVATE CONTRACTOR,REVENUE
Walsall Council,http://opendatacommunities.org/id/metropolitan-district-council/walsall ,WC146-273,31.01.2023,ADULT SOCIAL CARE,5 CARE SERVICES LTD,31/01/2023,339.36,6541-Domiciliary Care,THIRD PARTY PAYMENTS,PRIVATE CONTRACTOR,REVENUE
Walsall Council,http://opendatacommunities.org/id/metropolitan-district-council/walsall ,WC146-274,31.01.2023,ADULT SOCIAL CARE,5 CARE SERVICES LTD,31/01/2023,452.48,6541-Domiciliary Care,THIRD PARTY PAYMENTS,PRIVATE CONTRACTOR,REVENUE
Walsall Council,http://opendatacommunities.org/id/metropolitan-district-council/walsall ,WC146-275,31.01.2023,ADULT SOCIAL CARE,5 CARE SERVICES LTD,31/01/2023,484.80,6541-Domiciliary Care,THIRD PARTY PAYMENTS,PRIVATE CONTRACTOR,REVENUE
Walsall Council,http://opendatacommunities.org/id/metropolitan-district-council/walsall ,WC146-276,31.01.2023,ADULT SOCIAL CARE,5 CARE SERVICES LTD,31/01/2023,509.04,6541-Domiciliary Care,THIRD PARTY PAYMENTS,PRIVATE CONTRACTOR,REVENUE
Walsall Council,http://opendatacommunities.org/id/metropolitan-district-council/walsall ,WC146-277,31.01.2023,ADULT SOCIAL CARE,5 CARE SERVICES LTD,31/01/2023,509.04,6541-Domiciliary Care,THIRD PARTY PAYMENTS,PRIVATE CONTRACTOR,REVENUE
Walsall Council,http://opendatacommunities.org/id/metropolitan-district-council/walsall ,WC146-278,31.01.2023,ADULT SOCIAL CARE,5 CARE SERVICES LTD,31/01/2023,509.04,6541-Domiciliary Care,THIRD PARTY PAYMENTS,PRIVATE CONTRACTOR,REVENUE
Walsall Council,http://opendatacommunities.org/id/metropolitan-district-council/walsall ,WC146-279,31.01.2023,ADULT SOCIAL CARE,5 CARE SERVICES LTD,31/01/2023,254.52,6541-Domiciliary Care,THIRD PARTY PAYMENTS,PRIVATE CONTRACTOR,REVENUE
Walsall Council,http://opendatacommunities.org/id/metropolitan-district-council/walsall ,WC146-280,31.01.2023,ADULT SOCIAL CARE,5 CARE SERVICES LTD,31/01/2023,509.04,6541-Domiciliary Care,THIRD PARTY PAYMENTS,PRIVATE CONTRACTOR,REVENUE
Walsall Council,http://opendatacommunities.org/id/metropolitan-district-council/walsall ,WC146-281,31.01.2023,ADULT SOCIAL CARE,5 CARE SERVICES LTD,31/01/2023,509.04,6541-Domiciliary Care,THIRD PARTY PAYMENTS,PRIVATE CONTRACTOR,REVENUE
Walsall Council,http://opendatacommunities.org/id/metropolitan-district-council/walsall ,WC146-282,31.01.2023,ADULT SOCIAL CARE,5 CARE SERVICES LTD,31/01/2023,254.52,6541-Domiciliary Care,THIRD PARTY PAYMENTS,PRIVATE CONTRACTOR,REVENUE
Walsall Council,http://opendatacommunities.org/id/metropolitan-district-council/walsall ,WC146-283,31.01.2023,ADULT SOCIAL CARE,5 CARE SERVICES LTD,31/01/2023,509.04,6541-Domiciliary Care,THIRD PARTY PAYMENTS,PRIVATE CONTRACTOR,REVENUE
Walsall Council,http://opendatacommunities.org/id/metropolitan-district-council/walsall ,WC146-284,31.01.2023,ADULT SOCIAL CARE,5 CARE SERVICES LTD,31/01/2023,323.20,6541-Domiciliary Care,THIRD PARTY PAYMENTS,PRIVATE CONTRACTOR,REVENUE
Walsall Council,http://opendatacommunities.org/id/metropolitan-district-council/walsall ,WC146-285,31.01.2023,ADULT SOCIAL CARE,5 CARE SERVICES LTD,31/01/2023,339.36,6541-Domiciliary Care,THIRD PARTY PAYMENTS,PRIVATE CONTRACTOR,REVENUE
Walsall Council,http://opendatacommunities.org/id/metropolitan-district-council/walsall ,WC146-286,31.01.2023,ADULT SOCIAL CARE,5 CARE SERVICES LTD,31/01/2023,509.04,6541-Domiciliary Care,THIRD PARTY PAYMENTS,PRIVATE CONTRACTOR,REVENUE
Walsall Council,http://opendatacommunities.org/id/metropolitan-district-council/walsall ,WC146-287,31.01.2023,ADULT SOCIAL CARE,5 CARE SERVICES LTD,31/01/2023,694.88,6541-Domiciliary Care,THIRD PARTY PAYMENTS,PRIVATE CONTRACTOR,REVENUE
Walsall Council,http://opendatacommunities.org/id/metropolitan-district-council/walsall ,WC146-288,31.01.2023,ADULT SOCIAL CARE,5 CARE SERVICES LTD,31/01/2023,904.96,6541-Domiciliary Care,THIRD PARTY PAYMENTS,PRIVATE CONTRACTOR,REVENUE
Walsall Council,http://opendatacommunities.org/id/metropolitan-district-council/walsall ,WC146-289,31.01.2023,ADULT SOCIAL CARE,5 CARE SERVICES LTD,31/01/2023,339.36,6541-Domiciliary Care,THIRD PARTY PAYMENTS,PRIVATE CONTRACTOR,REVENUE
Walsall Council,http://opendatacommunities.org/id/metropolitan-district-council/walsall ,WC146-290,31.01.2023,ADULT SOCIAL CARE,5 CARE SERVICES LTD,31/01/2023,735.28,6541-Domiciliary Care,THIRD PARTY PAYMENTS,PRIVATE CONTRACTOR,REVENUE
Walsall Council,http://opendatacommunities.org/id/metropolitan-district-council/walsall ,WC146-291,31.01.2023,ADULT SOCIAL CARE,5 CARE SERVICES LTD,31/01/2023,254.52,6541-Domiciliary Care,THIRD PARTY PAYMENTS,PRIVATE CONTRACTOR,REVENUE
Walsall Council,http://opendatacommunities.org/id/metropolitan-district-council/walsall ,WC146-292,31.01.2023,ADULT SOCIAL CARE,5 CARE SERVICES LTD,31/01/2023,509.04,6541-Domiciliary Care,THIRD PARTY PAYMENTS,PRIVATE CONTRACTOR,REVENUE
Walsall Council,http://opendatacommunities.org/id/metropolitan-district-council/walsall ,WC146-293,31.01.2023,ADULT SOCIAL CARE,5 CARE SERVICES LTD,31/01/2023,509.04,6541-Domiciliary Care,THIRD PARTY PAYMENTS,PRIVATE CONTRACTOR,REVENUE
Walsall Council,http://opendatacommunities.org/id/metropolitan-district-council/walsall ,WC146-294,31.01.2023,ADULT SOCIAL CARE,5 CARE SERVICES LTD,31/01/2023,536.02,6541-Domiciliary Care,THIRD PARTY PAYMENTS,PRIVATE CONTRACTOR,REVENUE
Walsall Council,http://opendatacommunities.org/id/metropolitan-district-council/walsall ,WC146-295,31.01.2023,ADULT SOCIAL CARE,5 CARE SERVICES LTD,31/01/2023,597.92,6541-Domiciliary Care,THIRD PARTY PAYMENTS,PRIVATE CONTRACTOR,REVENUE
Walsall Council,http://opendatacommunities.org/id/metropolitan-district-council/walsall ,WC146-296,31.01.2023,ADULT SOCIAL CARE,5 CARE SERVICES LTD,31/01/2023,"1,244.32",6541-Domiciliary Care,THIRD PARTY PAYMENTS,PRIVATE CONTRACTOR,REVENUE
Walsall Council,http://opendatacommunities.org/id/metropolitan-district-council/walsall ,WC146-297,31.01.2023,ADULT SOCIAL CARE,5 CARE SERVICES LTD,31/01/2023,254.52,6541-Domiciliary Care,THIRD PARTY PAYMENTS,PRIVATE CONTRACTOR,REVENUE
Walsall Council,http://opendatacommunities.org/id/metropolitan-district-council/walsall ,WC146-298,31.01.2023,ADULT SOCIAL CARE,5 CARE SERVICES LTD,31/01/2023,"1,163.52",6541-Domiciliary Care,THIRD PARTY PAYMENTS,PRIVATE CONTRACTOR,REVENUE
Walsall Council,http://opendatacommunities.org/id/metropolitan-district-council/walsall ,WC146-299,31.01.2023,ADULT SOCIAL CARE,5 CARE SERVICES LTD,31/01/2023,678.72,6541-Domiciliary Care,THIRD PARTY PAYMENTS,PRIVATE CONTRACTOR,REVENUE
Walsall Council,http://opendatacommunities.org/id/metropolitan-district-council/walsall ,WC146-300,31.01.2023,ADULT SOCIAL CARE,5 CARE SERVICES LTD,31/01/2023,294.92,6541-Domiciliary Care,THIRD PARTY PAYMENTS,PRIVATE CONTRACTOR,REVENUE
Walsall Council,http://opendatacommunities.org/id/metropolitan-district-council/walsall ,WC146-301,31.01.2023,ADULT SOCIAL CARE,5 CARE SERVICES LTD,31/01/2023,659.89,6541-Domiciliary Care,THIRD PARTY PAYMENTS,PRIVATE CONTRACTOR,REVENUE
Walsall Council,http://opendatacommunities.org/id/metropolitan-district-council/walsall ,WC146-302,31.01.2023,ADULT SOCIAL CARE,5 CARE SERVICES LTD,31/01/2023,258.56,6541-Domiciliary Care,THIRD PARTY PAYMENTS,PRIVATE CONTRACTOR,REVENUE
Walsall Council,http://opendatacommunities.org/id/metropolitan-district-council/walsall ,WC146-303,31.01.2023,ADULT SOCIAL CARE,5 CARE SERVICES LTD,31/01/2023,509.04,6541-Domiciliary Care,THIRD PARTY PAYMENTS,PRIVATE CONTRACTOR,REVENUE
Walsall Council,http://opendatacommunities.org/id/metropolitan-district-council/walsall ,WC146-304,31.01.2023,ADULT SOCIAL CARE,5 CARE SERVICES LTD,31/01/2023,678.72,6541-Domiciliary Care,THIRD PARTY PAYMENTS,PRIVATE CONTRACTOR,REVENUE
Walsall Council,http://opendatacommunities.org/id/metropolitan-district-council/walsall ,WC146-305,31.01.2023,ADULT SOCIAL CARE,5 CARE SERVICES LTD,31/01/2023,347.44,6541-Domiciliary Care,THIRD PARTY PAYMENTS,PRIVATE CONTRACTOR,REVENUE
Walsall Council,http://opendatacommunities.org/id/metropolitan-district-council/walsall ,WC146-306,31.01.2023,ADULT SOCIAL CARE,5 CARE SERVICES LTD,31/01/2023,254.52,6541-Domiciliary Care,THIRD PARTY PAYMENTS,PRIVATE CONTRACTOR,REVENUE
Walsall Council,http://opendatacommunities.org/id/metropolitan-district-council/walsall ,WC146-307,31.01.2023,ADULT SOCIAL CARE,5 CARE SERVICES LTD,31/01/2023,584.50,6541-Domiciliary Care,THIRD PARTY PAYMENTS,PRIVATE CONTRACTOR,REVENUE
Walsall Council,http://opendatacommunities.org/id/metropolitan-district-council/walsall ,WC146-308,31.01.2023,ADULT SOCIAL CARE,5 CARE SERVICES LTD,31/01/2023,492.88,6541-Domiciliary Care,THIRD PARTY PAYMENTS,PRIVATE CONTRACTOR,REVENUE
Walsall Council,http://opendatacommunities.org/id/metropolitan-district-council/walsall ,WC146-309,31.01.2023,ADULT SOCIAL CARE,5 CARE SERVICES LTD,31/01/2023,509.04,6541-Domiciliary Care,THIRD PARTY PAYMENTS,PRIVATE CONTRACTOR,REVENUE
Walsall Council,http://opendatacommunities.org/id/metropolitan-district-council/walsall ,WC146-310,31.01.2023,ADULT SOCIAL CARE,5 CARE SERVICES LTD,31/01/2023,254.52,6541-Domiciliary Care,THIRD PARTY PAYMENTS,PRIVATE CONTRACTOR,REVENUE
Walsall Council,http://opendatacommunities.org/id/metropolitan-district-council/walsall ,WC146-311,31.01.2023,ADULT SOCIAL CARE,5 CARE SERVICES LTD,31/01/2023,686.80,6541-Domiciliary Care,THIRD PARTY PAYMENTS,PRIVATE CONTRACTOR,REVENUE
Walsall Council,http://opendatacommunities.org/id/metropolitan-district-council/walsall ,WC146-312,31.01.2023,ADULT SOCIAL CARE,5 CARE SERVICES LTD,31/01/2023,565.60,6541-Domiciliary Care,THIRD PARTY PAYMENTS,PRIVATE CONTRACTOR,REVENUE
Walsall Council,http://opendatacommunities.org/id/metropolitan-district-council/walsall ,WC146-313,31.01.2023,ADULT SOCIAL CARE,5 CARE SERVICES LTD,31/01/2023,452.48,6541-Domiciliary Care,THIRD PARTY PAYMENTS,PRIVATE CONTRACTOR,REVENUE
Walsall Council,http://opendatacommunities.org/id/metropolitan-district-council/walsall ,WC146-314,31.01.2023,ADULT SOCIAL CARE,5 CARE SERVICES LTD,31/01/2023,509.04,6541-Domiciliary Care,THIRD PARTY PAYMENTS,PRIVATE CONTRACTOR,REVENUE
Walsall Council,http://opendatacommunities.org/id/metropolitan-district-council/walsall ,WC146-315,31.01.2023,ADULT SOCIAL CARE,5 CARE SERVICES LTD,31/01/2023,509.04,6541-Domiciliary Care,THIRD PARTY PAYMENTS,PRIVATE CONTRACTOR,REVENUE
Walsall Council,http://opendatacommunities.org/id/metropolitan-district-council/walsall ,WC146-316,31.01.2023,ADULT SOCIAL CARE,5 CARE SERVICES LTD,31/01/2023,254.52,6541-Domiciliary Care,THIRD PARTY PAYMENTS,PRIVATE CONTRACTOR,REVENUE
Walsall Council,http://opendatacommunities.org/id/metropolitan-district-council/walsall ,WC146-317,31.01.2023,ADULT SOCIAL CARE,5 CARE SERVICES LTD,31/01/2023,509.04,6541-Domiciliary Care,THIRD PARTY PAYMENTS,PRIVATE CONTRACTOR,REVENUE
Walsall Council,http://opendatacommunities.org/id/metropolitan-district-council/walsall ,WC146-318,31.01.2023,ADULT SOCIAL CARE,5 CARE SERVICES LTD,31/01/2023,339.36,6541-Domiciliary Care,THIRD PARTY PAYMENTS,PRIVATE CONTRACTOR,REVENUE
Walsall Council,http://opendatacommunities.org/id/metropolitan-district-council/walsall ,WC146-319,31.01.2023,ADULT SOCIAL CARE,5 CARE SERVICES LTD,31/01/2023,606.00,6541-Domiciliary Care,THIRD PARTY PAYMENTS,PRIVATE CONTRACTOR,REVENUE
Walsall Council,http://opendatacommunities.org/id/metropolitan-district-council/walsall ,WC146-320,31.01.2023,ADULT SOCIAL CARE,5 CARE SERVICES LTD,31/01/2023,452.48,6541-Domiciliary Care,THIRD PARTY PAYMENTS,PRIVATE CONTRACTOR,REVENUE
Walsall Council,http://opendatacommunities.org/id/metropolitan-district-council/walsall ,WC146-321,31.01.2023,ADULT SOCIAL CARE,5 CARE SERVICES LTD,31/01/2023,565.60,6541-Domiciliary Care,THIRD PARTY PAYMENTS,PRIVATE CONTRACTOR,REVENUE
Walsall Council,http://opendatacommunities.org/id/metropolitan-district-council/walsall ,WC146-322,31.01.2023,ADULT SOCIAL CARE,5 CARE SERVICES LTD,31/01/2023,452.48,6541-Domiciliary Care,THIRD PARTY PAYMENTS,PRIVATE CONTRACTOR,REVENUE
Walsall Council,http://opendatacommunities.org/id/metropolitan-district-council/walsall ,WC146-323,31.01.2023,ADULT SOCIAL CARE,5 CARE SERVICES LTD,11/01/2023,"3,094.64",6554-Professional Services-Priv Contractor & Other Agencies,THIRD PARTY PAYMENTS,PRIVATE CONTRACTOR,REVENUE
Walsall Council,http://opendatacommunities.org/id/metropolitan-district-council/walsall ,WC146-324,31.01.2023,ADULT SOCIAL CARE,5 CARE SERVICES LTD,11/01/2023,"2,327.04",6554-Professional Services-Priv Contractor & Other Agencies,THIRD PARTY PAYMENTS,PRIVATE CONTRACTOR,REVENUE
Walsall Council,http://opendatacommunities.org/id/metropolitan-district-council/walsall ,WC146-325,31.01.2023,ADULT SOCIAL CARE,5 CARE SERVICES LTD,11/01/2023,274.72,6554-Professional Services-Priv Contractor & Other Agencies,THIRD PARTY PAYMENTS,PRIVATE CONTRACTOR,REVENUE
Walsall Council,http://opendatacommunities.org/id/metropolitan-district-council/walsall ,WC146-326,31.01.2023,RESOURCES AND TRANSFORMATION,A D T FIRE AND SECURITY PLC,17/01/2023,561.98,6310-Security & Alarm Maintenance,PREMISES,REPAIRS & MAINTENANCE,REVENUE
Walsall Council,http://opendatacommunities.org/id/metropolitan-district-council/walsall ,WC146-327,31.01.2023,RESOURCES AND TRANSFORMATION,A D T FIRE AND SECURITY PLC,17/01/2023,279.60,6310-Security & Alarm Maintenance,PREMISES,REPAIRS & MAINTENANCE,REVENUE
Walsall Council,http://opendatacommunities.org/id/metropolitan-district-council/walsall ,WC146-328,31.01.2023,RESOURCES AND TRANSFORMATION,A D T FIRE AND SECURITY PLC,26/01/2023,318.00,6310-Security & Alarm Maintenance,PREMISES,REPAIRS & MAINTENANCE,REVENUE
Walsall Council,http://opendatacommunities.org/id/metropolitan-district-council/walsall ,WC146-329,31.01.2023,RESOURCES AND TRANSFORMATION,A D T FIRE AND SECURITY PLC,06/01/2023,616.55,6310-Repair & Maintenance of Furniture & Equipment,SUPPLIES & SERVICES,EQUIPMENT FURNITURE & MATERIALS,REVENUE
Walsall Council,http://opendatacommunities.org/id/metropolitan-district-council/walsall ,WC146-330,31.01.2023,RESOURCES AND TRANSFORMATION,A D T FIRE AND SECURITY PLC,12/01/2023,251.42,6310-Security & Alarm Maintenance,PREMISES,REPAIRS & MAINTENANCE,REVENUE
Walsall Council,http://opendatacommunities.org/id/metropolitan-district-council/walsall ,WC146-331,31.01.2023,RESOURCES AND TRANSFORMATION,A D T FIRE AND SECURITY PLC,18/01/2023,"1,532.50",6310-Security & Alarm Maintenance,PREMISES,REPAIRS & MAINTENANCE,REVENUE
Walsall Council,http://opendatacommunities.org/id/metropolitan-district-council/walsall ,WC146-332,31.01.2023,"ECONOMY, ENVIRONMENT & COMMUNITIES",A F BLAKEMORE & SON LTD,05/01/2023,273.02,6413-Food & Drink Supplies,SUPPLIES & SERVICES,CATERING,REVENUE
Walsall Council,http://opendatacommunities.org/id/metropolitan-district-council/walsall ,WC146-333,31.01.2023,"ECONOMY, ENVIRONMENT & COMMUNITIES",A F BLAKEMORE & SON LTD,05/01/2023,660.90,6413-Food & Drink Supplies,SUPPLIES & SERVICES,CATERING,REVENUE
Walsall Council,http://opendatacommunities.org/id/metropolitan-district-council/walsall ,WC146-334,31.01.2023,"ECONOMY, ENVIRONMENT & COMMUNITIES",A F BLAKEMORE & SON LTD,04/01/2023,701.03,6413-Food & Drink Supplies,SUPPLIES & SERVICES,CATERING,REVENUE
Walsall Council,http://opendatacommunities.org/id/metropolitan-district-council/walsall ,WC146-335,31.01.2023,"ECONOMY, ENVIRONMENT & COMMUNITIES",A F BLAKEMORE & SON LTD,26/01/2023,282.25,6413-Food & Drink Supplies,SUPPLIES & SERVICES,CATERING,REVENUE
Walsall Council,http://opendatacommunities.org/id/metropolitan-district-council/walsall ,WC146-336,31.01.2023,"ECONOMY, ENVIRONMENT & COMMUNITIES",A F BLAKEMORE & SON LTD,26/01/2023,492.38,6413-Food & Drink Supplies,SUPPLIES & SERVICES,CATERING,REVENUE
Walsall Council,http://opendatacommunities.org/id/metropolitan-district-council/walsall ,WC146-337,31.01.2023,"ECONOMY, ENVIRONMENT & COMMUNITIES",A F BLAKEMORE & SON LTD,17/01/2023,400.46,6413-Food & Drink Supplies,SUPPLIES & SERVICES,CATERING,REVENUE
Walsall Council,http://opendatacommunities.org/id/metropolitan-district-council/walsall ,WC146-338,31.01.2023,"ECONOMY, ENVIRONMENT & COMMUNITIES",A F BLAKEMORE & SON LTD,26/01/2023,"-1,319.42",6413-Food & Drink Supplies,SUPPLIES & SERVICES,CATERING,REVENUE
Walsall Council,http://opendatacommunities.org/id/metropolitan-district-council/walsall ,WC146-339,31.01.2023,"ECONOMY, ENVIRONMENT & COMMUNITIES",A F BLAKEMORE & SON LTD,26/01/2023,555.59,6413-Food & Drink Supplies,SUPPLIES & SERVICES,CATERING,REVENUE
Walsall Council,http://opendatacommunities.org/id/metropolitan-district-council/walsall ,WC146-340,31.01.2023,"ECONOMY, ENVIRONMENT & COMMUNITIES",A F BLAKEMORE & SON LTD,26/01/2023,763.83,6413-Food & Drink Supplies,SUPPLIES & SERVICES,CATERING,REVENUE
Walsall Council,http://opendatacommunities.org/id/metropolitan-district-council/walsall ,WC146-341,31.01.2023,"ECONOMY, ENVIRONMENT & COMMUNITIES",A F BLAKEMORE & SON LTD,26/01/2023,"1,319.42",6413-Food & Drink Supplies,SUPPLIES & SERVICES,CATERING,REVENUE
Walsall Council,http://opendatacommunities.org/id/metropolitan-district-council/walsall ,WC146-342,31.01.2023,"ECONOMY, ENVIRONMENT & COMMUNITIES",A F BLAKEMORE & SON LTD,31/01/2023,428.90,6413-Food & Drink Supplies,SUPPLIES & SERVICES,CATERING,REVENUE
Walsall Council,http://opendatacommunities.org/id/metropolitan-district-council/walsall ,WC146-343,31.01.2023,"ECONOMY, ENVIRONMENT & COMMUNITIES",A F BLAKEMORE & SON LTD,31/01/2023,778.75,6413-Food & Drink Supplies,SUPPLIES & SERVICES,CATERING,REVENUE
Walsall Council,http://opendatacommunities.org/id/metropolitan-district-council/walsall ,WC146-344,31.01.2023,CHILDRENS,A1 WALSALL RADIO CARS,30/01/2023,747.00,6241-Hire of Vehicle with Driver,TRANSPORT,DIRECT TRANSPORT COSTS,REVENUE
Walsall Council,http://opendatacommunities.org/id/metropolitan-district-council/walsall ,WC146-345,31.01.2023,CHILDRENS,A1 WALSALL RADIO CARS,30/01/2023,990.00,6241-Hire of Vehicle with Driver,TRANSPORT,DIRECT TRANSPORT COSTS,REVENUE
Walsall Council,http://opendatacommunities.org/id/metropolitan-district-council/walsall ,WC146-346,31.01.2023,CHILDRENS,A1 WALSALL RADIO CARS,30/01/2023,"1,440.00",6241-Hire of Vehicle with Driver,TRANSPORT,DIRECT TRANSPORT COSTS,REVENUE
Walsall Council,http://opendatacommunities.org/id/metropolitan-district-council/walsall ,WC146-347,31.01.2023,CHILDRENS,A1 WALSALL RADIO CARS,30/01/2023,"1,080.00",6241-Hire of Vehicle with Driver,TRANSPORT,DIRECT TRANSPORT COSTS,REVENUE
Walsall Council,http://opendatacommunities.org/id/metropolitan-district-council/walsall ,WC146-348,31.01.2023,CHILDRENS,A1 WALSALL RADIO CARS,30/01/2023,972.00,6241-Hire of Vehicle with Driver,TRANSPORT,DIRECT TRANSPORT COSTS,REVENUE
Walsall Council,http://opendatacommunities.org/id/metropolitan-district-council/walsall ,WC146-349,31.01.2023,CHILDRENS,A1 WALSALL RADIO CARS,30/01/2023,768.00,6241-Hire of Vehicle with Driver,TRANSPORT,DIRECT TRANSPORT COSTS,REVENUE
Walsall Council,http://opendatacommunities.org/id/metropolitan-district-council/walsall ,WC146-350,31.01.2023,CHILDRENS,A1 WALSALL RADIO CARS,30/01/2023,900.00,6241-Hire of Vehicle with Driver,TRANSPORT,DIRECT TRANSPORT COSTS,REVENUE
Walsall Council,http://opendatacommunities.org/id/metropolitan-district-council/walsall ,WC146-351,31.01.2023,CHILDRENS,A1 WALSALL RADIO CARS,30/01/2023,765.00,6241-Hire of Vehicle with Driver,TRANSPORT,DIRECT TRANSPORT COSTS,REVENUE
Walsall Council,http://opendatacommunities.org/id/metropolitan-district-council/walsall ,WC146-352,31.01.2023,CHILDRENS,A1 WALSALL RADIO CARS,30/01/2023,510.00,6241-Hire of Vehicle with Driver,TRANSPORT,DIRECT TRANSPORT COSTS,REVENUE
Walsall Council,http://opendatacommunities.org/id/metropolitan-district-council/walsall ,WC146-353,31.01.2023,CHILDRENS,A1 WALSALL RADIO CARS,30/01/2023,414.00,6241-Hire of Vehicle with Driver,TRANSPORT,DIRECT TRANSPORT COSTS,REVENUE
Walsall Council,http://opendatacommunities.org/id/metropolitan-district-council/walsall ,WC146-354,31.01.2023,"ECONOMY, ENVIRONMENT & COMMUNITIES",AAINA COMMUNITY HUB,03/01/2023,"1,809.50",6430-Grants to Other Orgs,SUPPLIES & SERVICES,GRANTS (EXP) & SUBSCRIPTIONS,REVENUE
Walsall Council,http://opendatacommunities.org/id/metropolitan-district-council/walsall ,WC146-355,31.01.2023,"ECONOMY, ENVIRONMENT & COMMUNITIES",AAINA COMMUNITY HUB,23/01/2023,"1,250.00",6430-Grants to Other Orgs,SUPPLIES & SERVICES,GRANTS (EXP) & SUBSCRIPTIONS,REVENUE
Walsall Council,http://opendatacommunities.org/id/metropolitan-district-council/walsall ,WC146-356,31.01.2023,"ECONOMY, ENVIRONMENT & COMMUNITIES",AAINA COMMUNITY HUB,20/01/2023,"7,500.00",6430-Professional Services-Priv Contractor & Other Agencies,THIRD PARTY PAYMENTS,PRIVATE CONTRACTOR,REVENUE
Walsall Council,http://opendatacommunities.org/id/metropolitan-district-council/walsall ,WC146-357,31.01.2023,CHILDRENS,AAINA COMMUNITY HUB,04/01/2023,500.00,6211-Hire of Room,SUPPLIES & SERVICES,SERVICES,REVENUE
Walsall Council,http://opendatacommunities.org/id/metropolitan-district-council/walsall ,WC146-358,31.01.2023,ADULT SOCIAL CARE,REDACTED,04/01/2023,"1,011.40",6541-Direct Payment,THIRD PARTY PAYMENTS,PRIVATE CONTRACTOR,REVENUE
Walsall Council,http://opendatacommunities.org/id/metropolitan-district-council/walsall ,WC146-359,31.01.2023,ADULT SOCIAL CARE,REDACTED,04/01/2023,-272.26,6541-Direct Payment,THIRD PARTY PAYMENTS,PRIVATE CONTRACTOR,REVENUE
Walsall Council,http://opendatacommunities.org/id/metropolitan-district-council/walsall ,WC146-360,31.01.2023,ADULT SOCIAL CARE,REDACTED,04/01/2023,272.26,6541-Direct Payment,THIRD PARTY PAYMENTS,PRIVATE CONTRACTOR,REVENUE
Walsall Council,http://opendatacommunities.org/id/metropolitan-district-council/walsall ,WC146-361,31.01.2023,CHILDRENS,ABACUS FOSTERING LTD,23/01/2023,"2,955.20",6223-Independent Foster Care-Oth Agency Provision,THIRD PARTY PAYMENTS,PRIVATE CONTRACTOR,REVENUE
Walsall Council,http://opendatacommunities.org/id/metropolitan-district-council/walsall ,WC146-362,31.01.2023,CHILDRENS,ABACUS FOSTERING LTD,23/01/2023,"2,763.20",6223-Independent Foster Care-Oth Agency Provision,THIRD PARTY PAYMENTS,PRIVATE CONTRACTOR,REVENUE
Walsall Council,http://opendatacommunities.org/id/metropolitan-district-council/walsall ,WC146-363,31.01.2023,ADULT SOCIAL CARE,ABBEY COURT NURSING & RESIDEN,16/01/2023,"2,606.04",6541-Residential EMI,THIRD PARTY PAYMENTS,PRIVATE CONTRACTOR,REVENUE
Walsall Council,http://opendatacommunities.org/id/metropolitan-district-council/walsall ,WC146-364,31.01.2023,ADULT SOCIAL CARE,ABBEY HEALTHCARE HOMES LTD,16/01/2023,"3,180.76",6541-Residential,THIRD PARTY PAYMENTS,PRIVATE CONTRACTOR,REVENUE
Walsall Council,http://opendatacommunities.org/id/metropolitan-district-council/walsall ,WC146-365,31.01.2023,ADULT SOCIAL CARE,ABBEY HEALTHCARE HOMES LTD,16/01/2023,"2,432.32",6541-Residential,THIRD PARTY PAYMENTS,PRIVATE CONTRACTOR,REVENUE
Walsall Council,http://opendatacommunities.org/id/metropolitan-district-council/walsall ,WC146-366,31.01.2023,ADULT SOCIAL CARE,ABBEY HEALTHCARE HOMES LTD,16/01/2023,"3,180.76",6541-Residential,THIRD PARTY PAYMENTS,PRIVATE CONTRACTOR,REVENUE
Walsall Council,http://opendatacommunities.org/id/metropolitan-district-council/walsall ,WC146-367,31.01.2023,ADULT SOCIAL CARE,ABBEY HEALTHCARE HOMES LTD,16/01/2023,"3,604.84",6541-Residential,THIRD PARTY PAYMENTS,PRIVATE CONTRACTOR,REVENUE
Walsall Council,http://opendatacommunities.org/id/metropolitan-district-council/walsall ,WC146-368,31.01.2023,CHILDRENS,ABBOTT TOXICOLOGY LTD - FORMERLY ALERE TOXICOLOGY PLC,12/01/2023,284.11,6223-Medical Specialist Reports,DIRECT EMPLOYEES,EMPLOYEE ALLOWANCES & EXPENSES,REVENUE
Walsall Council,http://opendatacommunities.org/id/metropolitan-district-council/walsall ,WC146-369,31.01.2023,CHILDRENS,ABC DAY NURSERY (WILLENHALL) LIMITED,16/01/2023,"7,418.81",1184-Other-Grants to Other Orgs,SUPPLIES & SERVICES,GRANTS (EXP) & SUBSCRIPTIONS,REVENUE
Walsall Council,http://opendatacommunities.org/id/metropolitan-district-council/walsall ,WC146-370,31.01.2023,CHILDRENS,ABC DAY NURSERY (WILLENHALL) LIMITED,16/01/2023,"24,116.40",1184-Other-Grants to Other Orgs,SUPPLIES & SERVICES,GRANTS (EXP) & SUBSCRIPTIONS,REVENUE
Walsall Council,http://opendatacommunities.org/id/metropolitan-district-council/walsall ,WC146-371,31.01.2023,ADULT SOCIAL CARE,REDACTED,04/01/2023,"2,561.09",6541-Direct Payment,THIRD PARTY PAYMENTS,PRIVATE CONTRACTOR,REVENUE
Walsall Council,http://opendatacommunities.org/id/metropolitan-district-council/walsall ,WC146-372,31.01.2023,ADULT SOCIAL CARE,ABILITY HEALTHCARE LTD,11/01/2023,678.72,6541-Domiciliary Care,THIRD PARTY PAYMENTS,PRIVATE CONTRACTOR,REVENUE
Walsall Council,http://opendatacommunities.org/id/metropolitan-district-council/walsall ,WC146-373,31.01.2023,ADULT SOCIAL CARE,ABILITY HEALTHCARE LTD,11/01/2023,"1,405.92",6541-Domiciliary Care,THIRD PARTY PAYMENTS,PRIVATE CONTRACTOR,REVENUE
Walsall Council,http://opendatacommunities.org/id/metropolitan-district-council/walsall ,WC146-374,31.01.2023,ADULT SOCIAL CARE,ABILITY HEALTHCARE LTD,11/01/2023,339.36,6541-Domiciliary Care,THIRD PARTY PAYMENTS,PRIVATE CONTRACTOR,REVENUE
Walsall Council,http://opendatacommunities.org/id/metropolitan-district-council/walsall ,WC146-375,31.01.2023,ADULT SOCIAL CARE,ABILITY HEALTHCARE LTD,11/01/2023,"1,885.52",6541-Domiciliary Care,THIRD PARTY PAYMENTS,PRIVATE CONTRACTOR,REVENUE
Walsall Council,http://opendatacommunities.org/id/metropolitan-district-council/walsall ,WC146-376,31.01.2023,ADULT SOCIAL CARE,ABILITY HEALTHCARE LTD,11/01/2023,"1,357.44",6541-Domiciliary Care,THIRD PARTY PAYMENTS,PRIVATE CONTRACTOR,REVENUE
Walsall Council,http://opendatacommunities.org/id/metropolitan-district-council/walsall ,WC146-377,31.01.2023,ADULT SOCIAL CARE,ABILITY HEALTHCARE LTD,11/01/2023,"2,036.16",6541-Domiciliary Care,THIRD PARTY PAYMENTS,PRIVATE CONTRACTOR,REVENUE
Walsall Council,http://opendatacommunities.org/id/metropolitan-district-council/walsall ,WC146-378,31.01.2023,ADULT SOCIAL CARE,ABILITY HEALTHCARE LTD,11/01/2023,"1,809.92",6541-Domiciliary Care,THIRD PARTY PAYMENTS,PRIVATE CONTRACTOR,REVENUE
Walsall Council,http://opendatacommunities.org/id/metropolitan-district-council/walsall ,WC146-379,31.01.2023,ADULT SOCIAL CARE,ABILITY HEALTHCARE LTD,11/01/2023,"2,036.16",6541-Domiciliary Care,THIRD PARTY PAYMENTS,PRIVATE CONTRACTOR,REVENUE
Walsall Council,http://opendatacommunities.org/id/metropolitan-district-council/walsall ,WC146-380,31.01.2023,ADULT SOCIAL CARE,ABILITY HEALTHCARE LTD,11/01/2023,"2,036.16",6541-Domiciliary Care,THIRD PARTY PAYMENTS,PRIVATE CONTRACTOR,REVENUE
Walsall Council,http://opendatacommunities.org/id/metropolitan-district-council/walsall ,WC146-381,31.01.2023,ADULT SOCIAL CARE,ABILITY HEALTHCARE LTD,11/01/2023,852.44,6541-Domiciliary Care,THIRD PARTY PAYMENTS,PRIVATE CONTRACTOR,REVENUE
Walsall Council,http://opendatacommunities.org/id/metropolitan-district-council/walsall ,WC146-382,31.01.2023,ADULT SOCIAL CARE,ABILITY HEALTHCARE LTD,11/01/2023,"1,018.08",6541-Domiciliary Care,THIRD PARTY PAYMENTS,PRIVATE CONTRACTOR,REVENUE
Walsall Council,http://opendatacommunities.org/id/metropolitan-district-council/walsall ,WC146-383,31.01.2023,ADULT SOCIAL CARE,ABILITY HEALTHCARE LTD,11/01/2023,"1,777.60",6541-Domiciliary Care,THIRD PARTY PAYMENTS,PRIVATE CONTRACTOR,REVENUE
Walsall Council,http://opendatacommunities.org/id/metropolitan-district-council/walsall ,WC146-384,31.01.2023,ADULT SOCIAL CARE,ABILITY HEALTHCARE LTD,11/01/2023,"1,809.92",6541-Domiciliary Care,THIRD PARTY PAYMENTS,PRIVATE CONTRACTOR,REVENUE
Walsall Council,http://opendatacommunities.org/id/metropolitan-district-council/walsall ,WC146-385,31.01.2023,ADULT SOCIAL CARE,ABILITY HEALTHCARE LTD,11/01/2023,"1,414.00",6541-Domiciliary Care,THIRD PARTY PAYMENTS,PRIVATE CONTRACTOR,REVENUE
Walsall Council,http://opendatacommunities.org/id/metropolitan-district-council/walsall ,WC146-386,31.01.2023,ADULT SOCIAL CARE,ABILITY HEALTHCARE LTD,11/01/2023,"1,018.08",6541-Domiciliary Care,THIRD PARTY PAYMENTS,PRIVATE CONTRACTOR,REVENUE
Walsall Council,http://opendatacommunities.org/id/metropolitan-district-council/walsall ,WC146-387,31.01.2023,ADULT SOCIAL CARE,ABILITY HEALTHCARE LTD,11/01/2023,377.16,6541-Domiciliary Care,THIRD PARTY PAYMENTS,PRIVATE CONTRACTOR,REVENUE
Walsall Council,http://opendatacommunities.org/id/metropolitan-district-council/walsall ,WC146-388,31.01.2023,ADULT SOCIAL CARE,ABILITY HEALTHCARE LTD,11/01/2023,"1,486.72",6541-Domiciliary Care,THIRD PARTY PAYMENTS,PRIVATE CONTRACTOR,REVENUE
Walsall Council,http://opendatacommunities.org/id/metropolitan-district-council/walsall ,WC146-389,31.01.2023,ADULT SOCIAL CARE,ABILITY HEALTHCARE LTD,11/01/2023,905.52,6541-Domiciliary Care,THIRD PARTY PAYMENTS,PRIVATE CONTRACTOR,REVENUE
Walsall Council,http://opendatacommunities.org/id/metropolitan-district-council/walsall ,WC146-390,31.01.2023,ADULT SOCIAL CARE,ABILITY HEALTHCARE LTD,11/01/2023,808.00,6541-Domiciliary Care,THIRD PARTY PAYMENTS,PRIVATE CONTRACTOR,REVENUE
Walsall Council,http://opendatacommunities.org/id/metropolitan-district-council/walsall ,WC146-391,31.01.2023,ADULT SOCIAL CARE,ABILITY HEALTHCARE LTD,11/01/2023,"1,809.92",6541-Domiciliary Care,THIRD PARTY PAYMENTS,PRIVATE CONTRACTOR,REVENUE
Walsall Council,http://opendatacommunities.org/id/metropolitan-district-council/walsall ,WC146-392,31.01.2023,ADULT SOCIAL CARE,ABILITY HEALTHCARE LTD,11/01/2023,904.96,6541-Domiciliary Care,THIRD PARTY PAYMENTS,PRIVATE CONTRACTOR,REVENUE
Walsall Council,http://opendatacommunities.org/id/metropolitan-district-council/walsall ,WC146-393,31.01.2023,ADULT SOCIAL CARE,ABILITY HEALTHCARE LTD,11/01/2023,"2,036.16",6541-Domiciliary Care,THIRD PARTY PAYMENTS,PRIVATE CONTRACTOR,REVENUE
Walsall Council,http://opendatacommunities.org/id/metropolitan-district-council/walsall ,WC146-394,31.01.2023,ADULT SOCIAL CARE,ABILITY HEALTHCARE LTD,11/01/2023,"1,809.92",6541-Domiciliary Care,THIRD PARTY PAYMENTS,PRIVATE CONTRACTOR,REVENUE
Walsall Council,http://opendatacommunities.org/id/metropolitan-district-council/walsall ,WC146-395,31.01.2023,ADULT SOCIAL CARE,ABILITY HEALTHCARE LTD,11/01/2023,"2,068.48",6541-Domiciliary Care,THIRD PARTY PAYMENTS,PRIVATE CONTRACTOR,REVENUE
Walsall Council,http://opendatacommunities.org/id/metropolitan-district-council/walsall ,WC146-396,31.01.2023,ADULT SOCIAL CARE,ABILITY HEALTHCARE LTD,11/01/2023,"1,809.92",6541-Domiciliary Care,THIRD PARTY PAYMENTS,PRIVATE CONTRACTOR,REVENUE
Walsall Council,http://opendatacommunities.org/id/metropolitan-district-council/walsall ,WC146-397,31.01.2023,ADULT SOCIAL CARE,ABILITY HEALTHCARE LTD,11/01/2023,"1,292.80",6541-Domiciliary Care,THIRD PARTY PAYMENTS,PRIVATE CONTRACTOR,REVENUE
Walsall Council,http://opendatacommunities.org/id/metropolitan-district-council/walsall ,WC146-398,31.01.2023,ADULT SOCIAL CARE,ABILITY HEALTHCARE LTD,11/01/2023,"1,583.68",6541-Domiciliary Care,THIRD PARTY PAYMENTS,PRIVATE CONTRACTOR,REVENUE
Walsall Council,http://opendatacommunities.org/id/metropolitan-district-council/walsall ,WC146-399,31.01.2023,ADULT SOCIAL CARE,ABILITY HEALTHCARE LTD,11/01/2023,"1,195.84",6541-Domiciliary Care,THIRD PARTY PAYMENTS,PRIVATE CONTRACTOR,REVENUE
Walsall Council,http://opendatacommunities.org/id/metropolitan-district-council/walsall ,WC146-400,31.01.2023,ADULT SOCIAL CARE,ABILITY HEALTHCARE LTD,11/01/2023,"1,809.92",6541-Domiciliary Care,THIRD PARTY PAYMENTS,PRIVATE CONTRACTOR,REVENUE
Walsall Council,http://opendatacommunities.org/id/metropolitan-district-council/walsall ,WC146-401,31.01.2023,ADULT SOCIAL CARE,ABILITY HEALTHCARE LTD,11/01/2023,"2,036.16",6541-Domiciliary Care,THIRD PARTY PAYMENTS,PRIVATE CONTRACTOR,REVENUE
Walsall Council,http://opendatacommunities.org/id/metropolitan-district-council/walsall ,WC146-402,31.01.2023,ADULT SOCIAL CARE,ABILITY HEALTHCARE LTD,11/01/2023,"1,659.28",6541-Domiciliary Care,THIRD PARTY PAYMENTS,PRIVATE CONTRACTOR,REVENUE
Walsall Council,http://opendatacommunities.org/id/metropolitan-district-council/walsall ,WC146-403,31.01.2023,ADULT SOCIAL CARE,ABILITY HEALTHCARE LTD,11/01/2023,"1,206.80",6541-Domiciliary Care,THIRD PARTY PAYMENTS,PRIVATE CONTRACTOR,REVENUE
Walsall Council,http://opendatacommunities.org/id/metropolitan-district-council/walsall ,WC146-404,31.01.2023,ADULT SOCIAL CARE,ABILITY HEALTHCARE LTD,11/01/2023,"1,809.92",6541-Domiciliary Care,THIRD PARTY PAYMENTS,PRIVATE CONTRACTOR,REVENUE
Walsall Council,http://opendatacommunities.org/id/metropolitan-district-council/walsall ,WC146-405,31.01.2023,ADULT SOCIAL CARE,ABILITY HEALTHCARE LTD,11/01/2023,921.12,6541-Domiciliary Care,THIRD PARTY PAYMENTS,PRIVATE CONTRACTOR,REVENUE
Walsall Council,http://opendatacommunities.org/id/metropolitan-district-council/walsall ,WC146-406,31.01.2023,ADULT SOCIAL CARE,ABILITY HEALTHCARE LTD,11/01/2023,"2,036.16",6541-Domiciliary Care,THIRD PARTY PAYMENTS,PRIVATE CONTRACTOR,REVENUE
Walsall Council,http://opendatacommunities.org/id/metropolitan-district-council/walsall ,WC146-407,31.01.2023,ADULT SOCIAL CARE,ABILITY HEALTHCARE LTD,11/01/2023,436.32,6541-Domiciliary Care,THIRD PARTY PAYMENTS,PRIVATE CONTRACTOR,REVENUE
Walsall Council,http://opendatacommunities.org/id/metropolitan-district-council/walsall ,WC146-408,31.01.2023,ADULT SOCIAL CARE,ABILITY HEALTHCARE LTD,11/01/2023,581.76,6541-Domiciliary Care,THIRD PARTY PAYMENTS,PRIVATE CONTRACTOR,REVENUE
Walsall Council,http://opendatacommunities.org/id/metropolitan-district-council/walsall ,WC146-409,31.01.2023,ADULT SOCIAL CARE,ABILITY HEALTHCARE LTD,11/01/2023,452.76,6541-Domiciliary Care,THIRD PARTY PAYMENTS,PRIVATE CONTRACTOR,REVENUE
Walsall Council,http://opendatacommunities.org/id/metropolitan-district-council/walsall ,WC146-410,31.01.2023,ADULT SOCIAL CARE,ABILITY HEALTHCARE LTD,11/01/2023,"2,036.16",6554-Professional Services-Priv Contractor & Other Agencies,THIRD PARTY PAYMENTS,PRIVATE CONTRACTOR,REVENUE
Walsall Council,http://opendatacommunities.org/id/metropolitan-district-council/walsall ,WC146-411,31.01.2023,ADULT SOCIAL CARE,ABILITY HEALTHCARE LTD,11/01/2023,"1,527.12",6554-Professional Services-Priv Contractor & Other Agencies,THIRD PARTY PAYMENTS,PRIVATE CONTRACTOR,REVENUE
Walsall Council,http://opendatacommunities.org/id/metropolitan-district-council/walsall ,WC146-412,31.01.2023,ADULT SOCIAL CARE,ABILITY HEALTHCARE LTD,11/01/2023,581.76,6554-Professional Services-Priv Contractor & Other Agencies,THIRD PARTY PAYMENTS,PRIVATE CONTRACTOR,REVENUE
Walsall Council,http://opendatacommunities.org/id/metropolitan-district-council/walsall ,WC146-413,31.01.2023,ADULT SOCIAL CARE,ABILITY HEALTHCARE LTD,11/01/2023,759.52,6554-Professional Services-Priv Contractor & Other Agencies,THIRD PARTY PAYMENTS,PRIVATE CONTRACTOR,REVENUE
Walsall Council,http://opendatacommunities.org/id/metropolitan-district-council/walsall ,WC146-414,31.01.2023,ADULT SOCIAL CARE,ABILITY HEALTHCARE LTD,11/01/2023,"1,963.44",6554-Professional Services-Priv Contractor & Other Agencies,THIRD PARTY PAYMENTS,PRIVATE CONTRACTOR,REVENUE
Walsall Council,http://opendatacommunities.org/id/metropolitan-district-council/walsall ,WC146-415,31.01.2023,ADULT SOCIAL CARE,ABILITY HEALTHCARE LTD,11/01/2023,323.20,6554-Professional Services-Priv Contractor & Other Agencies,THIRD PARTY PAYMENTS,PRIVATE CONTRACTOR,REVENUE
Walsall Council,http://opendatacommunities.org/id/metropolitan-district-council/walsall ,WC146-416,31.01.2023,ADULT SOCIAL CARE,ABILITY HEALTHCARE LTD,11/01/2023,517.12,6554-Professional Services-Priv Contractor & Other Agencies,THIRD PARTY PAYMENTS,PRIVATE CONTRACTOR,REVENUE
Walsall Council,http://opendatacommunities.org/id/metropolitan-district-council/walsall ,WC146-417,31.01.2023,ADULT SOCIAL CARE,ABILITY HEALTHCARE LTD,11/01/2023,"2,036.16",6554-Professional Services-Priv Contractor & Other Agencies,THIRD PARTY PAYMENTS,PRIVATE CONTRACTOR,REVENUE
Walsall Council,http://opendatacommunities.org/id/metropolitan-district-council/walsall ,WC146-418,31.01.2023,"ECONOMY, ENVIRONMENT & COMMUNITIES",ABLE INVESTIGATIONS & ENFORCEMENTS LTD,23/01/2023,"5,675.00",6440-Professional Fees & Services,SUPPLIES & SERVICES,SERVICES,REVENUE
Walsall Council,http://opendatacommunities.org/id/metropolitan-district-council/walsall ,WC146-419,31.01.2023,"ECONOMY, ENVIRONMENT & COMMUNITIES",ABLE INVESTIGATIONS & ENFORCEMENTS LTD,20/01/2023,"5,675.00",6440-Professional Fees & Services,SUPPLIES & SERVICES,SERVICES,REVENUE
Walsall Council,http://opendatacommunities.org/id/metropolitan-district-council/walsall ,WC146-420,31.01.2023,CHILDRENS,ABLEWELL CARS,30/01/2023,594.00,6241-Hire of Vehicle with Driver,TRANSPORT,DIRECT TRANSPORT COSTS,REVENUE
Walsall Council,http://opendatacommunities.org/id/metropolitan-district-council/walsall ,WC146-421,31.01.2023,CHILDRENS,ABLEWELL CARS,30/01/2023,748.80,6241-Hire of Vehicle with Driver,TRANSPORT,DIRECT TRANSPORT COSTS,REVENUE
Walsall Council,http://opendatacommunities.org/id/metropolitan-district-council/walsall ,WC146-422,31.01.2023,CHILDRENS,ABLEWELL CARS,30/01/2023,727.65,6241-Hire of Vehicle with Driver,TRANSPORT,DIRECT TRANSPORT COSTS,REVENUE
Walsall Council,http://opendatacommunities.org/id/metropolitan-district-council/walsall ,WC146-423,31.01.2023,CHILDRENS,ABLEWELL CARS,30/01/2023,"1,104.50",6241-Hire of Vehicle with Driver,TRANSPORT,DIRECT TRANSPORT COSTS,REVENUE
Walsall Council,http://opendatacommunities.org/id/metropolitan-district-council/walsall ,WC146-424,31.01.2023,CHILDRENS,ABLEWELL CARS,30/01/2023,568.80,6241-Hire of Vehicle with Driver,TRANSPORT,DIRECT TRANSPORT COSTS,REVENUE
Walsall Council,http://opendatacommunities.org/id/metropolitan-district-council/walsall ,WC146-425,31.01.2023,CHILDRENS,ABLEWELL CARS,30/01/2023,662.04,6241-Hire of Vehicle with Driver,TRANSPORT,DIRECT TRANSPORT COSTS,REVENUE
Walsall Council,http://opendatacommunities.org/id/metropolitan-district-council/walsall ,WC146-426,31.01.2023,CHILDRENS,ABS TAXIS (ALDRIDGE),30/01/2023,888.30,6241-Hire of Vehicle with Driver,TRANSPORT,DIRECT TRANSPORT COSTS,REVENUE
Walsall Council,http://opendatacommunities.org/id/metropolitan-district-council/walsall ,WC146-427,31.01.2023,CHILDRENS,ABS TAXIS (ALDRIDGE),30/01/2023,754.20,6241-Hire of Vehicle with Driver,TRANSPORT,DIRECT TRANSPORT COSTS,REVENUE
Walsall Council,http://opendatacommunities.org/id/metropolitan-district-council/walsall ,WC146-428,31.01.2023,CHILDRENS,ABS TAXIS (ALDRIDGE),30/01/2023,390.00,6241-Hire of Vehicle with Driver,TRANSPORT,DIRECT TRANSPORT COSTS,REVENUE
Walsall Council,http://opendatacommunities.org/id/metropolitan-district-council/walsall ,WC146-429,31.01.2023,CHILDRENS,ABS TAXIS (ALDRIDGE),30/01/2023,531.80,6241-Hire of Vehicle with Driver,TRANSPORT,DIRECT TRANSPORT COSTS,REVENUE
Walsall Council,http://opendatacommunities.org/id/metropolitan-district-council/walsall ,WC146-430,31.01.2023,CHILDRENS,ABS TAXIS (ALDRIDGE),30/01/2023,540.00,6241-Hire of Vehicle with Driver,TRANSPORT,DIRECT TRANSPORT COSTS,REVENUE
Walsall Council,http://opendatacommunities.org/id/metropolitan-district-council/walsall ,WC146-431,31.01.2023,ADULT SOCIAL CARE,ABSOLUTE HEALTHCARE SWAN HOUSE LTD,16/01/2023,"2,366.04",6541-Residential EMI,THIRD PARTY PAYMENTS,PRIVATE CONTRACTOR,REVENUE
Walsall Council,http://opendatacommunities.org/id/metropolitan-district-council/walsall ,WC146-432,31.01.2023,ADULT SOCIAL CARE,ABSOLUTE HEALTHCARE SWAN HOUSE LTD,16/01/2023,"2,235.40",6541-Residential,THIRD PARTY PAYMENTS,PRIVATE CONTRACTOR,REVENUE
Walsall Council,http://opendatacommunities.org/id/metropolitan-district-council/walsall ,WC146-433,31.01.2023,ADULT SOCIAL CARE,ABSOLUTE HEALTHCARE SWAN HOUSE LTD,16/01/2023,"2,135.40",6541-Residential,THIRD PARTY PAYMENTS,PRIVATE CONTRACTOR,REVENUE
Walsall Council,http://opendatacommunities.org/id/metropolitan-district-council/walsall ,WC146-434,31.01.2023,ADULT SOCIAL CARE,ABSOLUTE HEALTHCARE SWAN HOUSE LTD,16/01/2023,"2,095.40",6541-Residential,THIRD PARTY PAYMENTS,PRIVATE CONTRACTOR,REVENUE
Walsall Council,http://opendatacommunities.org/id/metropolitan-district-council/walsall ,WC146-435,31.01.2023,ADULT SOCIAL CARE,ABSOLUTE HEALTHCARE SWAN HOUSE LTD,16/01/2023,"2,366.04",6541-Residential EMI,THIRD PARTY PAYMENTS,PRIVATE CONTRACTOR,REVENUE
Walsall Council,http://opendatacommunities.org/id/metropolitan-district-council/walsall ,WC146-436,31.01.2023,ADULT SOCIAL CARE,ABSOLUTE HEALTHCARE SWAN HOUSE LTD,16/01/2023,"2,095.40",6541-Residential,THIRD PARTY PAYMENTS,PRIVATE CONTRACTOR,REVENUE
Walsall Council,http://opendatacommunities.org/id/metropolitan-district-council/walsall ,WC146-437,31.01.2023,ADULT SOCIAL CARE,ABSOLUTE HEALTHCARE SWAN HOUSE LTD,16/01/2023,"2,095.40",6541-Residential,THIRD PARTY PAYMENTS,PRIVATE CONTRACTOR,REVENUE
Walsall Council,http://opendatacommunities.org/id/metropolitan-district-council/walsall ,WC146-438,31.01.2023,ADULT SOCIAL CARE,ABSOLUTE HEALTHCARE SWAN HOUSE LTD,16/01/2023,"2,095.40",6541-Residential,THIRD PARTY PAYMENTS,PRIVATE CONTRACTOR,REVENUE
Walsall Council,http://opendatacommunities.org/id/metropolitan-district-council/walsall ,WC146-439,31.01.2023,ADULT SOCIAL CARE,ABSOLUTE HEALTHCARE SWAN HOUSE LTD,16/01/2023,"2,095.40",6541-Residential,THIRD PARTY PAYMENTS,PRIVATE CONTRACTOR,REVENUE
Walsall Council,http://opendatacommunities.org/id/metropolitan-district-council/walsall ,WC146-440,31.01.2023,ADULT SOCIAL CARE,ABSOLUTE HEALTHCARE SWAN HOUSE LTD,16/01/2023,"2,366.04",6541-Residential EMI,THIRD PARTY PAYMENTS,PRIVATE CONTRACTOR,REVENUE
Walsall Council,http://opendatacommunities.org/id/metropolitan-district-council/walsall ,WC146-441,31.01.2023,ADULT SOCIAL CARE,ABSOLUTE HEALTHCARE SWAN HOUSE LTD,16/01/2023,"2,763.80",6541-Nursing EMI,THIRD PARTY PAYMENTS,PRIVATE CONTRACTOR,REVENUE
Walsall Council,http://opendatacommunities.org/id/metropolitan-district-council/walsall ,WC146-442,31.01.2023,ADULT SOCIAL CARE,ABSOLUTE HEALTHCARE SWAN HOUSE LTD,16/01/2023,"2,408.75",6541-Residential EMI,THIRD PARTY PAYMENTS,PRIVATE CONTRACTOR,REVENUE
Walsall Council,http://opendatacommunities.org/id/metropolitan-district-council/walsall ,WC146-443,31.01.2023,ADULT SOCIAL CARE,ABSOLUTE HEALTHCARE SWAN HOUSE LTD,16/01/2023,"2,135.40",6541-Residential,THIRD PARTY PAYMENTS,PRIVATE CONTRACTOR,REVENUE
Walsall Council,http://opendatacommunities.org/id/metropolitan-district-council/walsall ,WC146-444,31.01.2023,ADULT SOCIAL CARE,ABSOLUTE HEALTHCARE SWAN HOUSE LTD,16/01/2023,"2,366.04",6541-Residential EMI,THIRD PARTY PAYMENTS,PRIVATE CONTRACTOR,REVENUE
Walsall Council,http://opendatacommunities.org/id/metropolitan-district-council/walsall ,WC146-445,31.01.2023,ADULT SOCIAL CARE,ABSOLUTE HEALTHCARE SWAN HOUSE LTD,16/01/2023,"2,095.40",6541-Residential,THIRD PARTY PAYMENTS,PRIVATE CONTRACTOR,REVENUE
Walsall Council,http://opendatacommunities.org/id/metropolitan-district-council/walsall ,WC146-446,31.01.2023,ADULT SOCIAL CARE,ABSOLUTE HEALTHCARE SWAN HOUSE LTD,16/01/2023,"2,366.04",6541-Residential EMI,THIRD PARTY PAYMENTS,PRIVATE CONTRACTOR,REVENUE
Walsall Council,http://opendatacommunities.org/id/metropolitan-district-council/walsall ,WC146-447,31.01.2023,CHILDRENS,ABU BAKR NURSERY,16/01/2023,"11,465.44",1184-Other-Grants to Other Orgs,SUPPLIES & SERVICES,GRANTS (EXP) & SUBSCRIPTIONS,REVENUE
Walsall Council,http://opendatacommunities.org/id/metropolitan-district-council/walsall ,WC146-448,31.01.2023,CHILDRENS,ABU BAKR NURSERY,16/01/2023,"17,800.20",1184-Other-Grants to Other Orgs,SUPPLIES & SERVICES,GRANTS (EXP) & SUBSCRIPTIONS,REVENUE
Walsall Council,http://opendatacommunities.org/id/metropolitan-district-council/walsall ,WC146-449,31.01.2023,CHILDRENS,AC SOCIAL CARE CONSULTANCY LTD,10/01/2023,900.00,6221-Consultant Fees,SUPPLIES & SERVICES,SERVICES,REVENUE
Walsall Council,http://opendatacommunities.org/id/metropolitan-district-council/walsall ,WC146-450,31.01.2023,CHILDRENS,ACCALIA CARE SERVICES LTD,23/01/2023,"20,960.00",6223-External Residential Care-Oth Agency Provision,THIRD PARTY PAYMENTS,PRIVATE CONTRACTOR,REVENUE
Walsall Council,http://opendatacommunities.org/id/metropolitan-district-council/walsall ,WC146-451,31.01.2023,ADULT SOCIAL CARE,ACCESS UK LTD ,03/01/2023,"18,315.00",6551-Professional Fees & Services,SUPPLIES & SERVICES,SERVICES,REVENUE
Walsall Council,http://opendatacommunities.org/id/metropolitan-district-council/walsall ,WC146-452,31.01.2023,ADULT SOCIAL CARE,ACCESS UK LTD ,03/01/2023,"-3,000.00",6551-Professional Fees & Services,SUPPLIES & SERVICES,SERVICES,REVENUE
Walsall Council,http://opendatacommunities.org/id/metropolitan-district-council/walsall ,WC146-453,31.01.2023,ADULT SOCIAL CARE,ACCESS UK LTD ,03/01/2023,"3,000.00",6551-Professional Fees & Services,SUPPLIES & SERVICES,SERVICES,REVENUE
Walsall Council,http://opendatacommunities.org/id/metropolitan-district-council/walsall ,WC146-454,31.01.2023,RESOURCES AND TRANSFORMATION,ACCESS UK LTD ,03/01/2023,"3,000.00",6623-Computer Equipment,SUPPLIES & SERVICES,COMMUNICATIONS & COMPUTING,REVENUE
Walsall Council,http://opendatacommunities.org/id/metropolitan-district-council/walsall ,WC146-455,31.01.2023,ADULT SOCIAL CARE,ACCESS UK LTD ,03/01/2023,"7,023.00",6551-Professional Fees & Services,SUPPLIES & SERVICES,SERVICES,REVENUE
Walsall Council,http://opendatacommunities.org/id/metropolitan-district-council/walsall ,WC146-456,31.01.2023,ADULT SOCIAL CARE,ACCESS UK LTD ,11/01/2023,"18,315.00",6551-Professional Fees & Services,SUPPLIES & SERVICES,SERVICES,REVENUE
Walsall Council,http://opendatacommunities.org/id/metropolitan-district-council/walsall ,WC146-457,31.01.2023,ADULT SOCIAL CARE,ACCORD HOUSING ASSOCIATION LIMITED - HOBS MEADOW,16/01/2023,"4,776.84",6541-Residential,THIRD PARTY PAYMENTS,PRIVATE CONTRACTOR,REVENUE
Walsall Council,http://opendatacommunities.org/id/metropolitan-district-council/walsall ,WC146-458,31.01.2023,ADULT SOCIAL CARE,ACCORD HOUSING ASSOCIATION LIMITED - HOBS MEADOW,16/01/2023,"4,776.84",6541-Residential,THIRD PARTY PAYMENTS,PRIVATE CONTRACTOR,REVENUE
Walsall Council,http://opendatacommunities.org/id/metropolitan-district-council/walsall ,WC146-459,31.01.2023,ADULT SOCIAL CARE,ACCORD HOUSING ASSOCIATION LIMITED - HOBS MEADOW,16/01/2023,"4,776.84",6541-Residential,THIRD PARTY PAYMENTS,PRIVATE CONTRACTOR,REVENUE
Walsall Council,http://opendatacommunities.org/id/metropolitan-district-council/walsall ,WC146-460,31.01.2023,ADULT SOCIAL CARE,ACCORD HOUSING ASSOCIATION LIMITED - HOBS MEADOW,16/01/2023,"4,776.84",6541-Residential,THIRD PARTY PAYMENTS,PRIVATE CONTRACTOR,REVENUE
Walsall Council,http://opendatacommunities.org/id/metropolitan-district-council/walsall ,WC146-461,31.01.2023,CHILDRENS,ACE CARS & MINIBUSES LTD,30/01/2023,963.00,6241-Hire of Vehicle with Driver,TRANSPORT,DIRECT TRANSPORT COSTS,REVENUE
Walsall Council,http://opendatacommunities.org/id/metropolitan-district-council/walsall ,WC146-462,31.01.2023,CHILDRENS,ACE CARS & MINIBUSES LTD,30/01/2023,963.00,6241-Hire of Vehicle with Driver,TRANSPORT,DIRECT TRANSPORT COSTS,REVENUE
Walsall Council,http://opendatacommunities.org/id/metropolitan-district-council/walsall ,WC146-463,31.01.2023,CHILDRENS,ACE CARS & MINIBUSES LTD,30/01/2023,963.00,6241-Hire of Vehicle with Driver,TRANSPORT,DIRECT TRANSPORT COSTS,REVENUE
Walsall Council,http://opendatacommunities.org/id/metropolitan-district-council/walsall ,WC146-464,31.01.2023,CHILDRENS,ACE CARS & MINIBUSES LTD,30/01/2023,963.00,6241-Hire of Vehicle with Driver,TRANSPORT,DIRECT TRANSPORT COSTS,REVENUE
Walsall Council,http://opendatacommunities.org/id/metropolitan-district-council/walsall ,WC146-465,31.01.2023,CHILDRENS,ACE CARS & MINIBUSES LTD,30/01/2023,"1,062.00",6241-Hire of Vehicle with Driver,TRANSPORT,DIRECT TRANSPORT COSTS,REVENUE
Walsall Council,http://opendatacommunities.org/id/metropolitan-district-council/walsall ,WC146-466,31.01.2023,CHILDRENS,ACE CARS & MINIBUSES LTD,30/01/2023,"1,426.50",6241-Hire of Vehicle with Driver,TRANSPORT,DIRECT TRANSPORT COSTS,REVENUE
Walsall Council,http://opendatacommunities.org/id/metropolitan-district-council/walsall ,WC146-467,31.01.2023,CHILDRENS,ACE CARS & MINIBUSES LTD,30/01/2023,"1,075.50",6241-Hire of Vehicle with Driver,TRANSPORT,DIRECT TRANSPORT COSTS,REVENUE
Walsall Council,http://opendatacommunities.org/id/metropolitan-district-council/walsall ,WC146-468,31.01.2023,CHILDRENS,ACE CARS & MINIBUSES LTD,30/01/2023,"1,971.75",6241-Hire of Vehicle with Driver,TRANSPORT,DIRECT TRANSPORT COSTS,REVENUE
Walsall Council,http://opendatacommunities.org/id/metropolitan-district-council/walsall ,WC146-469,31.01.2023,CHILDRENS,ACE CARS & MINIBUSES LTD,30/01/2023,"1,075.50",6241-Hire of Vehicle with Driver,TRANSPORT,DIRECT TRANSPORT COSTS,REVENUE
Walsall Council,http://opendatacommunities.org/id/metropolitan-district-council/walsall ,WC146-470,31.01.2023,CHILDRENS,ACE CARS & MINIBUSES LTD,30/01/2023,"1,224.90",6241-Hire of Vehicle with Driver,TRANSPORT,DIRECT TRANSPORT COSTS,REVENUE
Walsall Council,http://opendatacommunities.org/id/metropolitan-district-council/walsall ,WC146-471,31.01.2023,CHILDRENS,ACE CARS & MINIBUSES LTD,30/01/2023,"1,224.90",6241-Hire of Vehicle with Driver,TRANSPORT,DIRECT TRANSPORT COSTS,REVENUE
Walsall Council,http://opendatacommunities.org/id/metropolitan-district-council/walsall ,WC146-472,31.01.2023,CHILDRENS,ACE CARS & MINIBUSES LTD,30/01/2023,"1,026.00",6241-Hire of Vehicle with Driver,TRANSPORT,DIRECT TRANSPORT COSTS,REVENUE
Walsall Council,http://opendatacommunities.org/id/metropolitan-district-council/walsall ,WC146-473,31.01.2023,CHILDRENS,ACE CARS & MINIBUSES LTD,30/01/2023,963.00,6241-Hire of Vehicle with Driver,TRANSPORT,DIRECT TRANSPORT COSTS,REVENUE
Walsall Council,http://opendatacommunities.org/id/metropolitan-district-council/walsall ,WC146-474,31.01.2023,CHILDRENS,ACE CARS & MINIBUSES LTD,30/01/2023,963.00,6241-Hire of Vehicle with Driver,TRANSPORT,DIRECT TRANSPORT COSTS,REVENUE
Walsall Council,http://opendatacommunities.org/id/metropolitan-district-council/walsall ,WC146-475,31.01.2023,CHILDRENS,ACE CARS & MINIBUSES LTD,30/01/2023,"1,062.00",6241-Hire of Vehicle with Driver,TRANSPORT,DIRECT TRANSPORT COSTS,REVENUE
Walsall Council,http://opendatacommunities.org/id/metropolitan-district-council/walsall ,WC146-476,31.01.2023,CHILDRENS,ACE CARS & MINIBUSES LTD,30/01/2023,"1,026.00",6241-Hire of Vehicle with Driver,TRANSPORT,DIRECT TRANSPORT COSTS,REVENUE
Walsall Council,http://opendatacommunities.org/id/metropolitan-district-council/walsall ,WC146-477,31.01.2023,CHILDRENS,ACE CARS & MINIBUSES LTD,30/01/2023,"1,026.00",6241-Hire of Vehicle with Driver,TRANSPORT,DIRECT TRANSPORT COSTS,REVENUE
Walsall Council,http://opendatacommunities.org/id/metropolitan-district-council/walsall ,WC146-478,31.01.2023,CHILDRENS,ACE CARS & MINIBUSES LTD,30/01/2023,"6,543.00",6241-Hire of Vehicle with Driver,TRANSPORT,DIRECT TRANSPORT COSTS,REVENUE
Walsall Council,http://opendatacommunities.org/id/metropolitan-district-council/walsall ,WC146-479,31.01.2023,CHILDRENS,ACE CARS & MINIBUSES LTD,30/01/2023,"1,026.00",6241-Hire of Vehicle with Driver,TRANSPORT,DIRECT TRANSPORT COSTS,REVENUE
Walsall Council,http://opendatacommunities.org/id/metropolitan-district-council/walsall ,WC146-480,31.01.2023,CHILDRENS,ACE CARS & MINIBUSES LTD,30/01/2023,"6,188.40",6241-Hire of Vehicle with Driver,TRANSPORT,DIRECT TRANSPORT COSTS,REVENUE
Walsall Council,http://opendatacommunities.org/id/metropolitan-district-council/walsall ,WC146-481,31.01.2023,CHILDRENS,ACE CARS & MINIBUSES LTD,30/01/2023,"1,401.84",6241-Hire of Vehicle with Driver,TRANSPORT,DIRECT TRANSPORT COSTS,REVENUE
Walsall Council,http://opendatacommunities.org/id/metropolitan-district-council/walsall ,WC146-482,31.01.2023,CHILDRENS,ACE CARS & MINIBUSES LTD,30/01/2023,"1,062.00",6241-Hire of Vehicle with Driver,TRANSPORT,DIRECT TRANSPORT COSTS,REVENUE
Walsall Council,http://opendatacommunities.org/id/metropolitan-district-council/walsall ,WC146-483,31.01.2023,CHILDRENS,ACE CARS & MINIBUSES LTD,30/01/2023,"1,210.68",6241-Hire of Vehicle with Driver,TRANSPORT,DIRECT TRANSPORT COSTS,REVENUE
Walsall Council,http://opendatacommunities.org/id/metropolitan-district-council/walsall ,WC146-484,31.01.2023,CHILDRENS,ACE CARS & MINIBUSES LTD,30/01/2023,"1,125.72",6241-Hire of Vehicle with Driver,TRANSPORT,DIRECT TRANSPORT COSTS,REVENUE
Walsall Council,http://opendatacommunities.org/id/metropolitan-district-council/walsall ,WC146-485,31.01.2023,CHILDRENS,ACE CARS & MINIBUSES LTD,30/01/2023,"1,062.00",6241-Hire of Vehicle with Driver,TRANSPORT,DIRECT TRANSPORT COSTS,REVENUE
Walsall Council,http://opendatacommunities.org/id/metropolitan-district-council/walsall ,WC146-486,31.01.2023,CHILDRENS,ACE CARS & MINIBUSES LTD,30/01/2023,"1,440.00",6241-Hire of Vehicle with Driver,TRANSPORT,DIRECT TRANSPORT COSTS,REVENUE
Walsall Council,http://opendatacommunities.org/id/metropolitan-district-council/walsall ,WC146-487,31.01.2023,CHILDRENS,ACE CARS & MINIBUSES LTD,30/01/2023,"1,702.71",6241-Hire of Vehicle with Driver,TRANSPORT,DIRECT TRANSPORT COSTS,REVENUE
Walsall Council,http://opendatacommunities.org/id/metropolitan-district-council/walsall ,WC146-488,31.01.2023,CHILDRENS,ACE CARS & MINIBUSES LTD,30/01/2023,"1,224.90",6241-Hire of Vehicle with Driver,TRANSPORT,DIRECT TRANSPORT COSTS,REVENUE
Walsall Council,http://opendatacommunities.org/id/metropolitan-district-council/walsall ,WC146-489,31.01.2023,CHILDRENS,ACE CARS & MINIBUSES LTD,30/01/2023,"1,384.11",6241-Hire of Vehicle with Driver,TRANSPORT,DIRECT TRANSPORT COSTS,REVENUE
Walsall Council,http://opendatacommunities.org/id/metropolitan-district-council/walsall ,WC146-490,31.01.2023,CHILDRENS,ACE CARS & MINIBUSES LTD,30/01/2023,"4,839.75",6241-Hire of Vehicle with Driver,TRANSPORT,DIRECT TRANSPORT COSTS,REVENUE
Walsall Council,http://opendatacommunities.org/id/metropolitan-district-council/walsall ,WC146-491,31.01.2023,CHILDRENS,ACE CARS & MINIBUSES LTD,30/01/2023,963.00,6241-Hire of Vehicle with Driver,TRANSPORT,DIRECT TRANSPORT COSTS,REVENUE
Walsall Council,http://opendatacommunities.org/id/metropolitan-district-council/walsall ,WC146-492,31.01.2023,CHILDRENS,ACE CARS & MINIBUSES LTD,30/01/2023,"1,911.60",6241-Hire of Vehicle with Driver,TRANSPORT,DIRECT TRANSPORT COSTS,REVENUE
Walsall Council,http://opendatacommunities.org/id/metropolitan-district-council/walsall ,WC146-493,31.01.2023,CHILDRENS,ACE CARS & MINIBUSES LTD,30/01/2023,963.00,6241-Hire of Vehicle with Driver,TRANSPORT,DIRECT TRANSPORT COSTS,REVENUE
Walsall Council,http://opendatacommunities.org/id/metropolitan-district-council/walsall ,WC146-494,31.01.2023,CHILDRENS,ACE CARS & MINIBUSES LTD,30/01/2023,963.00,6241-Hire of Vehicle with Driver,TRANSPORT,DIRECT TRANSPORT COSTS,REVENUE
Walsall Council,http://opendatacommunities.org/id/metropolitan-district-council/walsall ,WC146-495,31.01.2023,CHILDRENS,ACE CARS & MINIBUSES LTD,30/01/2023,963.00,6241-Hire of Vehicle with Driver,TRANSPORT,DIRECT TRANSPORT COSTS,REVENUE
Walsall Council,http://opendatacommunities.org/id/metropolitan-district-council/walsall ,WC146-496,31.01.2023,CHILDRENS,ACE CARS & MINIBUSES LTD,30/01/2023,"1,062.00",6241-Hire of Vehicle with Driver,TRANSPORT,DIRECT TRANSPORT COSTS,REVENUE
Walsall Council,http://opendatacommunities.org/id/metropolitan-district-council/walsall ,WC146-497,31.01.2023,CHILDRENS,ACE CARS & MINIBUSES LTD,30/01/2023,"1,075.50",6241-Hire of Vehicle with Driver,TRANSPORT,DIRECT TRANSPORT COSTS,REVENUE
Walsall Council,http://opendatacommunities.org/id/metropolitan-district-council/walsall ,WC146-498,31.01.2023,CHILDRENS,ACE CARS & MINIBUSES LTD,30/01/2023,"1,224.90",6241-Hire of Vehicle with Driver,TRANSPORT,DIRECT TRANSPORT COSTS,REVENUE
Walsall Council,http://opendatacommunities.org/id/metropolitan-district-council/walsall ,WC146-499,31.01.2023,CHILDRENS,ACE CARS & MINIBUSES LTD,30/01/2023,"1,224.90",6241-Hire of Vehicle with Driver,TRANSPORT,DIRECT TRANSPORT COSTS,REVENUE
Walsall Council,http://opendatacommunities.org/id/metropolitan-district-council/walsall ,WC146-500,31.01.2023,CHILDRENS,ACE CARS & MINIBUSES LTD,30/01/2023,"1,224.90",6241-Hire of Vehicle with Driver,TRANSPORT,DIRECT TRANSPORT COSTS,REVENUE
Walsall Council,http://opendatacommunities.org/id/metropolitan-district-council/walsall ,WC146-501,31.01.2023,CHILDRENS,ACE CARS & MINIBUSES LTD,30/01/2023,"1,525.50",6241-Hire of Vehicle with Driver,TRANSPORT,DIRECT TRANSPORT COSTS,REVENUE
Walsall Council,http://opendatacommunities.org/id/metropolitan-district-council/walsall ,WC146-502,31.01.2023,CHILDRENS,ACE COACHING LIMITED,24/01/2023,499.20,6211-Professional Fees & Services,SUPPLIES & SERVICES,SERVICES,REVENUE
Walsall Council,http://opendatacommunities.org/id/metropolitan-district-council/walsall ,WC146-503,31.01.2023,ADULT SOCIAL CARE,ACEPAY LTD (COTTAGE NUR HOME),16/01/2023,"2,456.24",6541-Nursing,THIRD PARTY PAYMENTS,PRIVATE CONTRACTOR,REVENUE
Walsall Council,http://opendatacommunities.org/id/metropolitan-district-council/walsall ,WC146-504,31.01.2023,ADULT SOCIAL CARE,ACEPAY LTD (COTTAGE NUR HOME),16/01/2023,"2,456.24",6541-Nursing,THIRD PARTY PAYMENTS,PRIVATE CONTRACTOR,REVENUE
Walsall Council,http://opendatacommunities.org/id/metropolitan-district-council/walsall ,WC146-505,31.01.2023,ADULT SOCIAL CARE,ACEPAY LTD (COTTAGE NUR HOME),16/01/2023,"2,656.24",6541-Nursing,THIRD PARTY PAYMENTS,PRIVATE CONTRACTOR,REVENUE
Walsall Council,http://opendatacommunities.org/id/metropolitan-district-council/walsall ,WC146-506,31.01.2023,ADULT SOCIAL CARE,ACEPAY LTD (COTTAGE NUR HOME),16/01/2023,"2,763.80",6541-Nursing EMI,THIRD PARTY PAYMENTS,PRIVATE CONTRACTOR,REVENUE
Walsall Council,http://opendatacommunities.org/id/metropolitan-district-council/walsall ,WC146-507,31.01.2023,ADULT SOCIAL CARE,ACEPAY LTD (COTTAGE NUR HOME),16/01/2023,"2,366.04",6541-Residential EMI,THIRD PARTY PAYMENTS,PRIVATE CONTRACTOR,REVENUE
Walsall Council,http://opendatacommunities.org/id/metropolitan-district-council/walsall ,WC146-508,31.01.2023,ADULT SOCIAL CARE,ACEPAY LTD (COTTAGE NUR HOME),16/01/2023,"2,456.24",6541-Nursing,THIRD PARTY PAYMENTS,PRIVATE CONTRACTOR,REVENUE
Walsall Council,http://opendatacommunities.org/id/metropolitan-district-council/walsall ,WC146-509,31.01.2023,ADULT SOCIAL CARE,ACEPAY LTD (COTTAGE NUR HOME),16/01/2023,"2,456.24",6541-Nursing,THIRD PARTY PAYMENTS,PRIVATE CONTRACTOR,REVENUE
Walsall Council,http://opendatacommunities.org/id/metropolitan-district-council/walsall ,WC146-510,31.01.2023,ADULT SOCIAL CARE,ACEPAY LTD (COTTAGE NUR HOME),16/01/2023,"2,366.04",6541-Residential EMI,THIRD PARTY PAYMENTS,PRIVATE CONTRACTOR,REVENUE
Walsall Council,http://opendatacommunities.org/id/metropolitan-district-council/walsall ,WC146-511,31.01.2023,ADULT SOCIAL CARE,ACEPAY LTD (COTTAGE NUR HOME),16/01/2023,"2,763.80",6541-Nursing EMI,THIRD PARTY PAYMENTS,PRIVATE CONTRACTOR,REVENUE
Walsall Council,http://opendatacommunities.org/id/metropolitan-district-council/walsall ,WC146-512,31.01.2023,ADULT SOCIAL CARE,ACEPAY LTD (COTTAGE NUR HOME),16/01/2023,"2,366.04",6541-Residential EMI,THIRD PARTY PAYMENTS,PRIVATE CONTRACTOR,REVENUE
Walsall Council,http://opendatacommunities.org/id/metropolitan-district-council/walsall ,WC146-513,31.01.2023,ADULT SOCIAL CARE,ACEPAY LTD (COTTAGE NUR HOME),16/01/2023,"2,456.24",6541-Nursing,THIRD PARTY PAYMENTS,PRIVATE CONTRACTOR,REVENUE
Walsall Council,http://opendatacommunities.org/id/metropolitan-district-council/walsall ,WC146-514,31.01.2023,ADULT SOCIAL CARE,ACEPAY LTD (COTTAGE NUR HOME),16/01/2023,"2,456.24",6541-Nursing,THIRD PARTY PAYMENTS,PRIVATE CONTRACTOR,REVENUE
Walsall Council,http://opendatacommunities.org/id/metropolitan-district-council/walsall ,WC146-515,31.01.2023,ADULT SOCIAL CARE,ACEPAY LTD (COTTAGE NUR HOME),16/01/2023,"2,366.04",6541-Residential EMI,THIRD PARTY PAYMENTS,PRIVATE CONTRACTOR,REVENUE
Walsall Council,http://opendatacommunities.org/id/metropolitan-district-council/walsall ,WC146-516,31.01.2023,ADULT SOCIAL CARE,ACEPAY LTD (COTTAGE NUR HOME),16/01/2023,"2,763.80",6541-Nursing EMI,THIRD PARTY PAYMENTS,PRIVATE CONTRACTOR,REVENUE
Walsall Council,http://opendatacommunities.org/id/metropolitan-district-council/walsall ,WC146-517,31.01.2023,ADULT SOCIAL CARE,ACEPAY LTD (COTTAGE NUR HOME),16/01/2023,"2,456.24",6541-Nursing,THIRD PARTY PAYMENTS,PRIVATE CONTRACTOR,REVENUE
Walsall Council,http://opendatacommunities.org/id/metropolitan-district-council/walsall ,WC146-518,31.01.2023,ADULT SOCIAL CARE,ACEPAY LTD (COTTAGE NUR HOME),16/01/2023,"2,456.24",6541-Nursing,THIRD PARTY PAYMENTS,PRIVATE CONTRACTOR,REVENUE
Walsall Council,http://opendatacommunities.org/id/metropolitan-district-council/walsall ,WC146-519,31.01.2023,ADULT SOCIAL CARE,ACEPAY LTD (COTTAGE NUR HOME),16/01/2023,"2,456.24",6541-Nursing,THIRD PARTY PAYMENTS,PRIVATE CONTRACTOR,REVENUE
Walsall Council,http://opendatacommunities.org/id/metropolitan-district-council/walsall ,WC146-520,31.01.2023,ADULT SOCIAL CARE,ACEPAY LTD (COTTAGE NUR HOME),16/01/2023,-523.85,6541-Residential,THIRD PARTY PAYMENTS,PRIVATE CONTRACTOR,REVENUE
Walsall Council,http://opendatacommunities.org/id/metropolitan-district-council/walsall ,WC146-521,31.01.2023,ADULT SOCIAL CARE,ACEPAY LTD (COTTAGE NUR HOME),16/01/2023,"2,456.24",6541-Nursing,THIRD PARTY PAYMENTS,PRIVATE CONTRACTOR,REVENUE
Walsall Council,http://opendatacommunities.org/id/metropolitan-district-council/walsall ,WC146-522,31.01.2023,ADULT SOCIAL CARE,ACEPAY LTD (COTTAGE NUR HOME),16/01/2023,"2,456.24",6541-Nursing,THIRD PARTY PAYMENTS,PRIVATE CONTRACTOR,REVENUE
Walsall Council,http://opendatacommunities.org/id/metropolitan-district-council/walsall ,WC146-523,31.01.2023,ADULT SOCIAL CARE,ACEPAY LTD (COTTAGE NUR HOME),16/01/2023,"3,070.30",6541-Nursing,THIRD PARTY PAYMENTS,PRIVATE CONTRACTOR,REVENUE
Walsall Council,http://opendatacommunities.org/id/metropolitan-district-council/walsall ,WC146-524,31.01.2023,ADULT SOCIAL CARE,ACHIEVE TOGETHER LIMITED,16/01/2023,"5,506.08",6541-Residential,THIRD PARTY PAYMENTS,PRIVATE CONTRACTOR,REVENUE
Walsall Council,http://opendatacommunities.org/id/metropolitan-district-council/walsall ,WC146-525,31.01.2023,ADULT SOCIAL CARE,ACHIEVE TOGETHER LIMITED,16/01/2023,"5,740.84",6541-Residential,THIRD PARTY PAYMENTS,PRIVATE CONTRACTOR,REVENUE
Walsall Council,http://opendatacommunities.org/id/metropolitan-district-council/walsall ,WC146-526,31.01.2023,ADULT SOCIAL CARE,ACHIEVE TOGETHER LIMITED,16/01/2023,"3,852.80",6541-Residential,THIRD PARTY PAYMENTS,PRIVATE CONTRACTOR,REVENUE
Walsall Council,http://opendatacommunities.org/id/metropolitan-district-council/walsall ,WC146-527,31.01.2023,ADULT SOCIAL CARE,ACHIEVE TOGETHER LIMITED,16/01/2023,"6,572.72",6541-Residential,THIRD PARTY PAYMENTS,PRIVATE CONTRACTOR,REVENUE
Walsall Council,http://opendatacommunities.org/id/metropolitan-district-council/walsall ,WC146-528,31.01.2023,ADULT SOCIAL CARE,ACHIEVE TOGETHER LIMITED,16/01/2023,"4,920.72",6541-Residential,THIRD PARTY PAYMENTS,PRIVATE CONTRACTOR,REVENUE
Walsall Council,http://opendatacommunities.org/id/metropolitan-district-council/walsall ,WC146-529,31.01.2023,ADULT SOCIAL CARE,ACHIEVE TOGETHER LIMITED,12/01/2023,"1,670.04",6550-COVID-19 Local Support Grant Exp,TRANSFER PAYMENTS,COVID TRANSFER PAYMENT,REVENUE
Walsall Council,http://opendatacommunities.org/id/metropolitan-district-council/walsall ,WC146-530,31.01.2023,ADULT SOCIAL CARE,ACHIEVE TOGETHER LIMITED,12/01/2023,"1,186.62",6550-ASC Rapid Testing Fund Round 5,TRANSFER PAYMENTS,COVID TRANSFER PAYMENT,REVENUE
Walsall Council,http://opendatacommunities.org/id/metropolitan-district-council/walsall ,WC146-531,31.01.2023,ADULT SOCIAL CARE,ACHIEVE TOGETHER LIMITED,12/01/2023,"2,849.52",6540-Professional Services-Priv Contractor & Other Agencies,THIRD PARTY PAYMENTS,PRIVATE CONTRACTOR,REVENUE
Walsall Council,http://opendatacommunities.org/id/metropolitan-district-council/walsall ,WC146-532,31.01.2023,CHILDRENS,ACORN CARE & EDUCATION LTD (SALES),12/01/2023,"1,958.37",1220-Top Up Funding -Grants to Schools,SUPPLIES & SERVICES,GRANTS (EXP) & SUBSCRIPTIONS,REVENUE
Walsall Council,http://opendatacommunities.org/id/metropolitan-district-council/walsall ,WC146-533,31.01.2023,CHILDRENS,ACORN CARE & EDUCATION LTD (SALES),12/01/2023,"1,958.33",1220-Top Up Funding -Grants to Schools,SUPPLIES & SERVICES,GRANTS (EXP) & SUBSCRIPTIONS,REVENUE
Walsall Council,http://opendatacommunities.org/id/metropolitan-district-council/walsall ,WC146-534,31.01.2023,CHILDRENS,ACORN CARE & EDUCATION LTD (SALES),12/01/2023,"1,958.33",1220-Top Up Funding -Grants to Schools,SUPPLIES & SERVICES,GRANTS (EXP) & SUBSCRIPTIONS,REVENUE
Walsall Council,http://opendatacommunities.org/id/metropolitan-district-council/walsall ,WC146-535,31.01.2023,CHILDRENS,ACORN CARE & EDUCATION LTD (SALES),12/01/2023,"2,884.58",1220-Top Up Funding -Grants to Schools,SUPPLIES & SERVICES,GRANTS (EXP) & SUBSCRIPTIONS,REVENUE
Walsall Council,http://opendatacommunities.org/id/metropolitan-district-council/walsall ,WC146-536,31.01.2023,CHILDRENS,ACORN CARE & EDUCATION LTD (SALES),12/01/2023,"2,884.58",1220-Top Up Funding -Grants to Schools,SUPPLIES & SERVICES,GRANTS (EXP) & SUBSCRIPTIONS,REVENUE
Walsall Council,http://opendatacommunities.org/id/metropolitan-district-council/walsall ,WC146-537,31.01.2023,CHILDRENS,ACORN CARE & EDUCATION LTD (SALES),31/01/2023,"3,654.99",1220-Top Up Funding -Grants to Schools,SUPPLIES & SERVICES,GRANTS (EXP) & SUBSCRIPTIONS,REVENUE
Walsall Council,http://opendatacommunities.org/id/metropolitan-district-council/walsall ,WC146-538,31.01.2023,CHILDRENS,ACORN CARE & EDUCATION LTD (SALES),31/01/2023,"24,366.58",1220-Top Up Funding -Grants to Schools,SUPPLIES & SERVICES,GRANTS (EXP) & SUBSCRIPTIONS,REVENUE
Walsall Council,http://opendatacommunities.org/id/metropolitan-district-council/walsall ,WC146-539,31.01.2023,CHILDRENS,ACORN CARE & EDUCATION LTD (SALES),19/01/2023,"6,389.17",1220-Professional Fees & Services,SUPPLIES & SERVICES,SERVICES,REVENUE
Walsall Council,http://opendatacommunities.org/id/metropolitan-district-council/walsall ,WC146-540,31.01.2023,CHILDRENS,ACORN CARE & EDUCATION LTD (SALES),12/01/2023,"-2,410.93",1220-Professional Fees & Services,SUPPLIES & SERVICES,SERVICES,REVENUE
Walsall Council,http://opendatacommunities.org/id/metropolitan-district-council/walsall ,WC146-541,31.01.2023,CHILDRENS,ACORN CARE & EDUCATION LTD (SALES),12/01/2023,"-1,311.42",1220-Professional Fees & Services,SUPPLIES & SERVICES,SERVICES,REVENUE
Walsall Council,http://opendatacommunities.org/id/metropolitan-district-council/walsall ,WC146-542,31.01.2023,CHILDRENS,ACORN FOSTERING SERVICES LTD,23/01/2023,"3,340.00",6223-Independent Foster Care-Oth Agency Provision,THIRD PARTY PAYMENTS,PRIVATE CONTRACTOR,REVENUE
Walsall Council,http://opendatacommunities.org/id/metropolitan-district-council/walsall ,WC146-543,31.01.2023,CHILDRENS,ACTI FIT (MIDLANDS) LIMITED,24/01/2023,"1,511.88",6211-Professional Fees & Services,SUPPLIES & SERVICES,SERVICES,REVENUE
Walsall Council,http://opendatacommunities.org/id/metropolitan-district-council/walsall ,WC146-544,31.01.2023,CHILDRENS,ACTIVE CARE SOLUTIONS LTD,23/01/2023,"3,445.08",6223-Independent Foster Care-Oth Agency Provision,THIRD PARTY PAYMENTS,PRIVATE CONTRACTOR,REVENUE
Walsall Council,http://opendatacommunities.org/id/metropolitan-district-council/walsall ,WC146-545,31.01.2023,"ECONOMY, ENVIRONMENT & COMMUNITIES",ACTIVITY GYM LTD,17/01/2023,"2,000.00",6413-Fees & Licences,SUPPLIES & SERVICES,SERVICES,REVENUE
Walsall Council,http://opendatacommunities.org/id/metropolitan-district-council/walsall ,WC146-546,31.01.2023,CHILDRENS,ACTIVITY GYM LTD,24/01/2023,350.70,6211-Professional Fees & Services,SUPPLIES & SERVICES,SERVICES,REVENUE
Walsall Council,http://opendatacommunities.org/id/metropolitan-district-council/walsall ,WC146-547,31.01.2023,ADULT SOCIAL CARE,REDACTED,04/01/2023,853.97,6541-Direct Payment,THIRD PARTY PAYMENTS,PRIVATE CONTRACTOR,REVENUE
Walsall Council,http://opendatacommunities.org/id/metropolitan-district-council/walsall ,WC146-548,31.01.2023,CHILDRENS,REDACTED,12/01/2023,337.12,6223-Residents Orders,TRANSFER PAYMENTS,CHILDREN SOCIAL SERVICES CLIENT,REVENUE
Walsall Council,http://opendatacommunities.org/id/metropolitan-district-council/walsall ,WC146-549,31.01.2023,ADULT SOCIAL CARE,ADVANCE HEALTH CARE (UK) LTD,11/01/2023,"1,287.79",6541-Domiciliary Care,THIRD PARTY PAYMENTS,PRIVATE CONTRACTOR,REVENUE
Walsall Council,http://opendatacommunities.org/id/metropolitan-district-council/walsall ,WC146-550,31.01.2023,ADULT SOCIAL CARE,ADVANCE HEALTH CARE (UK) LTD,11/01/2023,"2,316.64",6541-Domiciliary Care,THIRD PARTY PAYMENTS,PRIVATE CONTRACTOR,REVENUE
Walsall Council,http://opendatacommunities.org/id/metropolitan-district-council/walsall ,WC146-551,31.01.2023,ADULT SOCIAL CARE,ADVANCE HEALTH CARE (UK) LTD,11/01/2023,"1,066.56",6541-Domiciliary Care,THIRD PARTY PAYMENTS,PRIVATE CONTRACTOR,REVENUE
Walsall Council,http://opendatacommunities.org/id/metropolitan-district-council/walsall ,WC146-552,31.01.2023,ADULT SOCIAL CARE,ADVANCE HEALTH CARE (UK) LTD,11/01/2023,942.76,6541-Domiciliary Care,THIRD PARTY PAYMENTS,PRIVATE CONTRACTOR,REVENUE
Walsall Council,http://opendatacommunities.org/id/metropolitan-district-council/walsall ,WC146-553,31.01.2023,ADULT SOCIAL CARE,ADVANCE HEALTH CARE (UK) LTD,11/01/2023,"1,050.40",6541-Domiciliary Care,THIRD PARTY PAYMENTS,PRIVATE CONTRACTOR,REVENUE
Walsall Council,http://opendatacommunities.org/id/metropolitan-district-council/walsall ,WC146-554,31.01.2023,ADULT SOCIAL CARE,ADVANCE HEALTH CARE (UK) LTD,11/01/2023,597.92,6541-Domiciliary Care,THIRD PARTY PAYMENTS,PRIVATE CONTRACTOR,REVENUE
Walsall Council,http://opendatacommunities.org/id/metropolitan-district-council/walsall ,WC146-555,31.01.2023,ADULT SOCIAL CARE,ADVANCE HEALTH CARE (UK) LTD,11/01/2023,792.12,6541-Domiciliary Care,THIRD PARTY PAYMENTS,PRIVATE CONTRACTOR,REVENUE
Walsall Council,http://opendatacommunities.org/id/metropolitan-district-council/walsall ,WC146-556,31.01.2023,ADULT SOCIAL CARE,ADVANCE HEALTH CARE (UK) LTD,11/01/2023,754.32,6541-Domiciliary Care,THIRD PARTY PAYMENTS,PRIVATE CONTRACTOR,REVENUE
Walsall Council,http://opendatacommunities.org/id/metropolitan-district-council/walsall ,WC146-557,31.01.2023,ADULT SOCIAL CARE,ADVANCE HEALTH CARE (UK) LTD,11/01/2023,"1,082.72",6541-Domiciliary Care,THIRD PARTY PAYMENTS,PRIVATE CONTRACTOR,REVENUE
Walsall Council,http://opendatacommunities.org/id/metropolitan-district-council/walsall ,WC146-558,31.01.2023,ADULT SOCIAL CARE,ADVANCE HEALTH CARE (UK) LTD,11/01/2023,490.28,6541-Domiciliary Care,THIRD PARTY PAYMENTS,PRIVATE CONTRACTOR,REVENUE
Walsall Council,http://opendatacommunities.org/id/metropolitan-district-council/walsall ,WC146-559,31.01.2023,ADULT SOCIAL CARE,ADVANCE HEALTH CARE (UK) LTD,11/01/2023,"1,548.75",6541-Domiciliary Care,THIRD PARTY PAYMENTS,PRIVATE CONTRACTOR,REVENUE
Walsall Council,http://opendatacommunities.org/id/metropolitan-district-council/walsall ,WC146-560,31.01.2023,ADULT SOCIAL CARE,ADVANCE HEALTH CARE (UK) LTD,11/01/2023,"1,282.40",6541-Domiciliary Care,THIRD PARTY PAYMENTS,PRIVATE CONTRACTOR,REVENUE
Walsall Council,http://opendatacommunities.org/id/metropolitan-district-council/walsall ,WC146-561,31.01.2023,ADULT SOCIAL CARE,ADVANCE HEALTH CARE (UK) LTD,11/01/2023,705.84,6541-Domiciliary Care,THIRD PARTY PAYMENTS,PRIVATE CONTRACTOR,REVENUE
Walsall Council,http://opendatacommunities.org/id/metropolitan-district-council/walsall ,WC146-562,31.01.2023,ADULT SOCIAL CARE,ADVANCE HEALTH CARE (UK) LTD,03/01/2023,864.56,6541-Domiciliary Care,THIRD PARTY PAYMENTS,PRIVATE CONTRACTOR,REVENUE
Walsall Council,http://opendatacommunities.org/id/metropolitan-district-council/walsall ,WC146-563,31.01.2023,ADULT SOCIAL CARE,ADVANCE HEALTH CARE (UK) LTD,03/01/2023,396.06,6541-Domiciliary Care,THIRD PARTY PAYMENTS,PRIVATE CONTRACTOR,REVENUE
Walsall Council,http://opendatacommunities.org/id/metropolitan-district-council/walsall ,WC146-564,31.01.2023,ADULT SOCIAL CARE,ADVANCE HEALTH CARE (UK) LTD,03/01/2023,254.52,6541-Domiciliary Care,THIRD PARTY PAYMENTS,PRIVATE CONTRACTOR,REVENUE
Walsall Council,http://opendatacommunities.org/id/metropolitan-district-council/walsall ,WC146-565,31.01.2023,ADULT SOCIAL CARE,ADVANCE HEALTH CARE (UK) LTD,03/01/2023,395.92,6541-Domiciliary Care,THIRD PARTY PAYMENTS,PRIVATE CONTRACTOR,REVENUE
Walsall Council,http://opendatacommunities.org/id/metropolitan-district-council/walsall ,WC146-566,31.01.2023,ADULT SOCIAL CARE,ADVANCE HEALTH CARE (UK) LTD,03/01/2023,339.36,6541-Domiciliary Care,THIRD PARTY PAYMENTS,PRIVATE CONTRACTOR,REVENUE
Walsall Council,http://opendatacommunities.org/id/metropolitan-district-council/walsall ,WC146-567,31.01.2023,ADULT SOCIAL CARE,ADVANCE HEALTH CARE (UK) LTD,03/01/2023,339.50,6541-Domiciliary Care,THIRD PARTY PAYMENTS,PRIVATE CONTRACTOR,REVENUE
Walsall Council,http://opendatacommunities.org/id/metropolitan-district-council/walsall ,WC146-568,31.01.2023,ADULT SOCIAL CARE,ADVANCE HEALTH CARE (UK) LTD,03/01/2023,509.04,6541-Domiciliary Care,THIRD PARTY PAYMENTS,PRIVATE CONTRACTOR,REVENUE
Walsall Council,http://opendatacommunities.org/id/metropolitan-district-council/walsall ,WC146-569,31.01.2023,ADULT SOCIAL CARE,ADVANCE HEALTH CARE (UK) LTD,03/01/2023,452.48,6541-Domiciliary Care,THIRD PARTY PAYMENTS,PRIVATE CONTRACTOR,REVENUE
Walsall Council,http://opendatacommunities.org/id/metropolitan-district-council/walsall ,WC146-570,31.01.2023,ADULT SOCIAL CARE,ADVANCE HEALTH CARE (UK) LTD,03/01/2023,339.36,6541-Domiciliary Care,THIRD PARTY PAYMENTS,PRIVATE CONTRACTOR,REVENUE
Walsall Council,http://opendatacommunities.org/id/metropolitan-district-council/walsall ,WC146-571,31.01.2023,ADULT SOCIAL CARE,ADVANCE HEALTH CARE (UK) LTD,03/01/2023,509.04,6541-Domiciliary Care,THIRD PARTY PAYMENTS,PRIVATE CONTRACTOR,REVENUE
Walsall Council,http://opendatacommunities.org/id/metropolitan-district-council/walsall ,WC146-572,31.01.2023,ADULT SOCIAL CARE,ADVANCE HEALTH CARE (UK) LTD,03/01/2023,509.04,6541-Domiciliary Care,THIRD PARTY PAYMENTS,PRIVATE CONTRACTOR,REVENUE
Walsall Council,http://opendatacommunities.org/id/metropolitan-district-council/walsall ,WC146-573,31.01.2023,ADULT SOCIAL CARE,ADVANCE HEALTH CARE (UK) LTD,03/01/2023,565.60,6541-Domiciliary Care,THIRD PARTY PAYMENTS,PRIVATE CONTRACTOR,REVENUE
Walsall Council,http://opendatacommunities.org/id/metropolitan-district-council/walsall ,WC146-574,31.01.2023,ADULT SOCIAL CARE,ADVANCE HEALTH CARE (UK) LTD,03/01/2023,589.84,6541-Domiciliary Care,THIRD PARTY PAYMENTS,PRIVATE CONTRACTOR,REVENUE
Walsall Council,http://opendatacommunities.org/id/metropolitan-district-council/walsall ,WC146-575,31.01.2023,ADULT SOCIAL CARE,ADVANCE HEALTH CARE (UK) LTD,03/01/2023,254.52,6541-Domiciliary Care,THIRD PARTY PAYMENTS,PRIVATE CONTRACTOR,REVENUE
Walsall Council,http://opendatacommunities.org/id/metropolitan-district-council/walsall ,WC146-576,31.01.2023,ADULT SOCIAL CARE,ADVANCE HEALTH CARE (UK) LTD,03/01/2023,254.52,6541-Domiciliary Care,THIRD PARTY PAYMENTS,PRIVATE CONTRACTOR,REVENUE
Walsall Council,http://opendatacommunities.org/id/metropolitan-district-council/walsall ,WC146-577,31.01.2023,ADULT SOCIAL CARE,ADVANCE HEALTH CARE (UK) LTD,03/01/2023,509.04,6541-Domiciliary Care,THIRD PARTY PAYMENTS,PRIVATE CONTRACTOR,REVENUE
Walsall Council,http://opendatacommunities.org/id/metropolitan-district-council/walsall ,WC146-578,31.01.2023,ADULT SOCIAL CARE,ADVANCE HEALTH CARE (UK) LTD,03/01/2023,904.96,6541-Domiciliary Care,THIRD PARTY PAYMENTS,PRIVATE CONTRACTOR,REVENUE
Walsall Council,http://opendatacommunities.org/id/metropolitan-district-council/walsall ,WC146-579,31.01.2023,ADULT SOCIAL CARE,ADVANCE HEALTH CARE (UK) LTD,03/01/2023,377.16,6541-Domiciliary Care,THIRD PARTY PAYMENTS,PRIVATE CONTRACTOR,REVENUE
Walsall Council,http://opendatacommunities.org/id/metropolitan-district-council/walsall ,WC146-580,31.01.2023,ADULT SOCIAL CARE,ADVANCE HEALTH CARE (UK) LTD,03/01/2023,339.50,6541-Domiciliary Care,THIRD PARTY PAYMENTS,PRIVATE CONTRACTOR,REVENUE
Walsall Council,http://opendatacommunities.org/id/metropolitan-district-council/walsall ,WC146-581,31.01.2023,ADULT SOCIAL CARE,ADVANCE HEALTH CARE (UK) LTD,03/01/2023,509.04,6541-Domiciliary Care,THIRD PARTY PAYMENTS,PRIVATE CONTRACTOR,REVENUE
Walsall Council,http://opendatacommunities.org/id/metropolitan-district-council/walsall ,WC146-582,31.01.2023,ADULT SOCIAL CARE,ADVANCE HEALTH CARE (UK) LTD,03/01/2023,452.48,6541-Domiciliary Care,THIRD PARTY PAYMENTS,PRIVATE CONTRACTOR,REVENUE
Walsall Council,http://opendatacommunities.org/id/metropolitan-district-council/walsall ,WC146-583,31.01.2023,ADULT SOCIAL CARE,ADVANCE HEALTH CARE (UK) LTD,03/01/2023,"2,520.96",6541-Domiciliary Care,THIRD PARTY PAYMENTS,PRIVATE CONTRACTOR,REVENUE
Walsall Council,http://opendatacommunities.org/id/metropolitan-district-council/walsall ,WC146-584,31.01.2023,ADULT SOCIAL CARE,ADVANCE HEALTH CARE (UK) LTD,03/01/2023,-424.20,6541-Domiciliary Care,THIRD PARTY PAYMENTS,PRIVATE CONTRACTOR,REVENUE
Walsall Council,http://opendatacommunities.org/id/metropolitan-district-council/walsall ,WC146-585,31.01.2023,ADULT SOCIAL CARE,ADVANCE HEALTH CARE (UK) LTD,03/01/2023,509.04,6541-Domiciliary Care,THIRD PARTY PAYMENTS,PRIVATE CONTRACTOR,REVENUE
Walsall Council,http://opendatacommunities.org/id/metropolitan-district-council/walsall ,WC146-586,31.01.2023,ADULT SOCIAL CARE,ADVANCE HEALTH CARE (UK) LTD,03/01/2023,509.04,6541-Domiciliary Care,THIRD PARTY PAYMENTS,PRIVATE CONTRACTOR,REVENUE
Walsall Council,http://opendatacommunities.org/id/metropolitan-district-council/walsall ,WC146-587,31.01.2023,ADULT SOCIAL CARE,ADVANCE HEALTH CARE (UK) LTD,03/01/2023,-290.88,6541-Domiciliary Care,THIRD PARTY PAYMENTS,PRIVATE CONTRACTOR,REVENUE
Walsall Council,http://opendatacommunities.org/id/metropolitan-district-council/walsall ,WC146-588,31.01.2023,ADULT SOCIAL CARE,ADVANCE HEALTH CARE (UK) LTD,03/01/2023,565.60,6541-Domiciliary Care,THIRD PARTY PAYMENTS,PRIVATE CONTRACTOR,REVENUE
Walsall Council,http://opendatacommunities.org/id/metropolitan-district-council/walsall ,WC146-589,31.01.2023,ADULT SOCIAL CARE,ADVANCE HEALTH CARE (UK) LTD,03/01/2023,500.96,6541-Domiciliary Care,THIRD PARTY PAYMENTS,PRIVATE CONTRACTOR,REVENUE
Walsall Council,http://opendatacommunities.org/id/metropolitan-district-council/walsall ,WC146-590,31.01.2023,ADULT SOCIAL CARE,ADVANCE HEALTH CARE (UK) LTD,03/01/2023,509.04,6541-Domiciliary Care,THIRD PARTY PAYMENTS,PRIVATE CONTRACTOR,REVENUE
Walsall Council,http://opendatacommunities.org/id/metropolitan-district-council/walsall ,WC146-591,31.01.2023,ADULT SOCIAL CARE,ADVANCE HEALTH CARE (UK) LTD,03/01/2023,565.60,6541-Domiciliary Care,THIRD PARTY PAYMENTS,PRIVATE CONTRACTOR,REVENUE
Walsall Council,http://opendatacommunities.org/id/metropolitan-district-council/walsall ,WC146-592,31.01.2023,ADULT SOCIAL CARE,ADVANCE HEALTH CARE (UK) LTD,03/01/2023,509.04,6541-Domiciliary Care,THIRD PARTY PAYMENTS,PRIVATE CONTRACTOR,REVENUE
Walsall Council,http://opendatacommunities.org/id/metropolitan-district-council/walsall ,WC146-593,31.01.2023,ADULT SOCIAL CARE,ADVANCE HEALTH CARE (UK) LTD,03/01/2023,-282.80,6541-Domiciliary Care,THIRD PARTY PAYMENTS,PRIVATE CONTRACTOR,REVENUE
Walsall Council,http://opendatacommunities.org/id/metropolitan-district-council/walsall ,WC146-594,31.01.2023,ADULT SOCIAL CARE,ADVANCE HEALTH CARE (UK) LTD,03/01/2023,327.24,6541-Domiciliary Care,THIRD PARTY PAYMENTS,PRIVATE CONTRACTOR,REVENUE
Walsall Council,http://opendatacommunities.org/id/metropolitan-district-council/walsall ,WC146-595,31.01.2023,ADULT SOCIAL CARE,ADVANCE HEALTH CARE (UK) LTD,03/01/2023,"-2,262.40",6541-Domiciliary Care,THIRD PARTY PAYMENTS,PRIVATE CONTRACTOR,REVENUE
Walsall Council,http://opendatacommunities.org/id/metropolitan-district-council/walsall ,WC146-596,31.01.2023,ADULT SOCIAL CARE,ADVANCE HEALTH CARE (UK) LTD,03/01/2023,"-2,011.92",6541-Domiciliary Care,THIRD PARTY PAYMENTS,PRIVATE CONTRACTOR,REVENUE
Walsall Council,http://opendatacommunities.org/id/metropolitan-district-council/walsall ,WC146-597,31.01.2023,ADULT SOCIAL CARE,ADVANCE HEALTH CARE (UK) LTD,03/01/2023,"-1,018.08",6541-Domiciliary Care,THIRD PARTY PAYMENTS,PRIVATE CONTRACTOR,REVENUE
Walsall Council,http://opendatacommunities.org/id/metropolitan-district-council/walsall ,WC146-598,31.01.2023,ADULT SOCIAL CARE,ADVANCE HEALTH CARE (UK) LTD,03/01/2023,"1,272.60",6541-Domiciliary Care,THIRD PARTY PAYMENTS,PRIVATE CONTRACTOR,REVENUE
Walsall Council,http://opendatacommunities.org/id/metropolitan-district-council/walsall ,WC146-599,31.01.2023,ADULT SOCIAL CARE,ADVANCE HEALTH CARE (UK) LTD,03/01/2023,565.60,6541-Domiciliary Care,THIRD PARTY PAYMENTS,PRIVATE CONTRACTOR,REVENUE
Walsall Council,http://opendatacommunities.org/id/metropolitan-district-council/walsall ,WC146-600,31.01.2023,ADULT SOCIAL CARE,ADVANCE HEALTH CARE (UK) LTD,03/01/2023,460.56,6541-Domiciliary Care,THIRD PARTY PAYMENTS,PRIVATE CONTRACTOR,REVENUE
Walsall Council,http://opendatacommunities.org/id/metropolitan-district-council/walsall ,WC146-601,31.01.2023,ADULT SOCIAL CARE,ADVANCE HEALTH CARE (UK) LTD,03/01/2023,"2,828.00",6541-Domiciliary Care,THIRD PARTY PAYMENTS,PRIVATE CONTRACTOR,REVENUE
Walsall Council,http://opendatacommunities.org/id/metropolitan-district-council/walsall ,WC146-602,31.01.2023,ADULT SOCIAL CARE,ADVANCE HEALTH CARE (UK) LTD,03/01/2023,589.84,6541-Domiciliary Care,THIRD PARTY PAYMENTS,PRIVATE CONTRACTOR,REVENUE
Walsall Council,http://opendatacommunities.org/id/metropolitan-district-council/walsall ,WC146-603,31.01.2023,ADULT SOCIAL CARE,ADVANCE HEALTH CARE (UK) LTD,03/01/2023,254.52,6541-Domiciliary Care,THIRD PARTY PAYMENTS,PRIVATE CONTRACTOR,REVENUE
Walsall Council,http://opendatacommunities.org/id/metropolitan-district-council/walsall ,WC146-604,31.01.2023,ADULT SOCIAL CARE,ADVANCE HEALTH CARE (UK) LTD,03/01/2023,254.52,6541-Domiciliary Care,THIRD PARTY PAYMENTS,PRIVATE CONTRACTOR,REVENUE
Walsall Council,http://opendatacommunities.org/id/metropolitan-district-council/walsall ,WC146-605,31.01.2023,ADULT SOCIAL CARE,ADVANCE HEALTH CARE (UK) LTD,03/01/2023,509.04,6541-Domiciliary Care,THIRD PARTY PAYMENTS,PRIVATE CONTRACTOR,REVENUE
Walsall Council,http://opendatacommunities.org/id/metropolitan-district-council/walsall ,WC146-606,31.01.2023,ADULT SOCIAL CARE,ADVANCE HEALTH CARE (UK) LTD,03/01/2023,377.16,6541-Domiciliary Care,THIRD PARTY PAYMENTS,PRIVATE CONTRACTOR,REVENUE
Walsall Council,http://opendatacommunities.org/id/metropolitan-district-council/walsall ,WC146-607,31.01.2023,ADULT SOCIAL CARE,ADVANCE HEALTH CARE (UK) LTD,03/01/2023,339.50,6541-Domiciliary Care,THIRD PARTY PAYMENTS,PRIVATE CONTRACTOR,REVENUE
Walsall Council,http://opendatacommunities.org/id/metropolitan-district-council/walsall ,WC146-608,31.01.2023,ADULT SOCIAL CARE,ADVANCE HEALTH CARE (UK) LTD,03/01/2023,509.04,6541-Domiciliary Care,THIRD PARTY PAYMENTS,PRIVATE CONTRACTOR,REVENUE
Walsall Council,http://opendatacommunities.org/id/metropolitan-district-council/walsall ,WC146-609,31.01.2023,ADULT SOCIAL CARE,ADVANCE HEALTH CARE (UK) LTD,03/01/2023,509.04,6541-Domiciliary Care,THIRD PARTY PAYMENTS,PRIVATE CONTRACTOR,REVENUE
Walsall Council,http://opendatacommunities.org/id/metropolitan-district-council/walsall ,WC146-610,31.01.2023,ADULT SOCIAL CARE,ADVANCE HEALTH CARE (UK) LTD,03/01/2023,509.04,6541-Domiciliary Care,THIRD PARTY PAYMENTS,PRIVATE CONTRACTOR,REVENUE
Walsall Council,http://opendatacommunities.org/id/metropolitan-district-council/walsall ,WC146-611,31.01.2023,ADULT SOCIAL CARE,ADVANCE HEALTH CARE (UK) LTD,03/01/2023,452.48,6541-Domiciliary Care,THIRD PARTY PAYMENTS,PRIVATE CONTRACTOR,REVENUE
Walsall Council,http://opendatacommunities.org/id/metropolitan-district-council/walsall ,WC146-612,31.01.2023,ADULT SOCIAL CARE,ADVANCE HEALTH CARE (UK) LTD,03/01/2023,565.60,6541-Domiciliary Care,THIRD PARTY PAYMENTS,PRIVATE CONTRACTOR,REVENUE
Walsall Council,http://opendatacommunities.org/id/metropolitan-district-council/walsall ,WC146-613,31.01.2023,ADULT SOCIAL CARE,ADVANCE HEALTH CARE (UK) LTD,03/01/2023,500.96,6541-Domiciliary Care,THIRD PARTY PAYMENTS,PRIVATE CONTRACTOR,REVENUE
Walsall Council,http://opendatacommunities.org/id/metropolitan-district-council/walsall ,WC146-614,31.01.2023,ADULT SOCIAL CARE,ADVANCE HEALTH CARE (UK) LTD,03/01/2023,509.04,6541-Domiciliary Care,THIRD PARTY PAYMENTS,PRIVATE CONTRACTOR,REVENUE
Walsall Council,http://opendatacommunities.org/id/metropolitan-district-council/walsall ,WC146-615,31.01.2023,ADULT SOCIAL CARE,ADVANCE HEALTH CARE (UK) LTD,03/01/2023,565.60,6541-Domiciliary Care,THIRD PARTY PAYMENTS,PRIVATE CONTRACTOR,REVENUE
Walsall Council,http://opendatacommunities.org/id/metropolitan-district-council/walsall ,WC146-616,31.01.2023,ADULT SOCIAL CARE,ADVANCE HEALTH CARE (UK) LTD,03/01/2023,864.56,6541-Domiciliary Care,THIRD PARTY PAYMENTS,PRIVATE CONTRACTOR,REVENUE
Walsall Council,http://opendatacommunities.org/id/metropolitan-district-council/walsall ,WC146-617,31.01.2023,ADULT SOCIAL CARE,ADVANCE HEALTH CARE (UK) LTD,03/01/2023,396.06,6541-Domiciliary Care,THIRD PARTY PAYMENTS,PRIVATE CONTRACTOR,REVENUE
Walsall Council,http://opendatacommunities.org/id/metropolitan-district-council/walsall ,WC146-618,31.01.2023,ADULT SOCIAL CARE,ADVANCE HEALTH CARE (UK) LTD,03/01/2023,254.52,6541-Domiciliary Care,THIRD PARTY PAYMENTS,PRIVATE CONTRACTOR,REVENUE
Walsall Council,http://opendatacommunities.org/id/metropolitan-district-council/walsall ,WC146-619,31.01.2023,ADULT SOCIAL CARE,ADVANCE HEALTH CARE (UK) LTD,03/01/2023,339.50,6541-Domiciliary Care,THIRD PARTY PAYMENTS,PRIVATE CONTRACTOR,REVENUE
Walsall Council,http://opendatacommunities.org/id/metropolitan-district-council/walsall ,WC146-620,31.01.2023,ADULT SOCIAL CARE,ADVANCE HEALTH CARE (UK) LTD,03/01/2023,509.04,6541-Domiciliary Care,THIRD PARTY PAYMENTS,PRIVATE CONTRACTOR,REVENUE
Walsall Council,http://opendatacommunities.org/id/metropolitan-district-council/walsall ,WC146-621,31.01.2023,ADULT SOCIAL CARE,ADVANCE HEALTH CARE (UK) LTD,03/01/2023,254.52,6541-Domiciliary Care,THIRD PARTY PAYMENTS,PRIVATE CONTRACTOR,REVENUE
Walsall Council,http://opendatacommunities.org/id/metropolitan-district-council/walsall ,WC146-622,31.01.2023,ADULT SOCIAL CARE,ADVANCE HEALTH CARE (UK) LTD,03/01/2023,565.60,6541-Domiciliary Care,THIRD PARTY PAYMENTS,PRIVATE CONTRACTOR,REVENUE
Walsall Council,http://opendatacommunities.org/id/metropolitan-district-council/walsall ,WC146-623,31.01.2023,ADULT SOCIAL CARE,ADVANCE HEALTH CARE (UK) LTD,03/01/2023,395.92,6541-Domiciliary Care,THIRD PARTY PAYMENTS,PRIVATE CONTRACTOR,REVENUE
Walsall Council,http://opendatacommunities.org/id/metropolitan-district-council/walsall ,WC146-624,31.01.2023,ADULT SOCIAL CARE,ADVANCE HEALTH CARE (UK) LTD,03/01/2023,509.04,6541-Domiciliary Care,THIRD PARTY PAYMENTS,PRIVATE CONTRACTOR,REVENUE
Walsall Council,http://opendatacommunities.org/id/metropolitan-district-council/walsall ,WC146-625,31.01.2023,ADULT SOCIAL CARE,ADVANCE HEALTH CARE (UK) LTD,03/01/2023,509.04,6541-Domiciliary Care,THIRD PARTY PAYMENTS,PRIVATE CONTRACTOR,REVENUE
Walsall Council,http://opendatacommunities.org/id/metropolitan-district-council/walsall ,WC146-626,31.01.2023,ADULT SOCIAL CARE,ADVANCE HEALTH CARE (UK) LTD,03/01/2023,565.60,6541-Domiciliary Care,THIRD PARTY PAYMENTS,PRIVATE CONTRACTOR,REVENUE
Walsall Council,http://opendatacommunities.org/id/metropolitan-district-council/walsall ,WC146-627,31.01.2023,ADULT SOCIAL CARE,ADVANCE HEALTH CARE (UK) LTD,03/01/2023,339.36,6541-Domiciliary Care,THIRD PARTY PAYMENTS,PRIVATE CONTRACTOR,REVENUE
Walsall Council,http://opendatacommunities.org/id/metropolitan-district-council/walsall ,WC146-628,31.01.2023,ADULT SOCIAL CARE,ADVANCE HEALTH CARE (UK) LTD,03/01/2023,452.48,6541-Domiciliary Care,THIRD PARTY PAYMENTS,PRIVATE CONTRACTOR,REVENUE
Walsall Council,http://opendatacommunities.org/id/metropolitan-district-council/walsall ,WC146-629,31.01.2023,ADULT SOCIAL CARE,ADVANCE HEALTH CARE (UK) LTD,03/01/2023,339.36,6541-Domiciliary Care,THIRD PARTY PAYMENTS,PRIVATE CONTRACTOR,REVENUE
Walsall Council,http://opendatacommunities.org/id/metropolitan-district-council/walsall ,WC146-630,31.01.2023,ADULT SOCIAL CARE,ADVANCE HEALTH CARE (UK) LTD,03/01/2023,565.60,6541-Domiciliary Care,THIRD PARTY PAYMENTS,PRIVATE CONTRACTOR,REVENUE
Walsall Council,http://opendatacommunities.org/id/metropolitan-district-council/walsall ,WC146-631,31.01.2023,ADULT SOCIAL CARE,ADVANCE HEALTH CARE (UK) LTD,03/01/2023,"1,389.76",6541-Domiciliary Care,THIRD PARTY PAYMENTS,PRIVATE CONTRACTOR,REVENUE
Walsall Council,http://opendatacommunities.org/id/metropolitan-district-council/walsall ,WC146-632,31.01.2023,ADULT SOCIAL CARE,ADVANCE HEALTH CARE (UK) LTD,03/01/2023,509.04,6541-Domiciliary Care,THIRD PARTY PAYMENTS,PRIVATE CONTRACTOR,REVENUE
Walsall Council,http://opendatacommunities.org/id/metropolitan-district-council/walsall ,WC146-633,31.01.2023,ADULT SOCIAL CARE,ADVANCE HEALTH CARE (UK) LTD,11/01/2023,678.72,6554-Professional Services-Priv Contractor & Other Agencies,THIRD PARTY PAYMENTS,PRIVATE CONTRACTOR,REVENUE
Walsall Council,http://opendatacommunities.org/id/metropolitan-district-council/walsall ,WC146-634,31.01.2023,ADULT SOCIAL CARE,ADVANCE HEALTH CARE (UK) LTD,11/01/2023,"2,036.16",6554-Professional Services-Priv Contractor & Other Agencies,THIRD PARTY PAYMENTS,PRIVATE CONTRACTOR,REVENUE
Walsall Council,http://opendatacommunities.org/id/metropolitan-district-council/walsall ,WC146-635,31.01.2023,ADULT SOCIAL CARE,ADVANCE HEALTH CARE (UK) LTD,11/01/2023,"1,131.20",6554-Professional Services-Priv Contractor & Other Agencies,THIRD PARTY PAYMENTS,PRIVATE CONTRACTOR,REVENUE
Walsall Council,http://opendatacommunities.org/id/metropolitan-district-council/walsall ,WC146-636,31.01.2023,ADULT SOCIAL CARE,ADVANCE HEALTH CARE (UK) LTD,11/01/2023,"1,080.15",6554-Professional Services-Priv Contractor & Other Agencies,THIRD PARTY PAYMENTS,PRIVATE CONTRACTOR,REVENUE
Walsall Council,http://opendatacommunities.org/id/metropolitan-district-council/walsall ,WC146-637,31.01.2023,ADULT SOCIAL CARE,ADVANCE HEALTH CARE (UK) LTD,11/01/2023,"1,772.68",6554-Professional Services-Priv Contractor & Other Agencies,THIRD PARTY PAYMENTS,PRIVATE CONTRACTOR,REVENUE
Walsall Council,http://opendatacommunities.org/id/metropolitan-district-council/walsall ,WC146-638,31.01.2023,ADULT SOCIAL CARE,ADVANCE HEALTH CARE (UK) LTD,11/01/2023,614.08,6554-Professional Services-Priv Contractor & Other Agencies,THIRD PARTY PAYMENTS,PRIVATE CONTRACTOR,REVENUE
Walsall Council,http://opendatacommunities.org/id/metropolitan-district-council/walsall ,WC146-639,31.01.2023,ADULT SOCIAL CARE,ADVANCE HEALTH CARE (UK) LTD,11/01/2023,961.52,6554-Professional Services-Priv Contractor & Other Agencies,THIRD PARTY PAYMENTS,PRIVATE CONTRACTOR,REVENUE
Walsall Council,http://opendatacommunities.org/id/metropolitan-district-council/walsall ,WC146-640,31.01.2023,ADULT SOCIAL CARE,ADVANCE HEALTH CARE (UK) LTD,11/01/2023,363.60,6554-Professional Services-Priv Contractor & Other Agencies,THIRD PARTY PAYMENTS,PRIVATE CONTRACTOR,REVENUE
Walsall Council,http://opendatacommunities.org/id/metropolitan-district-council/walsall ,WC146-641,31.01.2023,ADULT SOCIAL CARE,ADVANCE HEALTH CARE (UK) LTD,11/01/2023,"1,018.08",6554-Professional Services-Priv Contractor & Other Agencies,THIRD PARTY PAYMENTS,PRIVATE CONTRACTOR,REVENUE
Walsall Council,http://opendatacommunities.org/id/metropolitan-district-council/walsall ,WC146-642,31.01.2023,ADULT SOCIAL CARE,ADVANCE HEALTH CARE (UK) LTD,11/01/2023,"2,036.16",6554-Professional Services-Priv Contractor & Other Agencies,THIRD PARTY PAYMENTS,PRIVATE CONTRACTOR,REVENUE
Walsall Council,http://opendatacommunities.org/id/metropolitan-district-council/walsall ,WC146-643,31.01.2023,ADULT SOCIAL CARE,ADVANCE HEALTH CARE (UK) LTD,11/01/2023,"2,036.16",6554-Professional Services-Priv Contractor & Other Agencies,THIRD PARTY PAYMENTS,PRIVATE CONTRACTOR,REVENUE
Walsall Council,http://opendatacommunities.org/id/metropolitan-district-council/walsall ,WC146-644,31.01.2023,ADULT SOCIAL CARE,ADVANCE HEALTH CARE (UK) LTD,11/01/2023,"1,923.04",6554-Professional Services-Priv Contractor & Other Agencies,THIRD PARTY PAYMENTS,PRIVATE CONTRACTOR,REVENUE
Walsall Council,http://opendatacommunities.org/id/metropolitan-district-council/walsall ,WC146-645,31.01.2023,ADULT SOCIAL CARE,ADVANCE HEALTH CARE (UK) LTD,16/01/2023,864.56,6541-Domiciliary Care,THIRD PARTY PAYMENTS,PRIVATE CONTRACTOR,REVENUE
Walsall Council,http://opendatacommunities.org/id/metropolitan-district-council/walsall ,WC146-646,31.01.2023,ADULT SOCIAL CARE,ADVANCE HEALTH CARE (UK) LTD,16/01/2023,396.06,6541-Domiciliary Care,THIRD PARTY PAYMENTS,PRIVATE CONTRACTOR,REVENUE
Walsall Council,http://opendatacommunities.org/id/metropolitan-district-council/walsall ,WC146-647,31.01.2023,ADULT SOCIAL CARE,ADVANCE HEALTH CARE (UK) LTD,16/01/2023,254.52,6541-Domiciliary Care,THIRD PARTY PAYMENTS,PRIVATE CONTRACTOR,REVENUE
Walsall Council,http://opendatacommunities.org/id/metropolitan-district-council/walsall ,WC146-648,31.01.2023,ADULT SOCIAL CARE,ADVANCE HEALTH CARE (UK) LTD,16/01/2023,589.84,6541-Domiciliary Care,THIRD PARTY PAYMENTS,PRIVATE CONTRACTOR,REVENUE
Walsall Council,http://opendatacommunities.org/id/metropolitan-district-council/walsall ,WC146-649,31.01.2023,ADULT SOCIAL CARE,ADVANCE HEALTH CARE (UK) LTD,16/01/2023,254.52,6541-Domiciliary Care,THIRD PARTY PAYMENTS,PRIVATE CONTRACTOR,REVENUE
Walsall Council,http://opendatacommunities.org/id/metropolitan-district-council/walsall ,WC146-650,31.01.2023,ADULT SOCIAL CARE,ADVANCE HEALTH CARE (UK) LTD,16/01/2023,254.52,6541-Domiciliary Care,THIRD PARTY PAYMENTS,PRIVATE CONTRACTOR,REVENUE
Walsall Council,http://opendatacommunities.org/id/metropolitan-district-council/walsall ,WC146-651,31.01.2023,ADULT SOCIAL CARE,ADVANCE HEALTH CARE (UK) LTD,16/01/2023,509.04,6541-Domiciliary Care,THIRD PARTY PAYMENTS,PRIVATE CONTRACTOR,REVENUE
Walsall Council,http://opendatacommunities.org/id/metropolitan-district-council/walsall ,WC146-652,31.01.2023,ADULT SOCIAL CARE,ADVANCE HEALTH CARE (UK) LTD,16/01/2023,339.50,6541-Domiciliary Care,THIRD PARTY PAYMENTS,PRIVATE CONTRACTOR,REVENUE
Walsall Council,http://opendatacommunities.org/id/metropolitan-district-council/walsall ,WC146-653,31.01.2023,ADULT SOCIAL CARE,ADVANCE HEALTH CARE (UK) LTD,16/01/2023,377.16,6541-Domiciliary Care,THIRD PARTY PAYMENTS,PRIVATE CONTRACTOR,REVENUE
Walsall Council,http://opendatacommunities.org/id/metropolitan-district-council/walsall ,WC146-654,31.01.2023,ADULT SOCIAL CARE,ADVANCE HEALTH CARE (UK) LTD,16/01/2023,339.50,6541-Domiciliary Care,THIRD PARTY PAYMENTS,PRIVATE CONTRACTOR,REVENUE
Walsall Council,http://opendatacommunities.org/id/metropolitan-district-council/walsall ,WC146-655,31.01.2023,ADULT SOCIAL CARE,ADVANCE HEALTH CARE (UK) LTD,16/01/2023,395.92,6541-Domiciliary Care,THIRD PARTY PAYMENTS,PRIVATE CONTRACTOR,REVENUE
Walsall Council,http://opendatacommunities.org/id/metropolitan-district-council/walsall ,WC146-656,31.01.2023,ADULT SOCIAL CARE,ADVANCE HEALTH CARE (UK) LTD,16/01/2023,339.36,6541-Domiciliary Care,THIRD PARTY PAYMENTS,PRIVATE CONTRACTOR,REVENUE
Walsall Council,http://opendatacommunities.org/id/metropolitan-district-council/walsall ,WC146-657,31.01.2023,ADULT SOCIAL CARE,ADVANCE HEALTH CARE (UK) LTD,16/01/2023,452.48,6541-Domiciliary Care,THIRD PARTY PAYMENTS,PRIVATE CONTRACTOR,REVENUE
Walsall Council,http://opendatacommunities.org/id/metropolitan-district-council/walsall ,WC146-658,31.01.2023,ADULT SOCIAL CARE,ADVANCE HEALTH CARE (UK) LTD,16/01/2023,339.36,6541-Domiciliary Care,THIRD PARTY PAYMENTS,PRIVATE CONTRACTOR,REVENUE
Walsall Council,http://opendatacommunities.org/id/metropolitan-district-council/walsall ,WC146-659,31.01.2023,ADULT SOCIAL CARE,ADVANCE HEALTH CARE (UK) LTD,16/01/2023,509.04,6541-Domiciliary Care,THIRD PARTY PAYMENTS,PRIVATE CONTRACTOR,REVENUE
Walsall Council,http://opendatacommunities.org/id/metropolitan-district-council/walsall ,WC146-660,31.01.2023,ADULT SOCIAL CARE,ADVANCE HEALTH CARE (UK) LTD,16/01/2023,452.48,6541-Domiciliary Care,THIRD PARTY PAYMENTS,PRIVATE CONTRACTOR,REVENUE
Walsall Council,http://opendatacommunities.org/id/metropolitan-district-council/walsall ,WC146-661,31.01.2023,ADULT SOCIAL CARE,ADVANCE HEALTH CARE (UK) LTD,16/01/2023,509.04,6541-Domiciliary Care,THIRD PARTY PAYMENTS,PRIVATE CONTRACTOR,REVENUE
Walsall Council,http://opendatacommunities.org/id/metropolitan-district-council/walsall ,WC146-662,31.01.2023,ADULT SOCIAL CARE,ADVANCE HEALTH CARE (UK) LTD,16/01/2023,509.04,6541-Domiciliary Care,THIRD PARTY PAYMENTS,PRIVATE CONTRACTOR,REVENUE
Walsall Council,http://opendatacommunities.org/id/metropolitan-district-council/walsall ,WC146-663,31.01.2023,ADULT SOCIAL CARE,ADVANCE HEALTH CARE (UK) LTD,16/01/2023,509.04,6541-Domiciliary Care,THIRD PARTY PAYMENTS,PRIVATE CONTRACTOR,REVENUE
Walsall Council,http://opendatacommunities.org/id/metropolitan-district-council/walsall ,WC146-664,31.01.2023,ADULT SOCIAL CARE,ADVANCE HEALTH CARE (UK) LTD,16/01/2023,509.04,6541-Domiciliary Care,THIRD PARTY PAYMENTS,PRIVATE CONTRACTOR,REVENUE
Walsall Council,http://opendatacommunities.org/id/metropolitan-district-council/walsall ,WC146-665,31.01.2023,ADULT SOCIAL CARE,ADVANCE HEALTH CARE (UK) LTD,16/01/2023,565.60,6541-Domiciliary Care,THIRD PARTY PAYMENTS,PRIVATE CONTRACTOR,REVENUE
Walsall Council,http://opendatacommunities.org/id/metropolitan-district-council/walsall ,WC146-666,31.01.2023,ADULT SOCIAL CARE,ADVANCE HEALTH CARE (UK) LTD,16/01/2023,646.40,6541-Domiciliary Care,THIRD PARTY PAYMENTS,PRIVATE CONTRACTOR,REVENUE
Walsall Council,http://opendatacommunities.org/id/metropolitan-district-council/walsall ,WC146-667,31.01.2023,ADULT SOCIAL CARE,ADVANCE HEALTH CARE (UK) LTD,16/01/2023,509.04,6541-Domiciliary Care,THIRD PARTY PAYMENTS,PRIVATE CONTRACTOR,REVENUE
Walsall Council,http://opendatacommunities.org/id/metropolitan-district-council/walsall ,WC146-668,31.01.2023,ADULT SOCIAL CARE,ADVANCE HEALTH CARE (UK) LTD,16/01/2023,"1,050.40",6541-Domiciliary Care,THIRD PARTY PAYMENTS,PRIVATE CONTRACTOR,REVENUE
Walsall Council,http://opendatacommunities.org/id/metropolitan-district-council/walsall ,WC146-669,31.01.2023,ADULT SOCIAL CARE,ADVANCE HEALTH CARE (UK) LTD,16/01/2023,323.20,6541-Domiciliary Care,THIRD PARTY PAYMENTS,PRIVATE CONTRACTOR,REVENUE
Walsall Council,http://opendatacommunities.org/id/metropolitan-district-council/walsall ,WC146-670,31.01.2023,ADULT SOCIAL CARE,ADVANCE HEALTH CARE (UK) LTD,16/01/2023,"1,616.00",6541-Domiciliary Care,THIRD PARTY PAYMENTS,PRIVATE CONTRACTOR,REVENUE
Walsall Council,http://opendatacommunities.org/id/metropolitan-district-council/walsall ,WC146-671,31.01.2023,ADULT SOCIAL CARE,ADVANCE HEALTH CARE (UK) LTD,16/01/2023,565.60,6541-Domiciliary Care,THIRD PARTY PAYMENTS,PRIVATE CONTRACTOR,REVENUE
Walsall Council,http://opendatacommunities.org/id/metropolitan-district-council/walsall ,WC146-672,31.01.2023,ADULT SOCIAL CARE,ADVANCE HEALTH CARE (UK) LTD,16/01/2023,500.96,6541-Domiciliary Care,THIRD PARTY PAYMENTS,PRIVATE CONTRACTOR,REVENUE
Walsall Council,http://opendatacommunities.org/id/metropolitan-district-council/walsall ,WC146-673,31.01.2023,ADULT SOCIAL CARE,ADVANCE HEALTH CARE (UK) LTD,16/01/2023,509.04,6541-Domiciliary Care,THIRD PARTY PAYMENTS,PRIVATE CONTRACTOR,REVENUE
Walsall Council,http://opendatacommunities.org/id/metropolitan-district-council/walsall ,WC146-674,31.01.2023,ADULT SOCIAL CARE,ADVANCE HEALTH CARE (UK) LTD,16/01/2023,-355.52,6541-Domiciliary Care,THIRD PARTY PAYMENTS,PRIVATE CONTRACTOR,REVENUE
Walsall Council,http://opendatacommunities.org/id/metropolitan-district-council/walsall ,WC146-675,31.01.2023,ADULT SOCIAL CARE,ADVANCE HEALTH CARE (UK) LTD,16/01/2023,581.76,6541-Domiciliary Care,THIRD PARTY PAYMENTS,PRIVATE CONTRACTOR,REVENUE
Walsall Council,http://opendatacommunities.org/id/metropolitan-district-council/walsall ,WC146-676,31.01.2023,ADULT SOCIAL CARE,ADVANCE HEALTH CARE (UK) LTD,16/01/2023,565.60,6541-Domiciliary Care,THIRD PARTY PAYMENTS,PRIVATE CONTRACTOR,REVENUE
Walsall Council,http://opendatacommunities.org/id/metropolitan-district-council/walsall ,WC146-677,31.01.2023,ADULT SOCIAL CARE,ADVANCE HEALTH CARE (UK) LTD,16/01/2023,509.04,6541-Domiciliary Care,THIRD PARTY PAYMENTS,PRIVATE CONTRACTOR,REVENUE
Walsall Council,http://opendatacommunities.org/id/metropolitan-district-council/walsall ,WC146-678,31.01.2023,ADULT SOCIAL CARE,ADVANCE HEALTH CARE (UK) LTD,16/01/2023,"-1,438.24",6541-Domiciliary Care,THIRD PARTY PAYMENTS,PRIVATE CONTRACTOR,REVENUE
Walsall Council,http://opendatacommunities.org/id/metropolitan-district-council/walsall ,WC146-679,31.01.2023,ADULT SOCIAL CARE,ADVANCE HEALTH CARE (UK) LTD,16/01/2023,254.52,6541-Domiciliary Care,THIRD PARTY PAYMENTS,PRIVATE CONTRACTOR,REVENUE
Walsall Council,http://opendatacommunities.org/id/metropolitan-district-council/walsall ,WC146-680,31.01.2023,ADULT SOCIAL CARE,ADVANCE HEALTH CARE (UK) LTD,16/01/2023,565.60,6541-Domiciliary Care,THIRD PARTY PAYMENTS,PRIVATE CONTRACTOR,REVENUE
Walsall Council,http://opendatacommunities.org/id/metropolitan-district-council/walsall ,WC146-681,31.01.2023,ADULT SOCIAL CARE,ADVANCE HEALTH CARE (UK) LTD,16/01/2023,339.50,6541-Domiciliary Care,THIRD PARTY PAYMENTS,PRIVATE CONTRACTOR,REVENUE
Walsall Council,http://opendatacommunities.org/id/metropolitan-district-council/walsall ,WC146-682,31.01.2023,ADULT SOCIAL CARE,ADVANCE HEALTH CARE (UK) LTD,16/01/2023,509.04,6541-Domiciliary Care,THIRD PARTY PAYMENTS,PRIVATE CONTRACTOR,REVENUE
Walsall Council,http://opendatacommunities.org/id/metropolitan-district-council/walsall ,WC146-683,31.01.2023,ADULT SOCIAL CARE,ADVANCE HEALTH CARE (UK) LTD,16/01/2023,509.04,6541-Domiciliary Care,THIRD PARTY PAYMENTS,PRIVATE CONTRACTOR,REVENUE
Walsall Council,http://opendatacommunities.org/id/metropolitan-district-council/walsall ,WC146-684,31.01.2023,ADULT SOCIAL CARE,ADVANCE HEALTH CARE (UK) LTD,16/01/2023,565.60,6541-Domiciliary Care,THIRD PARTY PAYMENTS,PRIVATE CONTRACTOR,REVENUE
Walsall Council,http://opendatacommunities.org/id/metropolitan-district-council/walsall ,WC146-685,31.01.2023,ADULT SOCIAL CARE,ADVANCE HEALTH CARE (UK) LTD,16/01/2023,589.84,6541-Domiciliary Care,THIRD PARTY PAYMENTS,PRIVATE CONTRACTOR,REVENUE
Walsall Council,http://opendatacommunities.org/id/metropolitan-district-council/walsall ,WC146-686,31.01.2023,ADULT SOCIAL CARE,ADVANCE HEALTH CARE (UK) LTD,16/01/2023,254.52,6541-Domiciliary Care,THIRD PARTY PAYMENTS,PRIVATE CONTRACTOR,REVENUE
Walsall Council,http://opendatacommunities.org/id/metropolitan-district-council/walsall ,WC146-687,31.01.2023,ADULT SOCIAL CARE,ADVANCE HEALTH CARE (UK) LTD,16/01/2023,254.52,6541-Domiciliary Care,THIRD PARTY PAYMENTS,PRIVATE CONTRACTOR,REVENUE
Walsall Council,http://opendatacommunities.org/id/metropolitan-district-council/walsall ,WC146-688,31.01.2023,ADULT SOCIAL CARE,ADVANCE HEALTH CARE (UK) LTD,16/01/2023,509.04,6541-Domiciliary Care,THIRD PARTY PAYMENTS,PRIVATE CONTRACTOR,REVENUE
Walsall Council,http://opendatacommunities.org/id/metropolitan-district-council/walsall ,WC146-689,31.01.2023,ADULT SOCIAL CARE,ADVANCE HEALTH CARE (UK) LTD,16/01/2023,377.16,6541-Domiciliary Care,THIRD PARTY PAYMENTS,PRIVATE CONTRACTOR,REVENUE
Walsall Council,http://opendatacommunities.org/id/metropolitan-district-council/walsall ,WC146-690,31.01.2023,ADULT SOCIAL CARE,ADVANCE HEALTH CARE (UK) LTD,16/01/2023,339.50,6541-Domiciliary Care,THIRD PARTY PAYMENTS,PRIVATE CONTRACTOR,REVENUE
Walsall Council,http://opendatacommunities.org/id/metropolitan-district-council/walsall ,WC146-691,31.01.2023,ADULT SOCIAL CARE,ADVANCE HEALTH CARE (UK) LTD,16/01/2023,509.04,6541-Domiciliary Care,THIRD PARTY PAYMENTS,PRIVATE CONTRACTOR,REVENUE
Walsall Council,http://opendatacommunities.org/id/metropolitan-district-council/walsall ,WC146-692,31.01.2023,ADULT SOCIAL CARE,ADVANCE HEALTH CARE (UK) LTD,16/01/2023,452.48,6541-Domiciliary Care,THIRD PARTY PAYMENTS,PRIVATE CONTRACTOR,REVENUE
Walsall Council,http://opendatacommunities.org/id/metropolitan-district-council/walsall ,WC146-693,31.01.2023,ADULT SOCIAL CARE,ADVANCE HEALTH CARE (UK) LTD,16/01/2023,509.04,6541-Domiciliary Care,THIRD PARTY PAYMENTS,PRIVATE CONTRACTOR,REVENUE
Walsall Council,http://opendatacommunities.org/id/metropolitan-district-council/walsall ,WC146-694,31.01.2023,ADULT SOCIAL CARE,ADVANCE HEALTH CARE (UK) LTD,16/01/2023,452.48,6541-Domiciliary Care,THIRD PARTY PAYMENTS,PRIVATE CONTRACTOR,REVENUE
Walsall Council,http://opendatacommunities.org/id/metropolitan-district-council/walsall ,WC146-695,31.01.2023,ADULT SOCIAL CARE,ADVANCE HEALTH CARE (UK) LTD,16/01/2023,864.56,6541-Domiciliary Care,THIRD PARTY PAYMENTS,PRIVATE CONTRACTOR,REVENUE
Walsall Council,http://opendatacommunities.org/id/metropolitan-district-council/walsall ,WC146-696,31.01.2023,ADULT SOCIAL CARE,ADVANCE HEALTH CARE (UK) LTD,16/01/2023,396.06,6541-Domiciliary Care,THIRD PARTY PAYMENTS,PRIVATE CONTRACTOR,REVENUE
Walsall Council,http://opendatacommunities.org/id/metropolitan-district-council/walsall ,WC146-697,31.01.2023,ADULT SOCIAL CARE,ADVANCE HEALTH CARE (UK) LTD,16/01/2023,254.52,6541-Domiciliary Care,THIRD PARTY PAYMENTS,PRIVATE CONTRACTOR,REVENUE
Walsall Council,http://opendatacommunities.org/id/metropolitan-district-council/walsall ,WC146-698,31.01.2023,ADULT SOCIAL CARE,ADVANCE HEALTH CARE (UK) LTD,16/01/2023,509.04,6541-Domiciliary Care,THIRD PARTY PAYMENTS,PRIVATE CONTRACTOR,REVENUE
Walsall Council,http://opendatacommunities.org/id/metropolitan-district-council/walsall ,WC146-699,31.01.2023,ADULT SOCIAL CARE,ADVANCE HEALTH CARE (UK) LTD,16/01/2023,395.92,6541-Domiciliary Care,THIRD PARTY PAYMENTS,PRIVATE CONTRACTOR,REVENUE
Walsall Council,http://opendatacommunities.org/id/metropolitan-district-council/walsall ,WC146-700,31.01.2023,ADULT SOCIAL CARE,ADVANCE HEALTH CARE (UK) LTD,16/01/2023,452.48,6541-Domiciliary Care,THIRD PARTY PAYMENTS,PRIVATE CONTRACTOR,REVENUE
Walsall Council,http://opendatacommunities.org/id/metropolitan-district-council/walsall ,WC146-701,31.01.2023,ADULT SOCIAL CARE,ADVANCE HEALTH CARE (UK) LTD,16/01/2023,339.36,6541-Domiciliary Care,THIRD PARTY PAYMENTS,PRIVATE CONTRACTOR,REVENUE
Walsall Council,http://opendatacommunities.org/id/metropolitan-district-council/walsall ,WC146-702,31.01.2023,ADULT SOCIAL CARE,ADVANCE HEALTH CARE (UK) LTD,16/01/2023,509.04,6541-Domiciliary Care,THIRD PARTY PAYMENTS,PRIVATE CONTRACTOR,REVENUE
Walsall Council,http://opendatacommunities.org/id/metropolitan-district-council/walsall ,WC146-703,31.01.2023,ADULT SOCIAL CARE,ADVANCE HEALTH CARE (UK) LTD,16/01/2023,509.04,6541-Domiciliary Care,THIRD PARTY PAYMENTS,PRIVATE CONTRACTOR,REVENUE
Walsall Council,http://opendatacommunities.org/id/metropolitan-district-council/walsall ,WC146-704,31.01.2023,ADULT SOCIAL CARE,ADVANCE HEALTH CARE (UK) LTD,16/01/2023,565.60,6541-Domiciliary Care,THIRD PARTY PAYMENTS,PRIVATE CONTRACTOR,REVENUE
Walsall Council,http://opendatacommunities.org/id/metropolitan-district-council/walsall ,WC146-705,31.01.2023,ADULT SOCIAL CARE,ADVANCE HEALTH CARE (UK) LTD,16/01/2023,500.96,6541-Domiciliary Care,THIRD PARTY PAYMENTS,PRIVATE CONTRACTOR,REVENUE
Walsall Council,http://opendatacommunities.org/id/metropolitan-district-council/walsall ,WC146-706,31.01.2023,ADULT SOCIAL CARE,ADVANCE HEALTH CARE (UK) LTD,16/01/2023,509.04,6541-Domiciliary Care,THIRD PARTY PAYMENTS,PRIVATE CONTRACTOR,REVENUE
Walsall Council,http://opendatacommunities.org/id/metropolitan-district-council/walsall ,WC146-707,31.01.2023,ADULT SOCIAL CARE,ADVANCE HEALTH CARE (UK) LTD,16/01/2023,565.60,6541-Domiciliary Care,THIRD PARTY PAYMENTS,PRIVATE CONTRACTOR,REVENUE
Walsall Council,http://opendatacommunities.org/id/metropolitan-district-council/walsall ,WC146-708,31.01.2023,ADULT SOCIAL CARE,ADVANCE HEALTH CARE (UK) LTD,16/01/2023,509.04,6541-Domiciliary Care,THIRD PARTY PAYMENTS,PRIVATE CONTRACTOR,REVENUE
Walsall Council,http://opendatacommunities.org/id/metropolitan-district-council/walsall ,WC146-709,31.01.2023,ADULT SOCIAL CARE,ADVANCE HEALTH CARE (UK) LTD,16/01/2023,565.60,6541-Domiciliary Care,THIRD PARTY PAYMENTS,PRIVATE CONTRACTOR,REVENUE
Walsall Council,http://opendatacommunities.org/id/metropolitan-district-council/walsall ,WC146-710,31.01.2023,ADULT SOCIAL CARE,ADVANCE HEALTH CARE (UK) LTD,16/01/2023,254.52,6541-Domiciliary Care,THIRD PARTY PAYMENTS,PRIVATE CONTRACTOR,REVENUE
Walsall Council,http://opendatacommunities.org/id/metropolitan-district-council/walsall ,WC146-711,31.01.2023,ADULT SOCIAL CARE,ADVANCE HEALTH CARE (UK) LTD,16/01/2023,565.60,6541-Domiciliary Care,THIRD PARTY PAYMENTS,PRIVATE CONTRACTOR,REVENUE
Walsall Council,http://opendatacommunities.org/id/metropolitan-district-council/walsall ,WC146-712,31.01.2023,ADULT SOCIAL CARE,ADVANCE HEALTH CARE (UK) LTD,31/01/2023,339.50,6541-Domiciliary Care,THIRD PARTY PAYMENTS,PRIVATE CONTRACTOR,REVENUE
Walsall Council,http://opendatacommunities.org/id/metropolitan-district-council/walsall ,WC146-713,31.01.2023,ADULT SOCIAL CARE,ADVANCE HEALTH CARE (UK) LTD,31/01/2023,509.04,6541-Domiciliary Care,THIRD PARTY PAYMENTS,PRIVATE CONTRACTOR,REVENUE
Walsall Council,http://opendatacommunities.org/id/metropolitan-district-council/walsall ,WC146-714,31.01.2023,ADULT SOCIAL CARE,ADVANCE HEALTH CARE (UK) LTD,31/01/2023,509.04,6541-Domiciliary Care,THIRD PARTY PAYMENTS,PRIVATE CONTRACTOR,REVENUE
Walsall Council,http://opendatacommunities.org/id/metropolitan-district-council/walsall ,WC146-715,31.01.2023,ADULT SOCIAL CARE,ADVANCE HEALTH CARE (UK) LTD,31/01/2023,864.56,6541-Domiciliary Care,THIRD PARTY PAYMENTS,PRIVATE CONTRACTOR,REVENUE
Walsall Council,http://opendatacommunities.org/id/metropolitan-district-council/walsall ,WC146-716,31.01.2023,ADULT SOCIAL CARE,ADVANCE HEALTH CARE (UK) LTD,31/01/2023,396.06,6541-Domiciliary Care,THIRD PARTY PAYMENTS,PRIVATE CONTRACTOR,REVENUE
Walsall Council,http://opendatacommunities.org/id/metropolitan-district-council/walsall ,WC146-717,31.01.2023,ADULT SOCIAL CARE,ADVANCE HEALTH CARE (UK) LTD,31/01/2023,254.52,6541-Domiciliary Care,THIRD PARTY PAYMENTS,PRIVATE CONTRACTOR,REVENUE
Walsall Council,http://opendatacommunities.org/id/metropolitan-district-council/walsall ,WC146-718,31.01.2023,ADULT SOCIAL CARE,ADVANCE HEALTH CARE (UK) LTD,31/01/2023,509.04,6541-Domiciliary Care,THIRD PARTY PAYMENTS,PRIVATE CONTRACTOR,REVENUE
Walsall Council,http://opendatacommunities.org/id/metropolitan-district-council/walsall ,WC146-719,31.01.2023,ADULT SOCIAL CARE,ADVANCE HEALTH CARE (UK) LTD,31/01/2023,509.04,6541-Domiciliary Care,THIRD PARTY PAYMENTS,PRIVATE CONTRACTOR,REVENUE
Walsall Council,http://opendatacommunities.org/id/metropolitan-district-council/walsall ,WC146-720,31.01.2023,ADULT SOCIAL CARE,ADVANCE HEALTH CARE (UK) LTD,31/01/2023,565.60,6541-Domiciliary Care,THIRD PARTY PAYMENTS,PRIVATE CONTRACTOR,REVENUE
Walsall Council,http://opendatacommunities.org/id/metropolitan-district-council/walsall ,WC146-721,31.01.2023,ADULT SOCIAL CARE,ADVANCE HEALTH CARE (UK) LTD,31/01/2023,565.60,6541-Domiciliary Care,THIRD PARTY PAYMENTS,PRIVATE CONTRACTOR,REVENUE
Walsall Council,http://opendatacommunities.org/id/metropolitan-district-council/walsall ,WC146-722,31.01.2023,ADULT SOCIAL CARE,ADVANCE HEALTH CARE (UK) LTD,31/01/2023,500.96,6541-Domiciliary Care,THIRD PARTY PAYMENTS,PRIVATE CONTRACTOR,REVENUE
Walsall Council,http://opendatacommunities.org/id/metropolitan-district-council/walsall ,WC146-723,31.01.2023,ADULT SOCIAL CARE,ADVANCE HEALTH CARE (UK) LTD,31/01/2023,509.04,6541-Domiciliary Care,THIRD PARTY PAYMENTS,PRIVATE CONTRACTOR,REVENUE
Walsall Council,http://opendatacommunities.org/id/metropolitan-district-council/walsall ,WC146-724,31.01.2023,ADULT SOCIAL CARE,ADVANCE HEALTH CARE (UK) LTD,31/01/2023,395.92,6541-Domiciliary Care,THIRD PARTY PAYMENTS,PRIVATE CONTRACTOR,REVENUE
Walsall Council,http://opendatacommunities.org/id/metropolitan-district-council/walsall ,WC146-725,31.01.2023,ADULT SOCIAL CARE,ADVANCE HEALTH CARE (UK) LTD,31/01/2023,565.60,6541-Domiciliary Care,THIRD PARTY PAYMENTS,PRIVATE CONTRACTOR,REVENUE
Walsall Council,http://opendatacommunities.org/id/metropolitan-district-council/walsall ,WC146-726,31.01.2023,ADULT SOCIAL CARE,ADVANCE HEALTH CARE (UK) LTD,31/01/2023,589.84,6541-Domiciliary Care,THIRD PARTY PAYMENTS,PRIVATE CONTRACTOR,REVENUE
Walsall Council,http://opendatacommunities.org/id/metropolitan-district-council/walsall ,WC146-727,31.01.2023,ADULT SOCIAL CARE,ADVANCE HEALTH CARE (UK) LTD,31/01/2023,254.52,6541-Domiciliary Care,THIRD PARTY PAYMENTS,PRIVATE CONTRACTOR,REVENUE
Walsall Council,http://opendatacommunities.org/id/metropolitan-district-council/walsall ,WC146-728,31.01.2023,ADULT SOCIAL CARE,ADVANCE HEALTH CARE (UK) LTD,31/01/2023,254.52,6541-Domiciliary Care,THIRD PARTY PAYMENTS,PRIVATE CONTRACTOR,REVENUE
Walsall Council,http://opendatacommunities.org/id/metropolitan-district-council/walsall ,WC146-729,31.01.2023,ADULT SOCIAL CARE,ADVANCE HEALTH CARE (UK) LTD,31/01/2023,509.04,6541-Domiciliary Care,THIRD PARTY PAYMENTS,PRIVATE CONTRACTOR,REVENUE
Walsall Council,http://opendatacommunities.org/id/metropolitan-district-council/walsall ,WC146-730,31.01.2023,ADULT SOCIAL CARE,ADVANCE HEALTH CARE (UK) LTD,31/01/2023,565.60,6541-Domiciliary Care,THIRD PARTY PAYMENTS,PRIVATE CONTRACTOR,REVENUE
Walsall Council,http://opendatacommunities.org/id/metropolitan-district-council/walsall ,WC146-731,31.01.2023,ADULT SOCIAL CARE,ADVANCE HEALTH CARE (UK) LTD,31/01/2023,452.48,6541-Domiciliary Care,THIRD PARTY PAYMENTS,PRIVATE CONTRACTOR,REVENUE
Walsall Council,http://opendatacommunities.org/id/metropolitan-district-council/walsall ,WC146-732,31.01.2023,ADULT SOCIAL CARE,ADVANCE HEALTH CARE (UK) LTD,31/01/2023,452.48,6541-Domiciliary Care,THIRD PARTY PAYMENTS,PRIVATE CONTRACTOR,REVENUE
Walsall Council,http://opendatacommunities.org/id/metropolitan-district-council/walsall ,WC146-733,31.01.2023,ADULT SOCIAL CARE,ADVANCE HEALTH CARE (UK) LTD,31/01/2023,339.36,6541-Domiciliary Care,THIRD PARTY PAYMENTS,PRIVATE CONTRACTOR,REVENUE
Walsall Council,http://opendatacommunities.org/id/metropolitan-district-council/walsall ,WC146-734,31.01.2023,ADULT SOCIAL CARE,ADVANCE HEALTH CARE (UK) LTD,31/01/2023,254.52,6541-Domiciliary Care,THIRD PARTY PAYMENTS,PRIVATE CONTRACTOR,REVENUE
Walsall Council,http://opendatacommunities.org/id/metropolitan-district-council/walsall ,WC146-735,31.01.2023,ADULT SOCIAL CARE,ADVANCE HEALTH CARE (UK) LTD,31/01/2023,"-3,393.60",6541-Domiciliary Care,THIRD PARTY PAYMENTS,PRIVATE CONTRACTOR,REVENUE
Walsall Council,http://opendatacommunities.org/id/metropolitan-district-council/walsall ,WC146-736,31.01.2023,ADULT SOCIAL CARE,ADVANCE HEALTH CARE (UK) LTD,31/01/2023,377.16,6541-Domiciliary Care,THIRD PARTY PAYMENTS,PRIVATE CONTRACTOR,REVENUE
Walsall Council,http://opendatacommunities.org/id/metropolitan-district-council/walsall ,WC146-737,31.01.2023,ADULT SOCIAL CARE,ADVANCE HEALTH CARE (UK) LTD,31/01/2023,339.50,6541-Domiciliary Care,THIRD PARTY PAYMENTS,PRIVATE CONTRACTOR,REVENUE
Walsall Council,http://opendatacommunities.org/id/metropolitan-district-council/walsall ,WC146-738,31.01.2023,ADULT SOCIAL CARE,ADVANCE HEALTH CARE (UK) LTD,31/01/2023,509.04,6541-Domiciliary Care,THIRD PARTY PAYMENTS,PRIVATE CONTRACTOR,REVENUE
Walsall Council,http://opendatacommunities.org/id/metropolitan-district-council/walsall ,WC146-739,31.01.2023,ADULT SOCIAL CARE,ADVANCE HEALTH CARE (UK) LTD,31/01/2023,452.48,6541-Domiciliary Care,THIRD PARTY PAYMENTS,PRIVATE CONTRACTOR,REVENUE
Walsall Council,http://opendatacommunities.org/id/metropolitan-district-council/walsall ,WC146-740,31.01.2023,ADULT SOCIAL CARE,ADVANCE HEALTH CARE (UK) LTD,31/01/2023,509.04,6541-Domiciliary Care,THIRD PARTY PAYMENTS,PRIVATE CONTRACTOR,REVENUE
Walsall Council,http://opendatacommunities.org/id/metropolitan-district-council/walsall ,WC146-741,31.01.2023,ADULT SOCIAL CARE,ADVANCE HEALTH CARE (UK) LTD,31/01/2023,"3,563.28",6541-Domiciliary Care,THIRD PARTY PAYMENTS,PRIVATE CONTRACTOR,REVENUE
Walsall Council,http://opendatacommunities.org/id/metropolitan-district-council/walsall ,WC146-742,31.01.2023,ADULT SOCIAL CARE,ADVANCE HEALTH CARE (UK) LTD,31/01/2023,509.04,6541-Domiciliary Care,THIRD PARTY PAYMENTS,PRIVATE CONTRACTOR,REVENUE
Walsall Council,http://opendatacommunities.org/id/metropolitan-district-council/walsall ,WC146-743,31.01.2023,ADULT SOCIAL CARE,ADVANCE HEALTH CARE (UK) LTD,31/01/2023,355.52,6541-Domiciliary Care,THIRD PARTY PAYMENTS,PRIVATE CONTRACTOR,REVENUE
Walsall Council,http://opendatacommunities.org/id/metropolitan-district-council/walsall ,WC146-744,31.01.2023,ADULT SOCIAL CARE,ADVANCE HEALTH CARE (UK) LTD,31/01/2023,589.84,6541-Domiciliary Care,THIRD PARTY PAYMENTS,PRIVATE CONTRACTOR,REVENUE
Walsall Council,http://opendatacommunities.org/id/metropolitan-district-council/walsall ,WC146-745,31.01.2023,ADULT SOCIAL CARE,ADVANCE HEALTH CARE (UK) LTD,31/01/2023,254.52,6541-Domiciliary Care,THIRD PARTY PAYMENTS,PRIVATE CONTRACTOR,REVENUE
Walsall Council,http://opendatacommunities.org/id/metropolitan-district-council/walsall ,WC146-746,31.01.2023,ADULT SOCIAL CARE,ADVANCE HEALTH CARE (UK) LTD,31/01/2023,254.52,6541-Domiciliary Care,THIRD PARTY PAYMENTS,PRIVATE CONTRACTOR,REVENUE
Walsall Council,http://opendatacommunities.org/id/metropolitan-district-council/walsall ,WC146-747,31.01.2023,ADULT SOCIAL CARE,ADVANCE HEALTH CARE (UK) LTD,31/01/2023,509.04,6541-Domiciliary Care,THIRD PARTY PAYMENTS,PRIVATE CONTRACTOR,REVENUE
Walsall Council,http://opendatacommunities.org/id/metropolitan-district-council/walsall ,WC146-748,31.01.2023,ADULT SOCIAL CARE,ADVANCE HEALTH CARE (UK) LTD,31/01/2023,864.56,6541-Domiciliary Care,THIRD PARTY PAYMENTS,PRIVATE CONTRACTOR,REVENUE
Walsall Council,http://opendatacommunities.org/id/metropolitan-district-council/walsall ,WC146-749,31.01.2023,ADULT SOCIAL CARE,ADVANCE HEALTH CARE (UK) LTD,31/01/2023,396.06,6541-Domiciliary Care,THIRD PARTY PAYMENTS,PRIVATE CONTRACTOR,REVENUE
Walsall Council,http://opendatacommunities.org/id/metropolitan-district-council/walsall ,WC146-750,31.01.2023,ADULT SOCIAL CARE,ADVANCE HEALTH CARE (UK) LTD,31/01/2023,254.52,6541-Domiciliary Care,THIRD PARTY PAYMENTS,PRIVATE CONTRACTOR,REVENUE
Walsall Council,http://opendatacommunities.org/id/metropolitan-district-council/walsall ,WC146-751,31.01.2023,ADULT SOCIAL CARE,ADVANCE HEALTH CARE (UK) LTD,31/01/2023,377.16,6541-Domiciliary Care,THIRD PARTY PAYMENTS,PRIVATE CONTRACTOR,REVENUE
Walsall Council,http://opendatacommunities.org/id/metropolitan-district-council/walsall ,WC146-752,31.01.2023,ADULT SOCIAL CARE,ADVANCE HEALTH CARE (UK) LTD,31/01/2023,339.50,6541-Domiciliary Care,THIRD PARTY PAYMENTS,PRIVATE CONTRACTOR,REVENUE
Walsall Council,http://opendatacommunities.org/id/metropolitan-district-council/walsall ,WC146-753,31.01.2023,ADULT SOCIAL CARE,ADVANCE HEALTH CARE (UK) LTD,31/01/2023,509.04,6541-Domiciliary Care,THIRD PARTY PAYMENTS,PRIVATE CONTRACTOR,REVENUE
Walsall Council,http://opendatacommunities.org/id/metropolitan-district-council/walsall ,WC146-754,31.01.2023,ADULT SOCIAL CARE,ADVANCE HEALTH CARE (UK) LTD,31/01/2023,452.48,6541-Domiciliary Care,THIRD PARTY PAYMENTS,PRIVATE CONTRACTOR,REVENUE
Walsall Council,http://opendatacommunities.org/id/metropolitan-district-council/walsall ,WC146-755,31.01.2023,ADULT SOCIAL CARE,ADVANCE HEALTH CARE (UK) LTD,31/01/2023,395.92,6541-Domiciliary Care,THIRD PARTY PAYMENTS,PRIVATE CONTRACTOR,REVENUE
Walsall Council,http://opendatacommunities.org/id/metropolitan-district-council/walsall ,WC146-756,31.01.2023,ADULT SOCIAL CARE,ADVANCE HEALTH CARE (UK) LTD,31/01/2023,509.04,6541-Domiciliary Care,THIRD PARTY PAYMENTS,PRIVATE CONTRACTOR,REVENUE
Walsall Council,http://opendatacommunities.org/id/metropolitan-district-council/walsall ,WC146-757,31.01.2023,ADULT SOCIAL CARE,ADVANCE HEALTH CARE (UK) LTD,31/01/2023,339.36,6541-Domiciliary Care,THIRD PARTY PAYMENTS,PRIVATE CONTRACTOR,REVENUE
Walsall Council,http://opendatacommunities.org/id/metropolitan-district-council/walsall ,WC146-758,31.01.2023,ADULT SOCIAL CARE,ADVANCE HEALTH CARE (UK) LTD,31/01/2023,452.48,6541-Domiciliary Care,THIRD PARTY PAYMENTS,PRIVATE CONTRACTOR,REVENUE
Walsall Council,http://opendatacommunities.org/id/metropolitan-district-council/walsall ,WC146-759,31.01.2023,ADULT SOCIAL CARE,ADVANCE HEALTH CARE (UK) LTD,31/01/2023,339.36,6541-Domiciliary Care,THIRD PARTY PAYMENTS,PRIVATE CONTRACTOR,REVENUE
Walsall Council,http://opendatacommunities.org/id/metropolitan-district-council/walsall ,WC146-760,31.01.2023,ADULT SOCIAL CARE,ADVANCE HEALTH CARE (UK) LTD,31/01/2023,509.04,6541-Domiciliary Care,THIRD PARTY PAYMENTS,PRIVATE CONTRACTOR,REVENUE
Walsall Council,http://opendatacommunities.org/id/metropolitan-district-council/walsall ,WC146-761,31.01.2023,ADULT SOCIAL CARE,ADVANCE HEALTH CARE (UK) LTD,31/01/2023,509.04,6541-Domiciliary Care,THIRD PARTY PAYMENTS,PRIVATE CONTRACTOR,REVENUE
Walsall Council,http://opendatacommunities.org/id/metropolitan-district-council/walsall ,WC146-762,31.01.2023,ADULT SOCIAL CARE,ADVANCE HEALTH CARE (UK) LTD,31/01/2023,339.50,6541-Domiciliary Care,THIRD PARTY PAYMENTS,PRIVATE CONTRACTOR,REVENUE
Walsall Council,http://opendatacommunities.org/id/metropolitan-district-council/walsall ,WC146-763,31.01.2023,ADULT SOCIAL CARE,ADVANCE HEALTH CARE (UK) LTD,31/01/2023,565.60,6541-Domiciliary Care,THIRD PARTY PAYMENTS,PRIVATE CONTRACTOR,REVENUE
Walsall Council,http://opendatacommunities.org/id/metropolitan-district-council/walsall ,WC146-764,31.01.2023,ADULT SOCIAL CARE,ADVANCE HEALTH CARE (UK) LTD,31/01/2023,500.96,6541-Domiciliary Care,THIRD PARTY PAYMENTS,PRIVATE CONTRACTOR,REVENUE
Walsall Council,http://opendatacommunities.org/id/metropolitan-district-council/walsall ,WC146-765,31.01.2023,ADULT SOCIAL CARE,ADVANCE HEALTH CARE (UK) LTD,31/01/2023,509.04,6541-Domiciliary Care,THIRD PARTY PAYMENTS,PRIVATE CONTRACTOR,REVENUE
Walsall Council,http://opendatacommunities.org/id/metropolitan-district-council/walsall ,WC146-766,31.01.2023,ADULT SOCIAL CARE,ADVANCE HEALTH CARE (UK) LTD,31/01/2023,565.60,6541-Domiciliary Care,THIRD PARTY PAYMENTS,PRIVATE CONTRACTOR,REVENUE
Walsall Council,http://opendatacommunities.org/id/metropolitan-district-council/walsall ,WC146-767,31.01.2023,ADULT SOCIAL CARE,ADVANCE HEALTH CARE (UK) LTD,31/01/2023,509.04,6541-Domiciliary Care,THIRD PARTY PAYMENTS,PRIVATE CONTRACTOR,REVENUE
Walsall Council,http://opendatacommunities.org/id/metropolitan-district-council/walsall ,WC146-768,31.01.2023,ADULT SOCIAL CARE,ADVANCE HEALTH CARE (UK) LTD,31/01/2023,509.04,6541-Domiciliary Care,THIRD PARTY PAYMENTS,PRIVATE CONTRACTOR,REVENUE
Walsall Council,http://opendatacommunities.org/id/metropolitan-district-council/walsall ,WC146-769,31.01.2023,ADULT SOCIAL CARE,ADVANCE HEALTH CARE (UK) LTD,31/01/2023,509.04,6541-Domiciliary Care,THIRD PARTY PAYMENTS,PRIVATE CONTRACTOR,REVENUE
Walsall Council,http://opendatacommunities.org/id/metropolitan-district-council/walsall ,WC146-770,31.01.2023,ADULT SOCIAL CARE,ADVANCE HEALTH CARE (UK) LTD,31/01/2023,565.60,6541-Domiciliary Care,THIRD PARTY PAYMENTS,PRIVATE CONTRACTOR,REVENUE
Walsall Council,http://opendatacommunities.org/id/metropolitan-district-council/walsall ,WC146-771,31.01.2023,ADULT SOCIAL CARE,ADVANCE HEALTH CARE (UK) LTD,31/01/2023,509.04,6541-Domiciliary Care,THIRD PARTY PAYMENTS,PRIVATE CONTRACTOR,REVENUE
Walsall Council,http://opendatacommunities.org/id/metropolitan-district-council/walsall ,WC146-772,31.01.2023,ADULT SOCIAL CARE,ADVANCE HEALTH CARE (UK) LTD,31/01/2023,565.60,6541-Domiciliary Care,THIRD PARTY PAYMENTS,PRIVATE CONTRACTOR,REVENUE
Walsall Council,http://opendatacommunities.org/id/metropolitan-district-council/walsall ,WC146-773,31.01.2023,ADULT SOCIAL CARE,ADVANCE HEALTH CARE (UK) LTD,31/01/2023,452.48,6541-Domiciliary Care,THIRD PARTY PAYMENTS,PRIVATE CONTRACTOR,REVENUE
Walsall Council,http://opendatacommunities.org/id/metropolitan-district-council/walsall ,WC146-774,31.01.2023,ADULT SOCIAL CARE,ADVANCE HEALTH CARE (UK) LTD,31/01/2023,254.52,6541-Domiciliary Care,THIRD PARTY PAYMENTS,PRIVATE CONTRACTOR,REVENUE
Walsall Council,http://opendatacommunities.org/id/metropolitan-district-council/walsall ,WC146-775,31.01.2023,CHILDRENS,ADVANCED CHILD SAFEGUARDING SERVICES LTD T/A RISK SOLUTIONS,17/01/2023,"2,537.40",6222-Professional Fees & Services,SUPPLIES & SERVICES,SERVICES,REVENUE
Walsall Council,http://opendatacommunities.org/id/metropolitan-district-council/walsall ,WC146-776,31.01.2023,"ECONOMY, ENVIRONMENT & COMMUNITIES",ADVANCED COMMUNICATION SOLUTIONS LTD,19/01/2023,-295.50,6414-Computer Equipment,SUPPLIES & SERVICES,COMMUNICATIONS & COMPUTING,REVENUE
Walsall Council,http://opendatacommunities.org/id/metropolitan-district-council/walsall ,WC146-777,31.01.2023,"ECONOMY, ENVIRONMENT & COMMUNITIES",ADVANCED COMMUNICATION SOLUTIONS LTD,19/01/2023,295.50,6414-Computer Equipment,SUPPLIES & SERVICES,COMMUNICATIONS & COMPUTING,REVENUE
Walsall Council,http://opendatacommunities.org/id/metropolitan-district-council/walsall ,WC146-778,31.01.2023,"ECONOMY, ENVIRONMENT & COMMUNITIES",ADVANCED VISUALISATION TECHNOLOGIES LTD T/A DIGITAL AUTOPSY UK,05/01/2023,"4,760.00",6413-Professional Fees & Services,SUPPLIES & SERVICES,SERVICES,REVENUE
Walsall Council,http://opendatacommunities.org/id/metropolitan-district-council/walsall ,WC146-779,31.01.2023,"ECONOMY, ENVIRONMENT & COMMUNITIES",ADVANCED VISUALISATION TECHNOLOGIES LTD T/A DIGITAL AUTOPSY UK,10/01/2023,476.00,6413-Professional Fees & Services,SUPPLIES & SERVICES,SERVICES,REVENUE
Walsall Council,http://opendatacommunities.org/id/metropolitan-district-council/walsall ,WC146-780,31.01.2023,CHILDRENS,ADVENTURELAND DAY NURSERY,20/01/2023,640.00,1184-Transfer Payments-Other Schoolchildren/Student Related Items,TRANSFER PAYMENTS,SCHOOLCHILDREN/STUDENTS,REVENUE
Walsall Council,http://opendatacommunities.org/id/metropolitan-district-council/walsall ,WC146-781,31.01.2023,CHILDRENS,ADVENTURELAND DAY NURSERY,16/01/2023,"4,721.06",1184-Other-Grants to Other Orgs,SUPPLIES & SERVICES,GRANTS (EXP) & SUBSCRIPTIONS,REVENUE
Walsall Council,http://opendatacommunities.org/id/metropolitan-district-council/walsall ,WC146-782,31.01.2023,CHILDRENS,ADVENTURELAND DAY NURSERY,16/01/2023,"28,135.80",1184-Other-Grants to Other Orgs,SUPPLIES & SERVICES,GRANTS (EXP) & SUBSCRIPTIONS,REVENUE
Walsall Council,http://opendatacommunities.org/id/metropolitan-district-council/walsall ,WC146-783,31.01.2023,CHILDRENS,ADVENTURELAND DAY NURSERY,20/01/2023,"1,280.00",1184-Transfer Payments-Other Schoolchildren/Student Related Items,TRANSFER PAYMENTS,SCHOOLCHILDREN/STUDENTS,REVENUE
Walsall Council,http://opendatacommunities.org/id/metropolitan-district-council/walsall ,WC146-784,31.01.2023,ADULT SOCIAL CARE,ADVINIA CARE HOMES LTD - HAMMERWICH HALL CARE HOME,16/01/2023,"2,366.04",6541-Residential EMI,THIRD PARTY PAYMENTS,PRIVATE CONTRACTOR,REVENUE
Walsall Council,http://opendatacommunities.org/id/metropolitan-district-council/walsall ,WC146-785,31.01.2023,ADULT SOCIAL CARE,ADVINIA CARE HOMES LTD - HAMMERWICH HALL CARE HOME,16/01/2023,"2,095.40",6541-Residential,THIRD PARTY PAYMENTS,PRIVATE CONTRACTOR,REVENUE
Walsall Council,http://opendatacommunities.org/id/metropolitan-district-council/walsall ,WC146-786,31.01.2023,ADULT SOCIAL CARE,ADVINIA CARE HOMES LTD - HAMMERWICH HALL CARE HOME,16/01/2023,"1,915.30",6541-Residential EMI,THIRD PARTY PAYMENTS,PRIVATE CONTRACTOR,REVENUE
Walsall Council,http://opendatacommunities.org/id/metropolitan-district-council/walsall ,WC146-787,31.01.2023,CHILDRENS CAPITAL,AFFORDABLE WARMTH SOLUTIONS CIC,18/01/2023,"-28,995.54",7100-Other Grants,CAPITAL,CAPITAL GRANTS,CAPITAL GRANTS
Walsall Council,http://opendatacommunities.org/id/metropolitan-district-council/walsall ,WC146-788,31.01.2023,CHILDRENS CAPITAL,AFFORDABLE WARMTH SOLUTIONS CIC,18/01/2023,"28,995.54",7100-Other Grants,CAPITAL,CAPITAL GRANTS,CAPITAL GRANTS
Walsall Council,http://opendatacommunities.org/id/metropolitan-district-council/walsall ,WC146-789,31.01.2023,CHILDRENS CAPITAL,AFFORDABLE WARMTH SOLUTIONS CIC,18/01/2023,"34,794.65",7100-Other Grants,CAPITAL,CAPITAL GRANTS,CAPITAL GRANTS
Walsall Council,http://opendatacommunities.org/id/metropolitan-district-council/walsall ,WC146-790,31.01.2023,CHILDRENS,AFGHAN COMMUNITY & WELFARE CENTRE,24/01/2023,"2,628.65",6211-Professional Fees & Services,SUPPLIES & SERVICES,SERVICES,REVENUE
Walsall Council,http://opendatacommunities.org/id/metropolitan-district-council/walsall ,WC146-791,31.01.2023,RESOURCES AND TRANSFORMATION CAPITAL,AGILISYS LTD,05/01/2023,"2,723.00",7300-Consultants Fees,CAPITAL,"NEW CONSTRUCTION,CONVERSION & RENOVATION",CAPITAL
Walsall Council,http://opendatacommunities.org/id/metropolitan-district-council/walsall ,WC146-792,31.01.2023,RESOURCES AND TRANSFORMATION CAPITAL,AGILISYS LTD,04/01/2023,"12,334.52",7300-Consultants Fees,CAPITAL,"NEW CONSTRUCTION,CONVERSION & RENOVATION",CAPITAL
Walsall Council,http://opendatacommunities.org/id/metropolitan-district-council/walsall ,WC146-793,31.01.2023,RESOURCES AND TRANSFORMATION CAPITAL,AGILISYS LTD,04/01/2023,"2,605.00",7300-Consultants Fees,CAPITAL,"NEW CONSTRUCTION,CONVERSION & RENOVATION",CAPITAL
Walsall Council,http://opendatacommunities.org/id/metropolitan-district-council/walsall ,WC146-794,31.01.2023,RESOURCES AND TRANSFORMATION CAPITAL,AGILISYS LTD,26/01/2023,"6,167.26",7300-Consultants Fees,CAPITAL,"NEW CONSTRUCTION,CONVERSION & RENOVATION",CAPITAL
Walsall Council,http://opendatacommunities.org/id/metropolitan-district-council/walsall ,WC146-795,31.01.2023,RESOURCES AND TRANSFORMATION CAPITAL,AGILISYS LTD,05/01/2023,"-44,775.00",7300-Consultants Fees,CAPITAL,"NEW CONSTRUCTION,CONVERSION & RENOVATION",CAPITAL
Walsall Council,http://opendatacommunities.org/id/metropolitan-district-council/walsall ,WC146-796,31.01.2023,RESOURCES AND TRANSFORMATION CAPITAL,AGILISYS LTD,05/01/2023,"44,775.00",7300-Consultants Fees,CAPITAL,"NEW CONSTRUCTION,CONVERSION & RENOVATION",CAPITAL
Walsall Council,http://opendatacommunities.org/id/metropolitan-district-council/walsall ,WC146-797,31.01.2023,RESOURCES AND TRANSFORMATION CAPITAL,AGILISYS LTD,06/01/2023,"-58,772.78",7300-Consultants Fees,CAPITAL,"NEW CONSTRUCTION,CONVERSION & RENOVATION",CAPITAL
Walsall Council,http://opendatacommunities.org/id/metropolitan-district-council/walsall ,WC146-798,31.01.2023,RESOURCES AND TRANSFORMATION CAPITAL,AGILISYS LTD,06/01/2023,"6,160.91",7300-Consultants Fees,CAPITAL,"NEW CONSTRUCTION,CONVERSION & RENOVATION",CAPITAL
Walsall Council,http://opendatacommunities.org/id/metropolitan-district-council/walsall ,WC146-799,31.01.2023,RESOURCES AND TRANSFORMATION CAPITAL,AGILISYS LTD,06/01/2023,"52,611.87",7300-Consultants Fees,CAPITAL,"NEW CONSTRUCTION,CONVERSION & RENOVATION",CAPITAL
Walsall Council,http://opendatacommunities.org/id/metropolitan-district-council/walsall ,WC146-800,31.01.2023,RESOURCES AND TRANSFORMATION CAPITAL,AGILISYS LTD,06/01/2023,"58,772.78",7300-Consultants Fees,CAPITAL,"NEW CONSTRUCTION,CONVERSION & RENOVATION",CAPITAL
Walsall Council,http://opendatacommunities.org/id/metropolitan-district-council/walsall ,WC146-801,31.01.2023,RESOURCES AND TRANSFORMATION CAPITAL,AGILISYS LTD,20/01/2023,"-2,775.00",7300-Consultants Fees,CAPITAL,"NEW CONSTRUCTION,CONVERSION & RENOVATION",CAPITAL
Walsall Council,http://opendatacommunities.org/id/metropolitan-district-council/walsall ,WC146-802,31.01.2023,RESOURCES AND TRANSFORMATION CAPITAL,AGILISYS LTD,20/01/2023,"-1,185.00",7300-Consultants Fees,CAPITAL,"NEW CONSTRUCTION,CONVERSION & RENOVATION",CAPITAL
Walsall Council,http://opendatacommunities.org/id/metropolitan-district-council/walsall ,WC146-803,31.01.2023,RESOURCES AND TRANSFORMATION CAPITAL,AGILISYS LTD,20/01/2023,"1,185.00",7300-Consultants Fees,CAPITAL,"NEW CONSTRUCTION,CONVERSION & RENOVATION",CAPITAL
Walsall Council,http://opendatacommunities.org/id/metropolitan-district-council/walsall ,WC146-804,31.01.2023,RESOURCES AND TRANSFORMATION CAPITAL,AGILISYS LTD,31/01/2023,"6,400.00",7300-Consultants Fees,CAPITAL,"NEW CONSTRUCTION,CONVERSION & RENOVATION",CAPITAL
Walsall Council,http://opendatacommunities.org/id/metropolitan-district-council/walsall ,WC146-805,31.01.2023,RESOURCES AND TRANSFORMATION CAPITAL,AGILISYS LTD,31/01/2023,"12,334.52",7300-Consultants Fees,CAPITAL,"NEW CONSTRUCTION,CONVERSION & RENOVATION",CAPITAL
Walsall Council,http://opendatacommunities.org/id/metropolitan-district-council/walsall ,WC146-806,31.01.2023,ADULT SOCIAL CARE,REDACTED,04/01/2023,"2,517.12",6541-Direct Payment,THIRD PARTY PAYMENTS,PRIVATE CONTRACTOR,REVENUE
Walsall Council,http://opendatacommunities.org/id/metropolitan-district-council/walsall ,WC146-807,31.01.2023,ADULT SOCIAL CARE,REDACTED,04/01/2023,390.32,6541-Direct Payment,THIRD PARTY PAYMENTS,PRIVATE CONTRACTOR,REVENUE
Walsall Council,http://opendatacommunities.org/id/metropolitan-district-council/walsall ,WC146-808,31.01.2023,"ECONOMY, ENVIRONMENT & COMMUNITIES",ALBERT JAGGER LTD,31/01/2023,253.68,6410-Materials to Stores,SUPPLIES & SERVICES,EQUIPMENT FURNITURE & MATERIALS,REVENUE
